Workbook

Sheet 调整后项目库
A1: 2025年度巩固拓展脱贫攻坚成果和乡村振兴项目库表
A2: 序号 | B2: 县（市、区） | C2: 项目实施地点 | E2: 项目类型 | F2: 项目名称 | G2: 规划年度 | H2: 建设性质 | I2: 项目概要及建设主要内容 | J2: 项目概算投资（万元） | K2: 年度资金计划（万元） | N2: 绩效目标预测 | S2: 是否到户项目 | T2: 联农带农机制 | U2: 是否符合符合规划、土地、环保要求 | V2: 是否易地搬迁后扶项目 | W2: 是否劳动密集型产业 | X2: 是否壮大集体经济项目 | Y2: 项目负责人 | Z2: 联系电话 | AA2: 县级行业主管部门 | AB2: 后续管护营运单位 | AC2: 是否纳入年度实施计划 | AD2: 是否属于新增或调整项目信息项目 | AE2: 州市行业主管部门审核意见 | AF2: 备注
K3: 小 计 | L3: 衔接资金 | M3: 其他资金 | N3: 项目受益人数 | P3: 其中：脱贫人口及监测对象 | R3: 总体目标
C4: 乡 | D4: 村 | N4: 户 | O4: 人 | P4: 户 | Q4: 人
A5: 合计 | J5: =SUM(J6:J503) -> 61730.74 | K5: =SUM(K6:K503) -> 60262.25 | L5: =SUM(L6:L503) -> 55261.04 | M5: 5001.21 | N5: 316765 | O5: 903275 | P5: 50746 | Q5: 112730
A6: 1 | B6: 玉溪市本级 | C6: 玉溪市玉白顶国有林场 | E6: 产业发展—产业园（区） | F6: 玉溪市玉白顶国有林场2025年欠发达国有林场项目 | G6: 2025年 | H6: 新建 | I6: 长蕊甜菜种植5000株；围栏建设3500米；有机肥12500千克；普钙10000千克；复合肥10000千克；给水管6.5千米；100立方水池一座；抽水设备、滴灌设施等；病虫害防治。 | J6: 110.00 | K6: 110.00 | L6: 110.00 | M6: 0.00 | N6: 18 | O6: 27 | P6: 0 | Q6: 0 | R6: 通过该项目的实施，利用林场的资源探索出一条适合林场及周边村社林地环境发展的模式、途径和管理办法，以林场提供技术的方式，带动周边群众发展林下产业，增加林农收入，形成林业与农业土地资源共享、优势互补的生态产业模式，促进国有林场转型升级，培养经济新增长点，带动周边村集体经济发展和美丽乡村建设，推进巩固拓展脱贫攻坚成果同乡村振兴有效衔接。 项目的实施可增加护林员收入及改善老工棚林区职工的生活用水，减少因水质带来的疾病，保障职工身体健康，增强林区职工幸福感。 | S6: 否 | T6: 吸纳劳动力稳定就业增收—其他 | U6: 是 | V6: 否 | W6: 否 | X6: 否 | Y6: 杨兴明 | Z6: 18087795966 | AA6: 玉白顶国有林场 | AB6: 玉白顶国有林场 | AC6: 是 | AD6: 否
A7: 2 | B7: 红塔区 | C7: 小石桥乡 | D7: 玉苗 | E7: 产业发展—庭院特色休闲旅游 | F7: 小石桥乡“玉见玉苗”田园综合体农文旅产业项目 | G7: 2025年 | H7: 新建 | I7: 新建综合楼1栋，760.34平方米；提升改造村内道路3条车行道，470.189米。 | J7: 397.00 | K7: =L7+M7 -> 387.00 | L7: 387.00 | M7: 0.00 | N7: 329 | O7: 936 | P7: 76 | Q7: 265 | R7: 项目建成将壮大村组集体经济收入，增加贫困户利益联结机制，助销本地多类农特产品。可实现村组集体经济效益50万，吸纳就业20余名，促进户均增收2万元以上，可孵化培育民宿小院10家、发展农家乐5家. | S7: 否 | T7: 吸纳农村劳动力稳定就业增收—股权合作 | U7: 是 | V7: 否 | W7: 否 | X7: 否 | Y7: 贾沐文 | Z7: 17787706480 | AA7: 红塔区农业农村局（乡村振兴局） | AB7: 玉苗村 | AC7: 是 | AD7: 是
A8: 3 | B8: 红塔区 | C8: 小石桥乡 | D8: 玉苗村委会新铺村 | E8: 乡村建设行动—村容村貌提升 | F8: 小石桥乡玉苗村委会新铺村民族村寨旅游提升工程项目 | G8: 2025年 | H8: 新建 | I8: 小石桥乡道 Y002 道路进行硬化及道路两侧附属设施建设，包括排水沟、挡土墙、管道敷设等。道路占地面积：2385 ㎡。 | J8: 50.00 | K8: 30.00 | L8: 30.00 | M8: 0.00 | N8: 693 | O8: 1961 | P8: 76 | Q8: 265 | R8: 改善基础设施条件，有效推动乡村振兴 | S8: 否 | T8: 吸纳农村劳动力稳定就业增收 | U8: 是 | V8: 否 | W8: 否 | X8: 否 | Y8: 期绍飞 | Z8: 13887766716 | AA8: 红塔区民宗局 | AB8: 玉苗村委会新铺村 | AC8: 是 | AD8: 是
A9: 4 | B9: 红塔区 | C9: 北城街道 | D9: 梅园社区1组 | E9: 乡村建设行动—村容村貌提升 | F9: 大凹村人畜饮水、污水管网建设项目 | G9: 2025年 | H9: 新建 | I9: 村内道路约6750.34㎡，新建混凝土挡墙37.32m，大凹路铺设沥青混凝土149.12m，铁艺栏杆1264.29m，排水部分1项，给水部分1项。 | J9: 312.29 | K9: 300.00 | L9: 300.00 | M9: 0.00 | N9: 82 | O9: 262 | P9: 0 | Q9: 0 | R9: 解决262人饮水、生产用水的困难，实现雨污分流，改善村庄环境。 | S9: 否 | T9: 吸纳农村劳动力稳定就业增收—股权合作 | U9: 是 | V9: 否 | W9: 否 | X9: 否 | Y9: 宋红兵 | Z9: 13508899860 | AA9: 红塔区农业农村局（乡村振兴局） | AB9: 梅园社区1组 | AC9: 是 | AD9: 否
A10: 5 | B10: 红塔区 | C10: 北城街道 | D10: 大营社区 | E10: 乡村建设行动—村容村貌提升 | F10: 北城街道大营社区人居环境提升改造项目 | G10: 2025年 | H10: 新建 | I10: 三组片区建设1条主路和10条支路，共长695.2m，水泥砼路面宽5～10m，五组片区建设1条主路和18条支路，共长963.9m，水泥砼路面宽3～9m； | J10: 366.00 | K10: 300.00 | L10: 300.00 | M10: 0.00 | N10: 1580 | O10: 4340 | P10: 6 | Q10: 16 | R10: 提升人居环境，打造为产业兴、环境美、生活甜、治理优的和美示范社区。 | S10: 否 | T10: 吸纳农村劳动力稳定就业增收—股权合作 | U10: 是 | V10: 否 | W10: 否 | X10: 否 | Y10: 许俊 | Z10: 13988412037 | AA10: 红塔区农业农村局（乡村振兴局） | AB10: 大营社区 | AC10: 是 | AD10: 是
A11: 6 | B11: 红塔区 | C11: 北城街道 | D11: 大营社区 | E11: 产业发展—产业园（区） | F11: 北城街道大营社区等2个社区牛羊屠宰厂建设项目 | G11: 2025年 | H11: 新建 | I11: 建设牛羊屠宰车间720m²，购买设备及其他附属设施 | J11: 1200.00 | K11: 370.00 | L11: 370.00 | M11: 0.00 | N11: 153 | O11: 489 | P11: 14 | Q11: 34 | R11: 集中建设肉牛羊集中屠宰，项目建成后，有效促进当地群众增收，发挥衔接资金撬动社会资本的作用。 | S11: 否 | T11: 吸纳农村劳动力稳定就业增收—股权合作 | U11: 是 | V11: 否 | W11: 否 | X11: 否 | Y11: 普荣金 | Z11: 15987706123 | AA11: 红塔区农业农村局（乡村振兴局） | AB11: 大营社区 | AC11: 是 | AD11: 是
A12: 7 | B12: 红塔区 | C12: 北城街道 | D12: 大营社区、梅园社区、莲池社区 | E12: 乡村建设行动—村容村貌提升 | F12: 红塔区北城街道民族团结进步示范乡镇项目 | G12: 2025年 | H12: 新建 | I12: 打造莲池社区3组美食街区，完善梅园社区道路设施，建设大营社区等2个社区牛羊屠宰厂建设项目屠宰车间及附属设施等 | J12: 430.00 | K12: 405.00 | L12: 405.00 | M12: 0.00 | N12: 2348 | O12: 6906 | P12: 2 | Q12: 4 | R12: 项目完成后，相关社区得到更好的发展机会、生产环境将全面提升。 | S12: 否 | T12: 促进农户共享资产收益增收—入股经营获取收益及分红 | U12: 是 | V12: 否 | W12: 否 | X12: 否 | Y12: 李红月 | Z12: 18708776024 | AA12: 红塔区民宗局 | AB12: 大营社区、梅园社区、莲池社区 | AC12: 是 | AD12: 是
A13: 8 | B13: 红塔区 | C13: 北城街道 | D13: 大石板 | E13: 乡村建设行动—村容村貌提升 | F13: 北城街道大石板社区民族村寨旅游提升工程项目 | G13: 2025年 | H13: 新建 | I13: 社区主要道路沿线安装路灯,破损围墙拆除65m，破损地面拆除52.5㎡，排水沟35m，安全防护栏65m，DN65钢丝网骨架复合管145m，碎石场地120㎡，铺装地面55㎡。管道工程：包含新增DN50PE给水管一条，离心泵一台及其配套设施 | J13: 50.00 | K13: 30.00 | L13: 30.00 | M13: 0.00 | N13: 432 | O13: 1470 | P13: 24 | Q13: 67 | R13: 提升北城街道大石板社区民族村寨旅游效果，稳步推进乡村振兴 | S13: 否 | T13: 吸纳农村劳动力稳定就业增收—股权合作 | U13: 是 | V13: 否 | W13: 否 | X13: 否 | Y13: 李红月 | Z13: 18708776024 | AA13: 红塔区民宗局 | AB13: 大石板 | AC13: 是 | AD13: 是
A14: 9 | B14: 红塔区 | C14: 春和街道 | D14: 孙井社区 | E14: 产业发展—种植业基地 | F14: 春和街道孙井社区高效设施农业示范项目(一期） | G14: 2025年 | H14: 新建 | I14: 建设现代化设施温室大棚48亩，配套控温、控湿、控光的相关设备、安装净化水设施，铺设滴管设施并配套机耕路、排洪沟渠、水肥一体设施等。 | J14: 111.00 | K14: 80.00 | L14: 80.00 | M14: 0.00 | N14: 1161 | O14: 3591 | P14: 0 | Q14: 0 | R14: 项目建成后，通过种植彩椒、草莓、甜瓜、农特产品展销、预计每年收益320万元，实现纯收入120万元。 | S14: 否 | T14: 带动农户发展生产增产增收—订单生产 | U14: 是 | V14: 否 | W14: 否 | X14: 否 | Y14: 许俊 | Z14: 13988412037 | AA14: 红塔区农业农村局（乡村振兴局） | AB14: 孙井社区 | AC14: 是 | AD14: 是
A15: 10 | B15: 红塔区 | C15: 春和街道 | D15: 黄草坝村 | E15: 产业发展—休闲农业与乡村旅游 | F15: 春和街道黄草坝村民族手工业融合创新发展项目 | G15: 2025年 | H15: 新建 | I15: 建设电烤房一个，腊肉和咸菜设备一套。 | J15: =K15 -> 20.00 | K15: =L15+M15 -> 20.00 | L15: 20.00 | M15: 0.00 | N15: 432 | O15: 1470 | P15: 24 | Q15: 67 | R15: 促进当地特色产业发展 | S15: 否 | T15: 促进农户共享资产收益增收—入股经营获取收益及分红 | U15: 是 | V15: 否 | W15: 否 | X15: 否 | Y15: 李红月 | Z15: 18708776024 | AA15: 红塔区民宗局 | AB15: 黄草坝村 | AC15: 是 | AD15: 是
A16: 11 | B16: 红塔区 | C16: 洛河乡 | D16: 洛河村委会连山坡 | E16: 乡村建设行动—村容村貌提升 | F16: 洛河村委会四组（连山坡）旧村改造项目(一期） | G16: 2025年 | H16: 新建 | I16: 一、污水处理设施：1、DN400HDPE污主管960米，单价450元，费用43.2万元。2、DN300HDPE污支管1155米，单价350元，费用40.43万元。3、φ1000圆形塑料检查井28座，单价3800元，费用10.64万元。4、φ700圆形塑料检查井40座，单价2100元，费用8.4万元。5、污水处理设施2座，单价20万元，费用40万元。 二、引水工程：1、DN50镀锌管主管2960米，单价58元，费用17.17万元。2、DN25镀锌管岔管2360米，单价35元，费用8.26万。 三、村内道路硬化工程：1、8m宽60mm厚沥青综合料面层，200mm填隙碎石层，长200米，单价550元，费用11万元。2、6m宽60mm厚沥青综合料面层，200mm填隙碎石层，长480米，单价430万元，费用20.64万元。 四、基础照明工程：7m 高太阳能灯10盏，单价5500元，费用5.5万元。 五、人畜分离：新建集中养殖场2000平方米，含单层钢结构建筑、场地水电，单价500元，费用100万元。 | J16: 154.85 | K16: 144.00 | L16: 144.00 | M16: 0.00 | N16: 153 | O16: 489 | P16: 14 | Q16: 34 | R16: 村庄道路的硬化，路灯、雨污管网、污水处理设施的完善，将解决洛河村委会四组的出行问题，以及改善村庄人居环境；饮水管网建设将解决洛河村委会四组饮水困难的问题。 便利的交通及优美的村庄环境，将增加村庄与外界交流的机会，进一步促使外界了解洛河村委会四组，给村组带来更大的商机，促进其他产业的发展。 | S16: 否 | T16: 吸纳农村劳动力稳定就业增收—股权合作 | U16: 是 | V16: 否 | W16: 否 | X16: 否 | Y16: 普荣金 | Z16: 15987706123 | AA16: 红塔区农业农村局（乡村振兴局） | AB16: 洛河村委会连山坡 | AC16: 是 | AD16: 是
A17: 12 | B17: 红塔区 | C17: 洛河乡 | D17: 双龙村 | E17: 乡村建设行动—农村道路建设（通村路、通户路、小型桥梁等） | F17: 洛河乡双龙村集中安置区“补短板、促发展”建设项目 | G17: 2025年 | H17: 新建 | I17: 道路硬化439.4米，新建污水管网450米，新建排水检查井32座，新建雨水口34座。 | J17: 90.00 | K17: 90.00 | L17: 90.00 | M17: 0.00 | N17: 153 | O17: 489 | P17: 14 | Q17: 34 | R17: 改善当地道路，排水等条件 | S17: 否 | T17: 吸纳农村劳动力参与项目建设—吸纳就业 | U17: 是 | V17: 是 | W17: 否 | X17: 否 | Y17: 李红月 | Z17: 18708776024 | AA17: 红塔区发改局 | AB17: 双龙村 | AC17: 是 | AD17: 是
A18: 13 | B18: 红塔区 | C18: 洛河乡 | D18: 法冲村 | E18: 产业发展—新型农村集体经济发展项目 | F18: 洛河乡室内层架式红托竹荪种植产业建设项目 | G18: 2025年 | H18: 新建 | I18: 1,新建1200*3500*8000规格的不锈钢出菇层架206套.2,新建103座电子烤房的增光系统206套.3,新建103座电子烤房增湿系统206套.4,新建1200*3500*8000规格的不锈钢烘烤格网板206块(格板用于烘干樱桃,核桃,中药材等农产品). | J18: 394.20 | K18: 392.00 | L18: 392.00 | M18: 0.00 | N18: 240 | O18: 800 | P18: 13 | Q18: 31 | R18: 发展法冲村委会干沟村食用菌产业项目,壮大法冲村集体经济 | S18: 否 | T18: 吸纳农村劳动力稳定就业增收—股权合作 | U18: 是 | V18: 否 | W18: 否 | X18: 否 | Y18: 普侠兴 | Z18: 15096788818 | AA18: 红塔区农业农村局（乡村振兴局） | AB18: 法冲村 | AC18: 是 | AD18: 否
A19: 14 | B19: 红塔区 | C19: 大营街街道 | D19: 赵桅社区 | E19: 乡村建设行动—村容村貌提升 | F19: 2025年红塔区学习运用浙江“千万工程”大营街街道赵桅社区示范村建设项目 | G19: 2025年 | H19: 新建 | I19: 完善村庄基础设施短板，实施道路硬化工程、排水管网工程、排水沟盖板工程等项目。 | J19: 56.15 | K19: =L19+M19 -> 50.00 | L19: 50.00 | M19: 0.00 | N19: 729 | O19: 2429 | P19: 66 | Q19: 261 | R19: 该项目的实施采取“村集体股份经济合作联合社+村小组股份经济合作社+农户”的模式，由村股份经济合作联合社争取衔接资金投入，村小组股份合作社负责日常管理维护，村民采取到基地务工提高收入的方式带动村民增收；预计解决长期务工5人，季节性务工20人；同时可带动周边农户种植除虫菊增加收入。 | S19: 否 | T19: 吸纳农村劳动力稳定就业增收—股权合作 | U19: 是 | V19: 否 | W19: 否 | X19: 否 | Y19: 谢永林 | Z19: 13987720421 | AA19: 红塔区农业农村局（乡村振兴局） | AB19: 赵桅社区 | AC19: 是 | AD19: 是
A20: 15 | B20: 红塔区 | C20: 玉带街道 | D20: 郑井社区 | E20: 产业发展—特色种植 | F20: 洛河乡洛河村等4个（村）社区高端温室种植坊建设项目 | G20: 2025年 | H20: 新建 | I20: 建设现代钢架结构温室7亩，共投资340万元，项目主要为： （1）280万元衔接资金： ①5333平方米温室及附属配套温室设施共计143.5万元。②灌溉系统55万元。③种植设施及基质40万元。④建设采收处理车间270平方米，切花处理台6个，废物回收设备1套，共计20.5万元。⑤配套电力、安保设施28万元。 （2）70万元自筹资金： ①土地平整5400平方米，6万元。②道路硬化1150平方米，17.25万元。③安全系统10万元。④支付15年土地租金36.75万元。 | J20: 300.00 | K20: 280.00 | L20: 280.00 | M20: 0.00 | N20: 3228 | O20: 10367 | P20: 345 | Q20: 1294 | R20: 该项目的实施由社区争取衔接资金投入，村办公司负责运营，带动村民加入的方式带动村民增收。项目建成可实现每亩保底生产20万支单头鲜切花，AB级占比60以上。盘活集体闲置资源，提供多个就业岗位提高村民收入，对美丽宜居乡村建设和乡村振兴起到了促进作用。 | S20: 否 | T20: 村办集体公司，村、社区10367人享受分红收益。 | U20: 是 | V20: 否 | W20: 否 | X20: 否 | Y20: 宋剑峰 | Z20: 18687739688 | AA20: 红塔区委组织部 | AB20: 郑井社区 | AC20: 是 | AD20: 是
A21: 16 | B21: 红塔区 | C21: 春和街道 | D21: 王大户社区 | E21: 产业发展—产业园（区） | F21: 春和街道王大户社区宜居宜业和美示范村创建项目（二期） | G21: 2025年 | H21: 新建 | I21: 建设现代化指挥温室大棚17000㎡，兰花协会园区道路硬化900米，补光设备50台、水净化设施2套。 | J21: =K21 -> 300.00 | K21: 300.00 | L21: 196.00 | M21: 104.00 | N21: 1580 | O21: 4340 | P21: 6 | Q21: 16 | R21: 实施宜居宜业和美示范村创建项目，推动高原特色现代农业产业发展，增加村集体经济收入，把王大户社区打造为产业兴、环境美、生活甜、治理优的和美示范社区。 | S21: 否 | T21: 促进农户共享资产收益增收—土地流转获得租金 | U21: 是 | V21: 否 | W21: 否 | X21: 是 | Y21: 许俊 | Z21: 13988412037 | AA21: 红塔区农业农村局（乡村振兴局） | AB21: 王大户社区 | AC21: 否 | AD21: 否
A22: 17 | B22: 红塔区 | C22: 洛河乡 | D22: 法冲村 | E22: 产业发展—产业园（区） | F22: 红塔区洛河彝族乡法冲村委会2025年以工代赈项目 | G22: 2025年 | H22: 新建 | I22: 林下灌木丛清理200072㎡、围网建设4520m、新建1000m³柔性蓄水池1个、供水管网建设72923m、挖天麻种植坑20100个、天麻种植坑清理20100个、设施管理用房156.24㎡等。 | J22: 393.00 | K22: 393.00 | L22: 393.00 | M22: 0.00 | N22: 153 | O22: 489 | P22: 14 | Q22: 34 | R22: 项目建成后，实现以工代赈效果，有效促进当地群众增收，发挥衔接资金撬动社会资本的作用。 | S22: 否 | T22: 吸纳农村劳动力稳定就业增收—股权合作 | U22: 是 | V22: 否 | W22: 否 | X22: 是 | Y22: 普荣金 | Z22: 15987706123 | AA22: 红塔区农业农村局（乡村振兴局） | AB22: 法冲村 | AC22: 否 | AD22: 否
A23: 18 | B23: 红塔区 | C23: 研和街道 | D23: 贾井社区 | E23: 产业发展—休闲农业与乡村旅游 | F23: 红塔区研和街道贾井社区南湖景区文旅民宿产业建设项目 | G23: 2025年 | H23: 新建 | I23: 项目建设内容：计划建设民宿房屋4间及相应的配套基础设施。每间民宿为28平方米，用竹木材质建造，每间概算15万元，合计60万元；透水砖铺设 80平方米 ，概算20万元。 | J23: 85.00 | K23: 85.00 | L23: 70.00 | M23: 15.00 | N23: 2215 | O23: 6481 | P23: 5 | Q23: 12 | R23: 项目为南湖景区乡村民宿建设，位于南湖景区界限内，建成后显著提升附近村庄人居环境，同时解决社区就业问题，对整体南湖公园项目也能起到引流推广的作用。项目建成后租赁给玉溪荣旺项目管理有限公司运营，每年收取固定收益租金5万元壮大社区集体经济。 | S23: 否 | T23: 促进农户共享资产收益增收—入股经营获取收益及分红 | U23: 是 | V23: 否 | W23: 否 | X23: 是 | Y23: 赖正声 | Z23: 13887783096 | AA23: 红塔区委组织部 | AB23: 贾井社区 | AC23: 否 | AD23: 否
A24: 19 | B24: 红塔区 | C24: 研和街道 | D24: 研和社区 | E24: 产业发展—庭院特色休闲旅游 | F24: 红塔区研和街道研和社区南湖景区文旅民宿产业建设项目 | G24: 2025年 | H24: 新建 | I24: 项目建设内容：计划建设民宿房屋3间及相应的配套基础设施提升改造。每间民宿为36平方米，用竹木材质建造，每间概算22万元，合计66万元；透水砖铺设 60平方米 ，概算14万元。 | J24: 80.00 | K24: 80.00 | L24: 70.00 | M24: 10.00 | N24: 1912 | O24: 4930 | P24: 3 | Q24: 14 | R24: 项目为南湖景区乡村民宿建设，位于南湖景区界限内，建成后显著提升附近村庄人居环境，同时解决社区就业问题，对整体南湖公园项目也能起到引流推广的作用。项目建成后租赁给玉溪荣旺项目管理有限公司运营，每年收取固定收益租金5万元壮大社区集体经济。 | S24: 否 | T24: 促进农户共享资产收益增收—入股经营获取收益及分红 | U24: 是 | V24: 否 | W24: 否 | X24: 是 | Y24: 杨东 | Z24: 13013486775 | AA24: 红塔区委组织部 | AB24: 研和社区 | AC24: 否 | AD24: 否
A25: 20 | B25: 红塔区 | C25: 小石桥乡 | D25: 响水村、玉苗村 | E25: 产业发展—产业园（区） | F25: 红塔区小石桥乡民族团结进步示范乡项目 | G25: 2025年 | H25: 新建 | I25: （1）投资257万建设特色农产品综合交易中心。拆除原有危房整合闲置土地新建综合用房，共2层单层建筑面积584㎡总建筑面积1168㎡，层高一层4.2米二层3.9米，主要用于特色农产品交易、展示以及网络直播带货、农资销售等农业服务设施。其中一楼用于特色农产品交易展示，二楼用于特色农产品初加工、网络直播带货、农资销售等。 （2）投资101万元完善响水村二组、三组基础设施。对1850米进村道路进行硬化提升，道路宽3-5米投资约74万元、修缮雨污分流及水电完善总投资13.3万元，新建村内太阳能路灯25盏投资13.7万元。 （3）投资65万元实施现代高端特色蔬菜种植项目。建设占地4亩大棚，购买水肥一体机，修建20方水池一个，安装喷灌系统，新建32㎡简易生产用房一间。 （4）投资312万元实施年产800吨烘干产品项目（乡村振兴衔接资金补助100万元、村委会自筹10万元、合作企业投资202万元）。占地面积约2亩，其中：新建厂房建筑面积1200平方米，投资192万元；场地硬化1200平方米，投资45万元；室外变压器1台，电缆架设150m，投资25万元；给排水管网180m，投资20万元；烘干设备生产线1条，投资120万元。 | J25: 735.00 | K25: =L25+M25 -> 735.00 | L25: 500.00 | M25: 235.00 | N25: 329 | O25: 936 | P25: 76 | Q25: 265 | R25: 项目实施后成效显著，一是解决村委会周边680户1992名农户没有交易市场的突出矛盾和热难点问题，改善占道经营现象，拓宽农户销售渠道，增加农民收入，增加就业岗位30个以上，增加村集体经济收益12万元。二是完善进村道路，解决群众出行难问题，提升响水村的人居环境。三是通过“村办公司+彝丰农业合作社+脱贫户”模式，壮大村集体收入，带动和吸纳周边各民族群众种植高端蔬菜，壮大本地农产品特色产业发展，吸纳脱贫户返乡就业，促进脱贫户稳定增收，基层治理平安和谐。四是以“村集体+企业+农户”的模式，由企业自主运营。村集体以厂房、设备、土地等形式入股，企业投资并运营项目，企业按照约定每年定期支付收益给村集体，企业对厂房、设备等进行使用、管理和维护，农户按照企业需求，种植蔬菜供企业生产。 | S25: 否 | T25: 促进农户共享资产收益增收—入股经营获取收益及分红 | U25: 是 | V25: 否 | W25: 否 | X25: 是 | Y25: 李红月 | Z25: 18708776024 | AA25: 红塔区民宗局 | AB25: 响水村、玉苗村 | AC25: 否 | AD25: 否
A26: 21 | B26: 红塔区 | C26: 洛河乡 | D26: 法冲村 | E26: 产业发展—休闲农业与乡村旅游 | F26: 红塔区洛河乡法冲村委会老矣黑村民族团结进步示范村项目 | G26: 2025年 | H26: 新建 | I26: 投资116万元在洛河乡法冲村委会老矣黑村实施文旅融合发展项目，建设游客接待和民俗体验活动室。主要建设内容：新建民俗体验活动室300㎡、改造游客接待中心400㎡及相关配套设施等。 | J26: 116.00 | K26: 116.00 | L26: 100.00 | M26: 16.00 | N26: 153 | O26: 489 | P26: 14 | Q26: 34 | R26: 老矣黑村位于高鲁山核心区具有良好的生态旅游资源，文旅发展潜力大，洛河乡政府拟通过文旅融合发展，带动民族地区共同进步。该项目的实施采取“村集体股份经济合作联合社+村小组集体入股+营业公司运作管理”，可以实现村委会和村小组集体资金壮大，由村股份经济合作联合社争取衔接资金投入，通过招商专业的民俗文化运营商负责经营，集民俗文化互动、农耕体验、品尝体验、加工体验为载体，村民参与务工提高收入。同时通过示范带动当地群众发展文旅产业增收致富，带动群众增收。 | S26: 否 | T26: 促进农户共享资产收益增收—入股经营获取收益及分红 | U26: 是 | V26: 否 | W26: 否 | X26: 是 | Y26: 李红月 | Z26: 18708776024 | AA26: 红塔区民宗局 | AB26: 法冲村 | AC26: 否 | AD26: 否
A27: 22 | B27: 红塔区 | C27: 春和街道 | D27: 黑村社区 | E27: 乡村建设行动—村容村貌提升 | F27: 红塔区春和街道黑村社区民族团结进步示范社区项目 | G27: 2025年 | H27: 新建 | I27: 修建一条长450米，宽4.5米的机耕路，路基修建400米、路面硬化450米，其中路基方面含:现场清理、土方开挖回填、土石方运输、混凝土浇筑挡土墙、路基路床夯实等预计15万元。路面方面含:厚200mm的水泥稳定碎石底基层、基层;厚100mm的级配碎(砾)石底基层、基层;厚60mm的沥青铺装路面及相关辅助材料等预计30万元。安全实施和预埋管材以及项目管理费用、安全文明施工费用等预计5万元。 | J27: 50.00 | K27: 50.00 | L27: 40.00 | M27: 10.00 | N27: 2348 | O27: 6906 | P27: 2 | Q27: 4 | R27: 项目完成后，黑村社区现代农业基地和该片区农田将得到有力的保障和更好的发展、生产环境将全面提升。路硬化和排水沟修建有助于黑村社区128亩的现代农业基地以及周边2000多名群众的500余亩农田的生产运输环境带来改善，以及在雨季排水能力的提升，受水灾风险减小。 | S27: 否 | T27: 促进农户共享资产收益增收—入股经营获取收益及分红 | U27: 是 | V27: 否 | W27: 否 | X27: 是 | Y27: 李红月 | Z27: 18708776024 | AA27: 红塔区民宗局 | AB27: 黑村社区 | AC27: 否 | AD27: 否
A28: 23 | B28: 红塔区 | C28: 春和街道 | D28: 黄草坝村 | E28: 乡村建设行动—村容村貌提升 | F28: 红塔区春和街道黄草坝村民族团结进步示范村项目 | G28: 2025年 | H28: 新建 | I28: 1、新建1000立方高位储水池1个， 2、对玉碗水原有的小坝塘进行加固整治，进行加固水池、防漏改造；铺设水管3000米。 | J28: 135.60 | K28: 135.60 | L28: 100.00 | M28: 35.60 | N28: 432 | O28: 1470 | P28: 24 | Q28: 67 | R28: 1、解决农户生活生产用水、改善村民生活条件，提升农业生产效益，帮助农户增收，切实推动地区发展。 2、水池加固完成后能解决森林火灾及民房火灾的消防用水，保障玉碗水小组300多亩地的生产用水。 | S28: 否 | T28: 促进农户共享资产收益增收—入股经营获取收益及分红 | U28: 是 | V28: 否 | W28: 否 | X28: 是 | Y28: 李红月 | Z28: 18708776024 | AA28: 红塔区民宗局 | AB28: 黄草坝村 | AC28: 否 | AD28: 否
A29: 24 | B29: 红塔区 | C29: 大营街街道 | D29: 大密罗社区 | E29: 产业发展—种植业基地 | F29: 红塔区大营街街道大密罗社区民族团结进步示范村项目 | G29: 2025年 | H29: 新建 | I29: 投资104.67万元在大密罗社区大水冲实施除虫菊产业发展项目，由大密罗社区水田彝谷农业公司租用八九十组25亩农田栽种除虫菊。其中，投资36.8万元新建农业生产大棚23亩；投资24万元浇筑排洪河道800米；投资10.17万元新建机耕路806米，宽2.5米，表面铺设瓜子石；投资7.2万元浇筑除虫菊晾晒场地900平方米；投资22万元新建除虫菊仓库200平方米；其他费用4.5万元。 | J29: 104.67 | K29: 104.67 | L29: 100.00 | M29: 4.67 | N29: 729 | O29: 2429 | P29: 66 | Q29: 261 | R29: 该项目的实施采取“村集体股份经济合作联合社+村小组股份经济合作社+农户”的模式，由村股份经济合作联合社争取衔接资金投入，村小组股份合作社负责日常管理维护，村民采取到基地务工提高收入的方式带动村民增收；预计解决长期务工5人，季节性务工20人；同时可带动周边农户种植除虫菊增加收入。 | S29: 否 | T29: 促进农户共享资产收益增收—入股经营获取收益及分红 | U29: 是 | V29: 否 | W29: 否 | X29: 是 | Y29: 李红月 | Z29: 18708776024 | AA29: 红塔区民宗局 | AB29: 大密罗社区 | AC29: 否 | AD29: 否
A30: 25 | B30: 红塔区 | C30: 红塔区乡村振兴局 | D30: 红塔区 | E30: 产业发展—小额贷款贴息 | F30: 产业发展-小额贷款贴息 | G30: 2025年 | H30: 新建 | I30: 通过一卡通系统为获得小额信贷的脱贫户发放贴息资金，利息由财政全额贴息，1年期（含）以下贷款利率不超过1年期LPR，1年期至3年期（含）贷款利率不超过5年期以上LPR，全年计划补助不少于300户，计划投入补助资金75万元。 | J30: 70.00 | K30: 70.00 | L30: 70.00 | M30: 0.00 | N30: 350 | O30: 1050 | P30: 350 | Q30: 1050 | R30: 通过实施“脱贫人口小额信贷”工作，为脱贫人口发展产业提供资金支持，同时财政贴息减轻了农户获得资金的成本压力，帮助脱贫人口通过发展产业实现增收目标。 | S30: 是 | T30: 带动农户发展生产增产增收—其他 | U30: 不涉及 | V30: 否 | W30: 否 | X30: 否 | Y30: 代云鹏 | Z30: 15987099687 | AA30: 红塔区农业农村局（乡村振兴局） | AB30: 不形成资产 | AC30: 否 | AD30: 否
A31: 26 | B31: 红塔区 | C31: 红塔区乡村振兴局 | D31: 红塔区 | E31: 巩固三保障成果—享受“雨露计划”职业教育补助 | F31: 巩固三保障成果-享受“雨露计划”职业教育补助 | G31: 2025年 | H31: 新建 | I31: 对符合条件的接受中高等职业教育的脱贫家庭（含监测对象）学生进行补助，补助标准为1500-2500元/人/学期。（接受全日制普通大专、高职院校、技师学院、职业本科院校等高等职业教育的补助标准为2500元/人/学期，接受全日制普通中专、技工院校中等职业教育的补助标准为2000元/人/学期，接受全日制职业高中中等职业教育的补助标准为1500元/人/学期） | J31: 80.00 | K31: 80.00 | L31: 80.00 | M31: 0.00 | N31: 180 | O31: 540 | P31: 180 | Q31: 540 | R31: 通过“雨露计划”实施工作，对脱贫人口及监测对象接受中、高等职业教育的子女做到应补尽补，提升接受补助的脱贫人口及监测对象接受中、高等职业教育的子女的就业率。 | S31: 是 | T31: 吸纳农村劳动力稳定就业增收—其他 | U31: 不涉及 | V31: 否 | W31: 否 | X31: 否 | Y31: 代云鹏 | Z31: 15987099687 | AA31: 红塔区农业农村局（乡村振兴局） | AB31: 不形成资产 | AC31: 否 | AD31: 否
A32: 27 | B32: 红塔区 | C32: 红塔区就业局 | D32: 红塔区 | E32: 就业项目—技能培训 | F32: 就业项目-技能培训 | G32: 2025年 | H32: 新建 | I32: 对有培训意愿的脱贫户（监测户）开展种植业培训，计划培训185人。 | J32: 40.00 | K32: 40.00 | L32: 40.00 | M32: 0.00 | N32: 185 | O32: 550 | P32: 185 | Q32: 550 | R32: 保障具有劳动力的建档立卡贫困人口户有一技之长，适应社会需求，能自食其力，为家庭创收，改变家庭贫困，早日脱贫。 | S32: 是 | T32: 吸纳农村劳动力稳定就业增收—其他 | U32: 不涉及 | V32: 否 | W32: 否 | X32: 否 | Y32: 廖梓成 | Z32: 18687769086 | AA32: 红塔区人社局（红塔区就业局） | AB32: 不形成资产 | AC32: 否 | AD32: 否
A33: 28 | B33: 红塔区 | C33: 春和街道、北城街道 | D33: 黄草坝、波衣、大石板、莲池 | E33: 产业发展—休闲农业与乡村旅游 | F33: 红塔区竹产业发展项目 | G33: 2025年 | H33: 新建 | I33: 红塔区竹产业发展总面积为1.5万亩，其中布局于春和街道黄草坝社区6195亩，配备2个大型蓄水池、2个水泵站、铺设供水管网5000米；布局于春和街道波衣社区6765亩，配备2个大型蓄水池、2个水泵站、铺设供水管网4000米；布局于北城街道大石板社区1635亩，配备2个大型蓄水池、2个水泵站、铺设供水管网5000米；布局于北城街道莲池社区405亩， | J33: 898.37 | K33: 898.37 | L33: 382.00 | M33: 516.37 | N33: 432 | O33: 1470 | P33: 24 | Q33: 67 | R33: 三年发展6195亩笋用竹 | S33: 否 | T33: 吸纳农村劳动力稳定就业增收—股权合作 | U33: 是 | V33: 否 | W33: 否 | X33: 是 | Y33: 许俊 | Z33: 13988412037 | AA33: 红塔区林草局 | AB33: 黄草坝、波衣、大石板、莲池 | AC33: 否 | AD33: 否
A34: 29 | B34: 红塔区 | C34: 春和、北城等街道 | D34: 黄草坝、波衣、大石板、莲池等社区 | E34: 就业项目—帮扶车间（特色手工基地）建设 | F34: 就业项目—帮扶车间（特色手工基地）建设 | G34: 2025年 | H34: 新建 | I34: 就业帮扶车间计划吸纳脱贫劳动力140人 | J34: 110.00 | K34: 110.00 | L34: 110.00 | M34: 0.00 | N34: 140 | O34: 420 | P34: 140 | Q34: 420 | R34: 实施就业帮扶车间项目，帮助实现就业帮扶有 | S34: 否 | T34: 吸纳农村劳动力稳定就业增收—其他 | U34: 不涉及 | V34: 否 | W34: 否 | X34: 否 | Y34: 孙睿 | Z34: 18987733030 | AA34: 红塔区人社局（红塔区就业局） | AB34: 不形成资产 | AC34: 否 | AD34: 否
A35: 30 | B35: 红塔区 | C35: 大营街街道 | D35: 大密罗社区 | E35: 产业发展—庭院特色休闲旅游 | F35: 红塔区大营街街道大密罗社区文旅融合产业发展项目 | G35: 2025年 | H35: 新建 | I35: 1、将上龙潭老公房改建为民宿，建筑面积480平方米，计划投资24万元。 2、将上龙潭党支部底层4间办公室建面60平方米，改造成民宿，投资1.8万元。 3、将塔娜庄园旁7间老烤房改造成民宿，建面210平方米，计划投资21万元。 4、大密罗幼儿园加盖两层做民宿，改造底层392平方米，新建两层钢架房784平方米，投资133.28万元。 5、配套设施（水、电、巷道硬化、场地硬化、排污等）计划投资20万元。 | J35: 209.68 | K35: 209.68 | L35: 180.00 | M35: 29.68 | N35: 701 | O35: 2426 | P35: 66 | Q35: 261 | R35: 该项目的实施采取“村集体股份经济合作联合社+公司+农户”的模式，由村股份经济合作联合社争取衔接资金投入，公司负责运营，带动村民加入的方式带动村民增收。项目建成可实现村组集体经济增收20万，增加贫困户利益联结机制，提供多个就业岗位提高村民收入，助销本地多类农特产品（蔬菜、密罗桃、野山菌）的销售。“以农带旅，以旅兴农”，盘活集体闲置资源，带动周边85户农户闲置民房部分加入做民宿产业增加收入，带动附近8家农家乐产业增收。同时也提升了人居环境，对美丽宜居乡村建设和乡村振兴起到了促进作用。 | S35: 否 | T35: 农户（村集体）直接入股经营。 | U35: 是 | V35: 否 | W35: 否 | X35: 是 | Y35: 李晓琼 | Z35: 13987759846.00 | AA35: 红塔区农业农村局（乡村振兴局） | AB35: 大密罗社区 | AC35: 否 | AD35: 否
A36: 31 | B36: 红塔区 | C36: 红塔区就业局 | D36: 红塔区 | E36: 就业项目—跨省务工及省内跨州（市）务工脱贫劳动力一次性交通补助 | F36: 就业项目—跨省务工及省内跨州（市）务工脱贫劳动力一次性交通补助 | G36: 2025年 | H36: 新建 | I36: 对符合标准的跨省就业脱贫劳动力（含监测帮扶对象），按照每人每年不超过1000元的标准给予外出务工一次性交通补助；对符合标准的省内跨州(市)就业脱贫劳动力(含监测帮扶对象)，按照每人每年不超过500元的标准给予外出务工一次性交通补助。预计补助跨省就业脱贫劳动力（含监测帮扶对象）173人次，省内跨州(市)就业脱贫劳动力(含监测帮扶对象)120人次。 | J36: 23.30 | K36: 23.30 | L36: 23.30 | M36: 0.00 | N36: 293 | O36: 870 | P36: 293 | Q36: 870 | R36: 通过开展跨省务工及省内跨州（市）务工脱贫劳动力一次性交通补助项目,提升脱贫人口和监测对象外出务工的就业意愿，促进了脱贫人口和监测对象的稳岗就业。 | S36: 是 | T36: 吸纳农村劳动力稳定就业增收—其他 | U36: 不涉及 | V36: 否 | W36: 否 | X36: 否 | Y36: 孙睿 | Z36: 18987733030.00 | AA36: 红塔区人社局（红塔区就业局） | AB36: 不形成资产 | AC36: 否 | AD36: 否
A37: 32 | B37: 红塔区 | C37: 小石桥乡 | D37: 玉苗村 | E37: 产业发展—特色种植 | F37: 小石桥乡玉苗村高原特色现代农业产业基地建设项目 | G37: 2025年 | H37: 新建 | I37: 一、常规标准棚建设。 （1）连栋温室主体，面积3335㎡，包括灌溉设施、半自动消毒系统、漫雾式全自动打药系统，拟投资398866元；加工安装费，拟投资92546元； （2）遮阳系统，面积3335㎡，拟投资52026元；加工安装费，37019元；共计合计580457元。 二、 配套设施。 （1）水肥车间，面积300㎡，拟投资43680元；加工安装费，拟投资11655元；共计合计55335元。 三、水肥一体化（三通道）。包括安装费、有A、B、C三通道，全自动化控制系统，拟投资108780元； 四、土地平整及简易生产用房，拟投资55428元。 （一）+（二）+（三）+（四）=800000元。 | J37: 80.00 | K37: 80.00 | L37: 70.00 | M37: 10.00 | N37: 693 | O37: 1961 | P37: 76 | Q37: 265 | R37: 该项目的实施采取“村办公司+农户”的模式，由村级争取项目衔接资金投入，村办公司负责具体运营，带动村民通过加入的方式带动村民增收致富。项目建成可实现村组集体经济增收10万，增加贫困户利益联结机制，提供多个就业岗位提高村民收入，带动和助销本地特色蔬菜的销售。该收益纳入集体“三资”管理，使用严格按照“四议两公开”程序确定，主要用于：公共基础设施建设、公共事务管理和发展公益事业；村干部创收奖励、慰问党员群众、开展助学奖学、救助生活困难党员群众、开展“三会一课”、主题党日等党组织活动和党员群众教育培训，开展群众性文体活动等。 | S37: 否 | T37: 吸纳农村劳动力稳定就业增收 | U37: 是 | V37: 否 | W37: 否 | X37: 是 | Y37: 期绍飞 | Z37: 13887766716.00 | AA37: 红塔区委组织部 | AB37: 玉苗村 | AC37: 否 | AD37: 否
A38: 33 | B38: 红塔区 | C38: 大营街街道 | D38: 甸苴社区 | E38: 产业发展—养殖业基地 | F38: 大营街街道甸苴社区梅花鹿养殖基地二期建设项目 | G38: 2025年 | H38: 改（扩）建 | I38: 大营街街道甸苴社区梅花鹿养殖基地二期建设项目： （1）新建鹿茸加工晾晒区6米×20米； （2）新建青储池一座，18米×4.5米×4米； （3）道路硬化，143.5米×4米; （4）动力线路改造500米; （5）购买鹿茸加工设备。 | J38: 77.15 | K38: 77.15 | L38: 70.00 | M38: 7.15 | N38: 1465 | O38: 4338 | P38: 72 | Q38: 257 | R38: 通过梅花鹿养殖项目的实施，进一步增加社区集体经营性收入，确保已脱贫人口稳定脱贫，防止返贫现象的发生。甸苴社区农业发展有限公司梅花鹿养殖基地项目扩建申报是通过发展梅花鹿特色养殖产业，巩固脱贫攻坚成果，推动乡村振兴，提升产业发展水平，促进社区可持续发展。 | S38: 否 | T38: 吸纳农村劳动力稳定就业增收，解决农户玉米粒销售10吨，玉米秆销售400吨，待养殖技术成熟时带动农户养殖。 | U38: 是 | V38: 否 | W38: 否 | X38: 是 | Y38: 王家恒 | Z38: 13987753566.00 | AA38: 红塔区委组织部 | AB38: 甸苴社区 | AC38: 否 | AD38: 否
A39: 34 | B39: 红塔区 | C39: 洛河乡 | D39: 把者岱村 | E39: 乡村建设行动—村容村貌提升 | F39: 红塔区洛河乡把者岱村委会锅西甸村民族团结进步示范村项目 | G39: 2025年 | H39: 新建 | I39: 1.污水管：DN150污水管360米、DN400污水管1300米、DN600污水管400米、检查井50座； 2.雨水管：DN150雨水管360米、DN400雨水管1300米、DN600雨水管400米、水箅子50座； 3.人饮管道DN100水池到村内主管980米、DN50镀锌管主管2150米、岔管DN25镀锌管1730米、200立方人饮蓄水池一座。 | J39: 105.00 | K39: 105.00 | L39: 100.00 | M39: 5.00 | N39: 135 | O39: 535 | P39: 39 | Q39: 165 | R39: 村庄雨污管网、污水处理设施的完善，将解决出行问题，以及改善村庄人居环境；饮水管网建设将解决饮水困难的问题。 | S39: 否 | T39: 促进农户共享资产收益增收—入股经营获取收益及分红 | U39: 是 | V39: 否 | W39: 否 | X39: 是 | Y39: 周永坚 | Z39: 18687766726 | AA39: 红塔区民宗局 | AB39: 把者岱村 | AC39: 否 | AD39: 否
A40: 35 | B40: 红塔区 | C40: 研和街道 | D40: 可官社区 | E40: 产业发展—小型农田水利设施建设 | F40: 红塔区研和街道可官社区农业产业管网建设项目(一期) | G40: 2025年 | H40: 新建 | I40: 可官村片区：1、DN100镀锌管671米，2、PE63塑料管9700米，3、PE25塑料管500米，4、角钢管道支架1500公斤，5、PE63球阀17个，6、PE25球阀480个，7、智能水表400套（包含水表箱、配件）； 潘井村片区：1、DN100镀锌管200米，2、PE63塑料管3000米，3、PE25塑料管380米，4、角钢管道支架1000公斤，5、PE63球阀5个，6、PE25球阀200个，7、智能水表220套（包含水表箱、配件）； 玉屏清水河片区：1、DN80镀锌管2000米，2、泵房修缮。 | J40: 130.00 | K40: 104.00 | L40: 104.00 | M40: 0.00 | N40: 799 | O40: 2417 | P40: 3 | Q40: 5 | R40: 项目建成后由社区成立水务公司负责管理经营，项目水源为污水处理厂处理后的中水，日供水量可达600­800立方米，预计农户年用水量18万立方米，计划水费收取价3元/m³，预计可实现年收益54万元。该项目的实施有效解决600亩农田干旱、农业用水短缺等问题，有效提升农产品质量，带动330户农户农业生产发展，有效提高农户经济效益，形成高质、高效的现代化农业基地。 | S40: 是 | T40: 带动农户发展生产增产增收—其他 | U40: 是 | V40: 否 | W40: 否 | X40: 是 | Y40: 廖红军 | Z40: 15987092294 | AA40: 红塔区农业农村局（乡村振兴局） | AB40: 可官社区 | AC40: 是 | AD40: 是
A41: 36 | B41: 江川区 | C41: 星云街道 | D41: 早街社区 | E41: 产业发展—市场建设和农村物流 | F41: 星云街道早街民族团结进步示范村项目 | G41: 2025年 | H41: 新建 | I41: 新建 1 个乡 村农产品交易和物流中心，占地面积约 1705.32m²。临时商 铺搭设，平整、硬化场地，排水沟建设，新建围墙。 | J41: 100.00 | K41: 100.00 | L41: 100.00 | M41: 0.00 | N41: 1646 | O41: 5158 | P41: 12 | Q41: 39 | R41: 完善产业基础设施建设：投资100万元，在早街社区居委会五甲第一居民小组新建1个乡村农产品交易和物流中心，占地面积约2亩。其中，投资30万元，按照230元/平方米的单价，平整硬化场地1300平方米；投资8万元，按照220元/米的单价，铺设雨污管网290米；投资72万元，按照550元/平方米的单价，建盖1层高8.5米钢结构树脂瓦顶的农产品和物流中心。 | S41: 否 | T41: 促进农户共享资产收益增收—其他 | U41: 是 | V41: 否 | W41: 否 | X41: 是 | Y41: 吴冬丽 | Z41: 13887745075.00 | AA41: 玉溪市江川区民宗局 | AB41: 早街社区 | AC41: 是 | AD41: 否
A42: 37 | B42: 江川区 | C42: 星云街道 | D42: 三街社区 | E42: 产业发展—产业园（区） | F42: 江川区三街社区现代设施农业示范基地建设项目 | G42: 2025年 | H42: 新建 | I42: (一)6条农业道路，3.0m宽，总长1517.02m，道路路肩为C25素混凝土，土夹石回填压实路面，压实系数K>0.92%。;4条排水沟0.3m(宽)x0.4m(高)，总长1027.4m排水沟为 C25 素混凝土排水沟。(二)水肥一体灌溉设施安装。(三)基地内低压电力建设(10KV电源由当地电力部门接入)。 | J42: 260 | K42: 260 | L42: 250.87 | M42: 9.13 | N42: 2472 | O42: 7665 | P42: 12 | Q42: 41 | R42: 通过新建230.93亩现代设施农业示范地基地建设，提升土地产值，构建“村党组织+村办公司+农户”生产方式，增加村级集体经济收入每年增加收益80万元以上，保住村组级集体经济收入不减，同时带动周边部分农户就业。 | S42: 否 | T42: 发展产业带动集体增收，农户通过共享收益、土地流转、务工等方式增收 | U42: 是 | V42: 否 | W42: 否 | X42: 是 | Y42: 徐乾清 | Z42: 13013482908.00 | AA42: 区农业农村局 | AB42: 三街社区 | AC42: 是 | AD42: 是
A43: 38 | B43: 江川区 | C43: 宁海街道 | D43: 海浒社区 | E43: 产业发展—其他 | F43: 海浒社区产业路建设项目 | G43: 2025年 | H43: 新建 | I43: （1）产业路道路硬化 2 段 1700m，道路清表，路床整形，风化料回填，排水沟修复。 （2）上海浒、古城村内道路修补硬化约 1055m。 | J43: 150.00 | K43: 150.00 | L43: 150.00 | M43: 0.00 | N43: 1969 | O43: 7934 | P43: 33 | Q43: 123 | R43: 提升产业配套设施，促进沿湖种植业，乡村旅游发展。 | S43: 否 | T43: 带动农户发展生产增产增收—其他 | U43: 是 | V43: 否 | W43: 否 | X43: 是 | Y43: 徐乾清 | Z43: 13013482908 | AA43: 玉溪市江川区农业农村局 | AB43: 海浒社区 | AC43: 是 | AD43: 否
A44: 39 | B44: 江川区 | C44: 宁海街道 | D44: 伏家营社区 | E44: 乡村建设行动—村容村貌提升 | F44: 伏家营社区伏家营小组避难场所建设 | G44: 2025年 | H44: 新建 | I44: 场地硬化1块，面积1352.56㎡，排水沟90m。 | J44: 17.00 | K44: 17.00 | L44: 17.00 | N44: 2079 | O44: 6168 | P44: 43 | Q44: 114 | R44: 通过在倚伏家营修建应急避难场所，进行场地硬化1块，面积1352.56㎡，建排水沟90m。方便群众出行，在突发事件发生时确保群众人生财产安全。 | S44: 否 | T44: 不需要 | U44: 是 | V44: 否 | W44: 否 | X44: 否 | Y44: 徐乾清 | Z44: 13013482908 | AA44: 玉溪市江川区农业农村局 | AB44: 伏家营社区 | AC44: 是 | AD44: 是
A45: 40 | B45: 江川区 | C45: 江城镇 | D45: 海门村 | E45: 产业发展—休闲农业与乡村旅游 | F45: 江城镇海门村“古香海门”农文旅融合发展项目 | G45: 2025年 | H45: 新建 | I45: (1)茶马古道延长线旅游道路修复:修建挡墙总长 130m,高约 3.5m,合计 550m';(2)护栏总长 640m;新建游步道总长 457m。 | J45: 160.00 | K45: 160.00 | L45: 160.00 | M45: 0.00 | N45: 750 | O45: 1897 | P45: 1 | Q45: 4 | R45: 以“两湖原乡 • 海门古驿”为总体定位，紧抓古滇文化和一山观两湖的环境特色，以文体旅融合发展为产业路径，打造集古滇文化体验、高山湖泊休闲度假功能于一体的融合型山地运动休闲度假目的地，通过对海门村的产业、环境和文化进行保护、梳理、提升、改造，植入“文旅＋康养、研学、度假”的业态，实现产业布局结构的优化和调整，从而形成宜居宜业的乡村振兴新局面，将海门村打造成省级文旅带动型乡村振兴示范点、昆玉红旅游文化带上的山地运动度假体验基地、古滇文化体验首选地。 | S45: 否 | T45: 促进农户共享资产收益增收—其他 | U45: 是 | V45: 否 | W45: 否 | X45: 是 | Y45: 李佩佩、徐乾清 | Z45: 18788526631、13013482908 | AA45: 江川区委组织部、玉溪市江川区农业农村局 | AB45: 海门村 | AC45: 是 | AD45: 否
A46: 41 | B46: 江川区 | C46: 江城镇 | D46: 白家营村 | E46: 产业发展—农产品仓储保鲜冷链基础设施建设 | F46: 江城镇白家营村农产品冷链物流基地建设项目 | G46: 2025年 | H46: 新建 | I46: 新建冷库1 个，占地 328.46㎡。 | J46: 70 | K46: 70 | L46: 70 | M46: 0.00 | N46: 3948 | O46: 50 | P46: 180 | R46: 增加村集体经济，带动蔬菜产业发展。 | S46: 否 | T46: 促进农户共享资产收益增收—其他 | U46: 是 | V46: 否 | W46: 否 | X46: 是 | Y46: 李佩佩 | Z46: 18788526631 | AA46: 江川区委组织部 | AB46: 白家营村 | AC46: 是 | AD46: 是
A47: 42 | B47: 江川区 | C47: 江城镇 | D47: 祁家营 | E47: 乡村建设行动—产业路、资源路、旅游路建设 | F47: 江城镇祁家营产业道路建设 | G47: 2025年 | H47: 新建 | I47: 新建3.5m宽道路长888m，新建排水明沟215m；新建路肩墙长158m，过路桥加宽1.1m。 | J47: 67.00 | K47: 67.00 | L47: 67.00 | M47: 0.00 | N47: 490 | O47: 1275 | P47: 75 | Q47: 275 | R47: 对促进村庄未来的发展有着积极的作用，有利于带动村子及附近区域经济社会的发展.通过本项目的建设，提高群众生活质量和生活水平. | S47: 否 | T47: 促进农户共享资产收益增收—其他 | U47: 是 | V47: 否 | W47: 否 | X47: 否 | Y47: 徐乾清 | Z47: 13013482908 | AA47: 玉溪市江川区农业农村局 | AB47: 祁家营 | AC47: 是 | AD47: 是
A48: 43 | B48: 江川区 | C48: 江城镇 | D48: 侯家沟 | E48: 乡村建设行动—村容村貌提升 | F48: 江城镇侯家沟村人居环境提升改造项目 | G48: 2025年 | H48: 新建 | I48: 1.张家头路面硬化600m；2.水沟修建784m；3.应急避难场所25㎡；4.沼气池围墙4m；5.挡墙150m；6.小花圃100㎡（自筹资金）。 | J48: 40.30 | K48: 40.30 | L48: 40.00 | M48: 0.30 | N48: 114 | O48: 336 | P48: 2 | Q48: 9 | R48: 对促进村庄未来的发展有着积极的作用，有利于带动村子及附近区域经济社会的发展.通过本项目的建设，提高群众生活质量和生活水平. | S48: 否 | T48: 促进农户共享资产收益增收—其他 | U48: 是 | V48: 否 | W48: 否 | X48: 否 | Y48: 徐乾清 | Z48: 13013482908 | AA48: 玉溪市江川区农业农村局 | AB48: 侯家沟 | AC48: 是 | AD48: 否
A49: 44 | B49: 江川区 | C49: 前卫镇 | D49: 石河村 | E49: 乡村建设行动—产业路、资源路、旅游路建设 | F49: 前卫镇小石河村民族团结进步示范村项目 | G49: 2025年 | H49: 新建 | I49: （1）硬化小石河村电烤房产业路 1506.94m²，附属挡土墙、围墙，排 水沟 67.2m;(2）在原编烟棚一侧扩建编烟棚 1075.6m2 ;（3）新建太阳能路灯 2 盏。 | J49: 100.00 | K49: 100.00 | L49: 100.00 | M49: 0 | N49: 119 | O49: 356 | P49: 7 | Q49: 27 | R49: 项目位于石河村委会小石河小组，多年来，小石河的群众大多以农业为生，烟草是小石河的主要经济收入来源。项目的实施可以有效解决小石河小组彝族村民拉烟等重力运输打滑、倾覆等安全隐患以及编烟装烟的场地需求，带动小石河村民增产增收，预计每年产生经济效益48万元。 | S49: 否 | T49: 带动农户发展生产增产增收—其他 | U49: 是 | V49: 否 | W49: 否 | X49: 否 | Y49: 吴冬丽 | Z49: 13887745075.00 | AA49: 玉溪市江川区民宗局 | AB49: 石河村 | AC49: 是 | AD49: 否
A50: 45 | B50: 江川区 | C50: 前卫镇 | D50: 渔村村 | E50: 产业发展—市场建设和农村物流 | F50: 前卫镇渔村等2个村鲜切花交易中心建设项目 | G50: 2025年 | H50: 新建 | I50: 新建1幢鲜切花交易中心，为钢框架结构，建筑占地面积520.8m²。 | J50: 140.00 | K50: 140.00 | L50: 140.00 | M50: 0.00 | N50: 2516 | O50: 6496 | P50: 30 | Q50: 87 | R50: 通过建设交易中心，一是实现经济效益。预计每年实现利润约16.04万元。二是实现联农带农。①为周边企业、合作社提供鲜花采购、销售渠道，提升服务企业质效。②服务前卫镇128户花卉种植户，强化花卉种植风险抵御能力。③可吸纳周边50名劳动力就地就近务工，其中管理岗位2个（3000元/月，年收入3.6万元），48个分拣工岗位（1500元/月，年收入1.8万元）。三是打造文化名片。发展花卉产业，打造品牌、质量、效益同步提升的“花经济”，扩大知名度，带动当地旅游业发展。 | S50: 否 | T50: 带动花卉销售 | U50: 是 | V50: 否 | W50: 否 | X50: 是 | Y50: 徐乾清 | Z50: 13013482909.00 | AA50: 江川区组织部 | AB50: 渔村村 | AC50: 是 | AD50: 是
A51: 46 | B51: 江川区 | C51: 前卫镇 | D51: 前卫社区 | E51: 产业发展—市场建设和农村物流 | F51: 前卫镇前卫社区农贸市场建设项目 | G51: 2025年 | H51: 新建 | I51: 建设1幢农贸市场，二层混凝土框架结构，占地面积合计 202㎡。 | J51: 70.00 | K51: 70.00 | L51: 70.00 | M51: 0.00 | N51: 2516 | O51: 6496 | P51: 30 | Q51: 87 | R51: 通过在前卫镇前卫社区建设农贸市场，增加村集体经济，带动蔬菜产业发展。 | S51: 否 | T51: 带动农户发展生产增产增收—其他 | U51: 是 | V51: 否 | W51: 否 | X51: 是 | Y51: 徐乾清 | Z51: 13013482908 | AA51: 玉溪市江川区农业农村局 | AB51: 前卫社区 | AC51: 是 | AD51: 是
A52: 47 | B52: 江川区 | C52: 九溪镇 | D52: 六十亩村 | E52: 产业发展—产业园（区） | F52: 六十亩村委会六十亩小组民族团结进步示范村建设项目 | G52: 2025年 | H52: 新建 | I52: 场地平整 9789 ㎡,新建鲜花种植大棚2幢总面积 6144m;道路硬化面积 642.0㎡。 | J52: 100.00 | K52: 100.00 | L52: 100.00 | M52: 0.00 | N52: 2516 | O52: 6496 | P52: 30 | Q52: 87 | R52: 六十亩村百合花产业面临种植成本高、无菌技术要求高、运输费用高的难题，通过完善百合花产业基地建设，采用“企业+村办公司+农户”的运营模式，签订“双绑利益联结协议”，提升百合花种植设施投入，助推农业产业发展，可有效降低农户种植成本、提高亩均效益，完善百合花种植种球端和销售端产业链，受益1022户2419人，预计能为农户提供50亩种苗，帮助578户农户销售百合花，节约成本1500元/亩，提高百合花品质，进一步扩大百合花在斗南冬季交易市场占比70%的市场优势，同时增加村集体收入20万元/年，提升各族群众幸福感。 | S52: 否 | T52: 促进农户共享资产收益增收—其他 | U52: 是 | V52: 否 | W52: 否 | X52: 是 | Y52: 吴冬丽 | Z52: 13887745075.00 | AA52: 玉溪市江川区民宗局 | AB52: 六十亩村 | AC52: 是 | AD52: 否
A53: 48 | B53: 江川区 | C53: 九溪镇 | D53: 大村 | E53: 产业发展—农产品仓储保鲜冷链基础设施建设 | F53: 大村一组农产品综合交易市场 | G53: 2025年 | H53: 新建 | I53: （1）原有场地平整1712.21m²，含地面硬化、挡墙、围墙、大门；新建钢结构加工车间 260.76m²；新建228.0m2新建制冷机房 21.66m2；新建配套用房 65.0m2。（2）龙泉小组新农村旁田间道路硬化 1040.53m²。 | J53: 215.00 | K53: 215.00 | L53: 215.00 | M53: 0.00 | N53: 1207 | O53: 3424 | P53: 86 | Q53: 276 | R53: 建设草莓交易收购中心，招商引资和第三方合作，获取收益，预计年收益8万元。 | S53: 否 | T53: 促进农户共享资产收益增收—其他 | U53: 是 | V53: 否 | W53: 否 | X53: 是 | Y53: 徐乾清 | Z53: 13013482908 | AA53: 玉溪市江川区农业农村局 | AB53: 大村 | AC53: 是 | AD53: 否
A54: 49 | B54: 江川区 | C54: 九溪镇 | D54: 矣文村 | E54: 产业发展—种植业基地 | F54: 九溪镇矣文村食用菌产业发展种植配套建设项目 | G54: 2025年 | H54: 新建 | I54: 1.建设温控大棚2亩，建设普通简易棚建设10亩及配套水电基础设施；2.配套道路硬化400m、排水沟建设400m。 | J54: 115.00 | K54: 115.00 | L54: 115.00 | M54: 0.00 | N54: 773 | O54: 2241 | P54: 98 | Q54: 308 | R54: 进一步补齐项目短板，拓展乡村产业多元化发展，带动群众发展，提高村民收入。 | S54: 否 | T54: 带动农户发展生产增产增收—保护价收购 | U54: 是 | V54: 否 | W54: 否 | X54: 是 | Y54: 徐乾清 | Z54: 13013482908 | AA54: 玉溪市江川区农业农村局 | AB54: 矣文村 | AC54: 是 | AD54: 否
A55: 50 | B55: 江川区 | C55: 九溪镇 | D55: 九溪社区 | E55: 产业发展—农产品仓储保鲜冷链基础设施建设 | F55: 九溪社区民族村寨旅游提升项目 | G55: 2025年 | H55: 新建 | I55: (1)改造建设农特产品展销服务平台1个，建筑面积 51.73 ㎡;(2)新建农产品仓库 36.32 ㎡;(3)新增场地硬化860 ㎡;(4)新建挡墙10m。 | J55: 30.00 | K55: 30.00 | L55: 30.00 | M55: 0.00 | N55: 1605 | O55: 4089 | P55: 18 | Q55: 60 | R55: 通过1)改造建设农特产品展销服务平台1个，建筑面积 51.73 ㎡;(2)新建农产品仓库 36.32 ㎡;(3)新增场地硬化860 ㎡;(4)新建挡墙10m。能够带动花卉、草莓产业发展，促进群众增收。 | S55: 否 | T55: 带动农户发展生产增产增收—其他 | U55: 是 | V55: 否 | W55: 否 | X55: 是 | Y55: 徐乾清 | Z55: 13013482908 | AA55: 玉溪市江川区农业农村局 | AB55: 九溪社区 | AC55: 是 | AD55: 是
A56: 51 | B56: 江川区 | C56: 九溪镇 | D56: 九溪社区 | E56: 产业发展—其他 | F56: 九溪社区民族手工业(陶器制作非遗技艺)融合创新发展项目 | G56: 2025年 | H56: 新建 | I56: 建设陶器展销区1栋，一层混凝土框架结构，占地80.83 ㎡，用于游客陶艺制作体验。 | J56: 20.00 | K56: 20.00 | L56: 20.00 | M56: 0.00 | N56: 1605 | O56: 4089 | P56: 18 | Q56: 60 | R56: 通过建设陶器展销区1栋，一层混凝土框架结构，占地80.83 ㎡，可用于游客陶艺制作体验，带动旅游业发展，民族手工业(陶器制作非遗技艺)得于传承和发扬。 | S56: 否 | T56: 带动农户发展生产增产增收—其他 | U56: 是 | V56: 否 | W56: 否 | X56: 否 | Y56: 吴冬丽 | Z56: 13887745075.00 | AA56: 玉溪市江川区民宗局 | AB56: 九溪社区 | AC56: 是 | AD56: 是
A57: 52 | B57: 江川区 | C57: 九溪镇 | D57: 九溪社区 | E57: 乡村建设行动—农村道路建设（通村路、通户路、小型桥梁等） | F57: 九溪镇九溪社区民族团结进步示范社区建设项目 | G57: 2025年 | H57: 新建 | I57: 在九溪镇太和小组窑泥坡田间道路进行硬化，总长度 712.52 米，其中 1#道路长 386.21 米，宽度为 4.5 米；2#道路长 175.96 米，宽度为 3.5 米；3#道路长 150.35 米，宽度为4.4 米。 | J57: 42.00 | K57: 42.00 | L57: 42.00 | M57: 0.00 | N57: 156 | O57: 416 | P57: 2 | Q57: 4 | R57: 完善农业基础设施：该项目的实施，能有效改善九溪社区的农业基础设施，对社区的烤烟、草莓、蔬菜产业发展起到了积极的推动作用，带动 群众受益104户416人，群众满意率达90%以上，有效促进社区农业经济的快速发展。 | S57: 否 | T57: 不需要 | U57: 是 | V57: 否 | W57: 否 | X57: 否 | Y57: 吴冬丽 | Z57: 13887745075.00 | AA57: 玉溪市江川区民宗局 | AB57: 九溪社区 | AC57: 是 | AD57: 是
A58: 53 | B58: 江川区 | C58: 九溪镇 | D58: 阳山庄 | E58: 乡村建设行动—农村道路建设（通村路、通户路、小型桥梁等） | F58: 九溪镇阳山庄示范村基础设施提升工程 | G58: 2025年 | H58: 新建 | I58: 新农村道路硬化4513㎡；2.房前屋后地面硬化2730㎡；3.砖砌挡墙30m³，砌筑路沿石700m。 | J58: 101.54 | K58: 101.54 | L58: 60.00 | M58: 41.54 | N58: 219 | O58: 592 | P58: 6 | Q58: 16 | R58: 改善人居环境条件，提升村容村貌，加快美丽宜居和美乡村建设，增加群众幸福感和获得感。 | S58: 否 | T58: 不需要 | U58: 是 | V58: 否 | W58: 否 | X58: 否 | Y58: 徐乾清 | Z58: 13013482908 | AA58: 玉溪市江川区农业农村局 | AB58: 阳山庄 | AC58: 是 | AD58: 是
A59: 54 | B59: 江川区 | C59: 雄关乡 | D59: 石岩村 | E59: 乡村建设行动—村容村貌提升 | F59: 雄关乡白石岩村小田小组民族团结示范村项目 | G59: 2025年 | H59: 新建 | I59: (1)修建旅游登山道路755m(原计划路宽 4m,现变更为 5m)，附属排水沟建设;(2)新增限高杆 1套;(3)新增挡土墙 20m';(4)新增错车台 800 ㎡;(5)开挖碎石1000m。工 | J59: 103.90 | K59: 103.90 | L59: 103.90 | M59: 0.00 | N59: 42 | O59: 127 | P59: 13 | Q59: 49 | R59: 通过项目建设，推动当地旅游业发展，依托现状空间肌理，“田村林水”资源禀赋，打通空间联系，以“轻介入、微改造”理念，通过农业科技+艺术景观激活房屋、场地、农田、水库等，构建串联地域空间、资源要素的产业链条，打造白石岩宜居宜业和美乡村品牌。项目建成后，预计吸引游客1000人/年，带动40余户100余本土居民参与白石岩旅游业发展，促进群众增收每年8万元以上。 | S59: 否 | T59: 带动农户发展生产增产增收—其他 | U59: 是 | V59: 否 | W59: 否 | X59: 否 | Y59: 吴冬丽 | Z59: 13887745075.00 | AA59: 玉溪市江川区民宗局 | AB59: 石岩村 | AC59: 是 | AD59: 否
A60: 55 | B60: 江川区 | C60: 雄关乡 | D60: 雄关社区 | E60: 产业发展—种植业基地 | F60: 雄关乡雄关社区沙拉生菜水培基地建设项目 | G60: 2025年 | H60: 新建 | I60: (1)改造升级10亩高标准连体大棚;(2)新建 1.5 亩育苗和水肥控制中心(在现在大棚内新建)，配备注水管理系统、营养液供应系统、灌溉系统、光照系统、温度控制设备;(3)增加完善育苗和水费控制中心内部设施，包括苗床 10 排，营养液池2个，增加增氧机和紫外线杀菌装置，恒温机2台，净水器1台，输肥供液泵2台，过滤器2个，控制柜1套及配套线路。 | J60: 123.00 | K60: 123.00 | L60: 123.00 | M60: 0.00 | N60: 54 | O60: 153 | P60: 3 | Q60: 12 | R60: 通过试点示范，带动传统产业提档升级，蔬菜产业高端化。 | S60: 否 | T60: 促进农户共享资产收益增收—其他 | U60: 是 | V60: 否 | W60: 否 | X60: 是 | Y60: 李佩佩 | Z60: 18788526631 | AA60: 江川区委组织部 | AB60: 雄关社区 | AC60: 是 | AD60: 是
A61: 56 | B61: 江川区 | C61: 雄关乡 | D61: 窑房村 | E61: 产业发展—加工业 | F61: 雄关乡窑房产业片区产业配套设施建设项目 | G61: 2025年 | H61: 新建 | I61: 场地硬化 1140 ㎡;新建冷链储藏冷库2个占地 555.44 ㎡。 | J61: 120.00 | K61: 120.00 | L61: 120.00 | M61: 0.00 | N61: 221 | O61: 657 | P61: 8 | Q61: 23 | R61: 通过建设梅干菜加工厂，带动蔬菜种植，增加村集体经济收入。 | S61: 否 | T61: 促进农户共享资产收益增收—其他 | U61: 是 | V61: 否 | W61: 否 | X61: 是 | Y61: 徐乾清 | Z61: 13013482908 | AA61: 玉溪市江川区农业农村局 | AB61: 窑房村 | AC61: 是 | AD61: 否
A62: 57 | B62: 江川区 | C62: 雄关乡 | D62: 下营村 | E62: 产业发展—农产品仓储保鲜冷链基础设施建设 | F62: 雄关乡下营村花卉基地配套设施建设项目 | G62: 2025年 | H62: 新建 | I62: (1)新建基地冷库房420.76 m(分2 间，每间 210.38 ㎡，其中1间包含冷库装修及制冷设备采购:1 间不含装修及制冷设备采购);(2)晾晒场地 683.08 m;(3)围墙163m。 | J62: 100.00 | K62: 100.00 | L62: 100.00 | M62: 0.00 | N62: 284 | O62: 857 | P62: 21 | Q62: 70 | R62: 通过扶持农业经营主体，一方面通过资产收益方式带动村集体增收，一方面通过带动就业务工，带动生产等方式发挥联农带农效益。 | S62: 否 | T62: 带动农户发展生产增产增收—其他 | U62: 是 | V62: 否 | W62: 否 | X62: 是 | Y62: 徐乾清 | Z62: 13013482908 | AA62: 玉溪市江川区农业农村局 | AB62: 下营村 | AC62: 是 | AD62: 否
A63: 58 | B63: 江川区 | C63: 雄关乡 | D63: 白石岩 | E63: 乡村建设行动—村容村貌提升 | F63: 雄关乡白石岩小田示范村基础设施提升项目 | G63: 2025年 | H63: 新建 | I63: 1.路面硬化、修补，总面积3500㎡；2.新建挡墙413m³；3.新建防护栏437米；4.新建雨污分离主管550m；5.新建公路护栏50米；6.新建污水处理池1个（规格：10m³）;7.新建“四小园”700㎡。 | J63: 60.00 | K63: 60.00 | L63: 45.00 | M63: 15.00 | N63: 42 | O63: 127 | P63: 13 | Q63: 49 | R63: 项目的建设完善了雄关乡白石岩的基础设施建设，对促进雄关乡白石岩未来的发展有着积极的作用，有利于带动附近区域经济社会的发展。 | S63: 否 | T63: 促进农户共享资产收益增收—其他 | U63: 是 | V63: 否 | W63: 否 | X63: 否 | Y63: 徐乾清 | Z63: 13013482908 | AA63: 玉溪市江川区农业农村局 | AB63: 白石岩 | AC63: 是 | AD63: 否
A64: 59 | B64: 江川区 | C64: 安化彝 | D64: 安化社区 | E64: 产业发展—加工业 | F64: 安化彝族乡安化社区安山源有基质厂扩建项目 | G64: 2025年 | H64: 新建 | I64: （1）建设防护栏 220m（; 2）新建道路 400m²，混凝土排水沟 180m;（3）育苗、栽培基质生产线一套，标准化叉车一辆。 | J64: 100.00 | K64: 100.00 | L64: 100.00 | M64: 0.00 | N64: 42 | O64: 127 | P64: 13 | Q64: 49 | R64: 项目采取“党组织+合作社+农户”的模式，通过该项目建设，完善生产链优化产品质量，更好地满足市场订单产品需求，带动群众就业10余人，促进村集体创收20万元，有效带动全社区居民提升年收入，绘就“民族团结+乡村振兴”的美丽画卷。 | S64: 否 | T64: 促进农户共享资产收益增收—其他 | U64: 是 | V64: 否 | W64: 否 | X64: 是 | Y64: 吴冬丽 | Z64: 13887745075.00 | AA64: 玉溪市江川区民宗局 | AB64: 安化社区 | AC64: 是 | AD64: 否
A65: 60 | B65: 江川区 | C65: 安化彝 | D65: 光山村 | E65: 产业发展—休闲农业与乡村旅游 | F65: 安化乡光山多肉村农文旅融合发展基础设施建设项目 | G65: 2025年 | H65: 新建 | I65: 1.UPVC入户管650m，PE螺旋波纹管800m，检查井45座，混凝土井盖45个；2.土方开挖1600m³，土方回填1200m³，路面破除及恢复1100㎡；3.道路硬化218m，挡土墙109m，便民场地整治提升300㎡；4.场地硬化450㎡，砌体墙拆除170m³，钢丝网加固土墙面450㎡，墙面抹灰及刮腻子700㎡等，机耕路395m。 | J65: 150.00 | K65: 150.00 | L65: 100.00 | M65: 50.00 | N65: 235 | O65: 665 | P65: 40 | Q65: 129 | R65: 通过项目实施，带动花卉产业发展，吸纳就业200余人，壮大村集体经济10万元/年 | S65: 否 | T65: 促进农户共享资产收益增收—其他 | U65: 是 | V65: 否 | W65: 否 | X65: 是 | Y65: 徐乾清 | Z65: 13013482908 | AA65: 玉溪市江川区农业农村局 | AB65: 光山村 | AC65: 是 | AD65: 否
A66: 61 | B66: 江川区 | C66: 安化彝 | D66: 新庄村 | E66: 产业发展—其他 | F66: 安化彝族乡现代农业产业基地配套设施建设项目 | G66: 2025年 | H66: 新建 | I66: (1)新庄村新建农业温室大棚建设11亩，含棚内通道等附属设施;排水沟、护边墙 520m。(2)光山村修复机耕路 535m;新建排水沟 470m;新建路肩墙 265m，路口道路硬化 25m?新建混凝土涵管 16m，新建沉砂池4座。 | J66: 140.00 | K66: 140.00 | L66: 140.00 | M66: 0.00 | N66: 703 | O66: 2024 | P66: 93 | Q66: 336 | R66: 通过在)新庄村新建农业温室大棚建设11亩，光山村修复机耕路能够发展花卉产业，促进农民增收，增加村集体经济收入。 | S66: 否 | T66: 带动农户发展生产增产增收—其他 | U66: 是 | V66: 否 | W66: 否 | X66: 是 | Y66: 徐乾清 | Z66: 13013482908 | AA66: 玉溪市江川区农业农村局 | AB66: 新庄村 | AC66: 是 | AD66: 是
A67: 62 | B67: 江川区 | C67: 江城镇 | D67: 左卫村 | E67: 产业发展—农产品仓储保鲜冷链基础设施建设 | F67: 江城镇左卫村花卉产业提升工程 | G67: 2025年 | H67: 新建 | I67: 1.宝塔营小组修建产业路410m，排洪沟480m，挡土墙22m；2.龙街村建设花冷库1个230㎡，分捡台130㎡；3.古埂小组新建编烟棚490㎡。 | J67: 16.06 | K67: 16.06 | L67: 16.06 | M67: 0.00 | N67: 3948 | O67: 9147 | P67: 53 | Q67: 179 | R67: 通过支持新型经营主体产业项目建设，提升经营主体的带动作用。解决部分群众务工问题，带动村民增收。 | S67: 否 | T67: 促进农户共享资产收益增收—其他 | U67: 是 | V67: 否 | W67: 否 | X67: 是 | Y67: 徐乾清 | Z67: 13013482908 | AA67: 玉溪市江川区农业农村局 | AB67: 左卫村 | AC67: 是 | AD67: 是
A68: 63 | B68: 江川区 | C68: 雄关乡 | D68: 白石岩 | E68: 产业发展—休闲农业与乡村旅游 | F68: 雄关乡白石岩星级村提升工程项目 | G68: 2025年 | H68: 新建 | I68: 1、修建登山道路900m；2、修建排水沟900m；3、原有防火通道硬化1900m；4、碎石找平层厚度10cm，面积5700㎡。 | J68: 180.00 | K68: 180.00 | L68: 7.15 | M68: 172.85 | N68: 83 | O68: 279 | P68: 33 | Q68: 120 | R68: 项目的实施不断完善了雄关乡白石岩村委会的基础设施建设，引进第三方资本，促进当地旅游业发展，带动周边群众参与，使群众的生活环境得到改善，为经济社会的进一步发展创造了基本条件。项目建成产生收益后从村集体收入中提取15%用于当地贫困户的生活补助发放。 | S68: 否 | T68: 促进农户共享资产收益增收—其他 | U68: 是 | V68: 否 | W68: 否 | X68: 否 | Y68: 徐乾清 | Z68: 13013482908 | AA68: 区民宗局 | AB68: 白石岩 | AC68: 是 | AD68: 是
A69: 64 | B69: 江川区 | C69: 雄关乡 | D69: 窑房村 | E69: 产业发展—加工业 | F69: 雄关乡窑房村梅干菜加工厂扩建项目 | G69: 2025年 | H69: 新建 | I69: 扩建梅于菜加工厂1个，1、采购烘干设备1台；2、新建梅于菜发酵厂房1座；3、新建过磅秤及配套过磅房1个；4、新建泡菜池10个。 | J69: 200.00 | K69: 200.00 | L69: 18.75 | M69: 181.25 | N69: 221 | O69: 657 | P69: 8 | Q69: 23 | R69: 项目的实施，引进鸿宇生物公司，有效带动当地群众实现就地就近就业，增加村集体收入，项目的实施具有长期的效益收获期。项目建成产生收益后从村集体收入中提取15%用于当地贫困户的生活补助发放。 | S69: 否 | T69: 促进农户共享资产收益增收—其他 | U69: 是 | V69: 否 | W69: 否 | X69: 否 | Y69: 徐乾清 | Z69: 13013482908 | AA69: 玉溪市江川区农业农村局 | AB69: 窑房村 | AC69: 是 | AD69: 是
A70: 65 | B70: 江川区 | C70: 星云街道 | D70: 河咀社区 | E70: 产业发展—市场建设和农村物流 | F70: 星云街道老河咀蔬菜分拣及农产品交易市场建设项目 | G70: 2025年 | I70: 1.拆除废弃烤房、花池723.9㎡；2.市场改造611.33㎡；3.新建农产品分拣房128.33㎡；4.场地硬化2265.33㎡；5.市场配套售卖台、鱼池210.13㎡；6.水管424.3m；7.修建328.5m³洗菜池1个。 | J70: 158.00 | K70: 158.00 | L70: 15.00 | M70: 143.00 | N70: 1526 | O70: 5459 | P70: 34 | Q70: 114 | R70: 增加集体收入，方便群众农产品交易 | S70: 否 | T70: 带动农户发展生产增产增收—其他 | U70: 是 | V70: 否 | W70: 否 | X70: 是 | Y70: 徐乾清 | Z70: 13013482908 | AA70: 玉溪市江川区农业农村局 | AB70: 河咀社区 | AC70: 是 | AD70: 是
A71: 66 | B71: 江川区 | C71: 江川区 | D71: 江川区 | E71: 产业发展—小额贷款贴息 | F71: 江川区小额信贷帮扶贴息资金 | G71: 2025年 | H71: 新建 | I71: 用于脱贫户、监测户小额贷款贴息。 | J71: 105.00 | K71: 105.00 | L71: 105.00 | M71: 0.00 | N71: 900 | O71: 3100 | P71: 900 | Q71: 3100 | R71: 通过实施小额信贷贴息项目，帮助低收入人口获得产业发展资金。脱贫户和监测对象扶贫小额信贷及时足额发放，解决脱贫户和监测对象产业发展资金难题，帮助脱贫户发展种养殖等产业，实现稳定增收。 | S71: 是 | T71: 带动农户发展生产增产增收—其他 | U71: 不涉及 | V71: 否 | W71: 否 | X71: 否 | Y71: 徐乾清 | Z71: 13013482908 | AA71: 玉溪市江川区农业农村局 | AB71: 不形成资产 | AC71: 是 | AD71: 否
A72: 67 | B72: 江川区 | C72: 江川区 | D72: 江川区 | E72: 巩固三保障成果—享受“雨露计划”职业教育补助 | F72: 江川区雨露计划补助资金 | G72: 2025年 | H72: 新建 | I72: 按照省级每年规定的标准补助脱贫户、监测户家庭职业教育学生。 | J72: 100.00 | K72: 100.00 | L72: 100.00 | M72: 0.00 | N72: 460 | O72: 460 | P72: 460 | Q72: 460 | R72: 全面贯彻落实国家“雨露计划”支持农村贫困家庭新成长劳动力接受职业教育政策，通过政策扶持，让农村贫困家庭子女初、高中毕业后接受中、高等职业教育的比例逐步提高，每个贫困家庭孩子掌握一项实用技术，实现贫困家庭新成长劳动力创业就业能力得到提升，一个家庭有一名劳动力长期就业，家庭工资性收入占比显著提高。 | S72: 是 | T72: 不需要 | U72: 不涉及 | V72: 否 | W72: 否 | X72: 否 | Y72: 徐乾清 | Z72: 13013482908 | AA72: 玉溪市江川区农业农村局、教体局 | AB72: 不形成资产 | AC72: 是 | AD72: 否
A73: 68 | B73: 江川区 | C73: 江川区 | D73: 江川区 | E73: 就业项目—公益性岗位 | F73: 江川区脱贫户及监测对象公益性岗位安置项目 | G73: 2025年 | H73: 新建 | I73: 对超出人社局安置范围且符合岗位要求、有意愿的脱贫户及监测对象，通过财政衔接资金开发乡村公益性岗位进行安置。 | J73: 395.00 | K73: 395.00 | L73: 395.00 | M73: 0.00 | N73: 230 | O73: 230 | P73: 230 | Q73: 230 | R73: 通过公益岗位安置，为低收入人口提供就业渠道，增加收入。 | S73: 是 | T73: 不需要 | U73: 不涉及 | V73: 否 | W73: 否 | X73: 否 | Y73: 徐乾清 | Z73: 13013482908 | AA73: 玉溪市江川区农业农村局 | AB73: 不形成资产 | AC73: 是 | AD73: 否
A74: 69 | B74: 江川区 | C74: 江川区 | D74: 江川区 | E74: 就业项目—帮扶车间（特色手工基地）建设 | F74: 江川区就业帮扶车间补助 | G74: 2025年 | H74: 新建 | I74: 经市级认定的就业帮扶车间，对帮扶车间吸纳5人以上脱贫劳动力就业1个月以上的，按其发给脱贫劳动力工资的15%给予奖补。 | J74: 20.00 | K74: 20.00 | L74: 20.00 | M74: 0.00 | N74: 35 | O74: 35 | P74: 35 | Q74: 35 | R74: 对帮扶车间吸纳5人以上脱贫劳动力就业1个月以上的，按月按其发给脱贫劳动力工资额的15%给予就业奖补。鼓励更多经营主体带动脱贫人口务工增收。 | S74: 是 | T74: 不需要 | U74: 不涉及 | V74: 否 | W74: 否 | X74: 否 | Y74: 徐乾清 | Z74: 13013482908 | AA74: 玉溪市江川区农业农村局 | AB74: 不形成资产 | AC74: 是 | AD74: 否
A75: 70 | B75: 江川区 | C75: 江川区 | D75: 江川区 | E75: 就业项目—技能培训 | F75: 脱贫户及监测对象培训补助项目 | G75: 2025年 | H75: 新建 | I75: 用于脱贫人口参加就业技能培训相关支出。 | J75: 50.00 | K75: 50.00 | L75: 50.00 | M75: 0.00 | N75: 245 | O75: 245 | P75: 10 | Q75: 10 | R75: 通过技能培训提升脱贫人口就业能力。 | S75: 是 | T75: 不需要 | U75: 不涉及 | V75: 否 | W75: 否 | X75: 否 | Y75: 徐乾清 | Z75: 13013482908 | AA75: 玉溪市江川区农业农村局 | AB75: 不形成资产 | AC75: 是 | AD75: 否
A76: 71 | B76: 江川区 | C76: 江川区 | D76: 江川区 | E76: 就业项目—交通费补助 | F76: 脱贫人口一次性外出务工交通补助 | G76: 2025年 | H76: 新建 | I76: 对跨省外出务工且稳定就业3个月以上的脱贫人口及三类监测对象，按照跨省务工每人1000元，跨州市务工每人500元的标准给予一次性外出务工交通补助（每年享受1次）。 | J76: 90.00 | K76: 90.00 | L76: 90.00 | M76: 0.00 | N76: 200 | O76: 200 | P76: 200 | Q76: 200 | R76: 鼓励脱贫人口外出务工，稳定脱贫人口工资性收入。 | S76: 是 | T76: 不需要 | U76: 不涉及 | V76: 否 | W76: 否 | X76: 否 | Y76: 徐乾清 | Z76: 13013482908 | AA76: 玉溪市江川区农业农村局 | AB76: 不形成资产 | AC76: 是 | AD76: 否
A77: 72 | B77: 江川区 | C77: 江川区 | D77: 江川区 | E77: 项目管理费—项目管理费 | F77: 乡村振兴项目管理费 | G77: 2025年 | H77: 新建 | I77: 从到县衔接资金中统一提取管理费，用于工程项目方案设计、招标、监理等工作，中央提取1%，省级提取5%。 | J77: =SUM(K77,P77) -> 85.27 | K77: 85.27 | L77: 85.27 | M77: 0.00 | N77: —— | O77: —— | P77: —— | Q77: —— | R77: 保障财政衔接资金项目顺利实施。 | S77: 是 | T77: 不需要 | U77: 不涉及 | V77: 否 | W77: 否 | X77: 否 | Y77: 徐乾清 | Z77: 13013482908 | AA77: 玉溪市江川区农业农村局 | AB77: 不形成资产 | AC77: 是 | AD77: 否
A78: 73 | B78: 江川区 | C78: 星云街道 | D78: 土官田村委会一组 | E78: 乡村建设行动—产业路、资源路、旅游路建设 | F78: 土官田村产业基地道路建设工程 | G78: 2025年 | H78: 新建 | I78: 产业基地道路硬化，全长1000米，宽4米，村内道路硬化1500平米。 | J78: 70.00 | K78: 70.00 | L78: 60.00 | M78: 10.00 | N78: 343 | O78: 1036 | P78: 13 | Q78: 53 | R78: 开发利用闲置土地，推进乡村产业振兴项目建设 | S78: 否 | T78: 带动农户发展生产增产增收—其他 | U78: 是 | V78: 否 | W78: 否 | X78: 否 | Y78: 徐乾清 | Z78: 13013482908 | AA78: 玉溪市江川区农业农村局 | AB78: 土官田村 | AC78: 是 | AD78: 否
A79: 74 | B79: 江川区 | C79: 星云街道 | D79: 五甲二组、三义庙一组 | E79: 乡村建设行动—农村道路建设（通村路、通户路、小型桥梁等） | F79: 星云街道早街社区五甲二组、三义庙一组道路硬化项目 | G79: 2025年 | H79: 新建 | I79: 五甲二组道路平整硬化C25混凝土硬化面积3800平方米，三义庙一组道路平整硬化C25混凝土硬化面积3670平方米，安装路灯30盏，村容村貌整治 | J79: 120.00 | K79: 120.00 | L79: 60.00 | M79: 60.00 | N79: 675 | O79: 1160 | P79: 1 | Q79: 2 | R79: 改善村组人居环境 | S79: 否 | T79: 促进农户共享资产收益增收—其他 | U79: 是 | V79: 否 | W79: 否 | X79: 否 | Y79: 徐乾清 | Z79: 13013482908 | AA79: 玉溪市江川区农业农村局 | AB79: 五甲二组、三义庙一组 | AC79: 是 | AD79: 否
A80: 75 | B80: 江川区 | C80: 江城镇 | D80: 温泉村委会 | E80: 乡村建设行动—村容村貌提升 | F80: 江城镇温泉村委会庄科旧村改造后提升项目 | G80: 2025年 | H80: 新建 | I80: 雨污管3000米，村庄道路硬化600米。 | J80: 150.00 | K80: 150.00 | L80: 140.00 | M80: 10.00 | N80: 302 | O80: 854 | P80: 4 | Q80: 12 | R80: 项目的实施改善公共服务设施，改善生活环境，增加收入具有十分重要的意义。项目的实施不断完善了当地基础设施，农业产业建设，群众的生活环境得到改善.打造乡村振兴示范村。 | S80: 否 | T80: 促进农户共享资产收益增收—其他 | U80: 是 | V80: 否 | W80: 否 | X80: 否 | Y80: 徐乾清 | Z80: 13013482908 | AA80: 玉溪市江川区农业农村局 | AB80: 温泉村委会 | AC80: 是 | AD80: 否
A81: 76 | B81: 江川区 | C81: 前卫镇 | D81: 周官村 | E81: 产业发展—市场建设和农村物流 | F81: 前卫镇周官村农贸市场提升改建项目 | G81: 2025年 | H81: 新建 | I81: （1）周官菜市场临近老晋思线，交通便利，辐射周边户数超5000户，市场占地约5亩，改建后预计增加摊位40个摊位，规范市场运营秩序； （2）计划搭建雨棚，规划电动车停车区； （3）项目建成后，从市场管理、商品销售到物流配送等各个环节，可带动就业50余人。 | J81: 70.00 | K81: 70.00 | L81: 70.00 | M81: 0.00 | N81: 2586 | O81: 5376 | P81: 20 | Q81: 66 | R81: 增加村集体经济，改造提升农贸市场，便利村民生产生活。 | S81: 否 | T81: 促进农户共享资产收益增收—其他 | U81: 是 | V81: 否 | W81: 否 | X81: 是 | Y81: 李佩佩 | Z81: 18788526631 | AA81: 江川区委组织部 | AB81: 周官村 | AC81: 是 | AD81: 否
A82: 77 | B82: 澄江市 | E82: 产业发展—小额贷款贴息 | F82: 澄江市2025年小额信贷贴息项目 | G82: 2025年 | H82: 新建 | I82: 向符合条件的脱贫人口及监测对象发放小额扶贫贷款贴息160万元/年 | J82: 160.00 | K82: =SUM(L82:M82) -> 160.00 | L82: 160.00 | M82: 0.00 | N82: 749 | O82: 749 | P82: 749 | Q82: 749 | R82: 通过项目实施，帮助解决脱贫人口和监测对象贷款难的问题，有效提高脱贫群众和监测对象生活水平。 | S82: 是 | T82: 带动农户发展生产增产增收—其他 | U82: 不涉及 | V82: 否 | W82: 否 | X82: 否 | Y82: 陈银 | Z82: 13320588336 | AA82: 澄江市农业农村局 | AB82: 不形成资产 | AC82: 是 | AD82: 否
A83: 78 | B83: 澄江市 | E83: 就业项目—公益性岗位 | F83: 澄江市2025年脱贫劳动力及监测对象公益性岗位项目 | G83: 2025年 | H83: 新建 | I83: 设设置保洁员、护路员、护林员、治安协管员、护水员等公益岗位812个，为脱贫户提供岗位，促进就业，提高脱贫户收益； | J83: 1081.20 | K83: 1081.20 | L83: 1081.20 | M83: 0.00 | N83: 416 | O83: 416 | P83: 416 | Q83: 416 | R83: 通过项目的实施，可设置公益性岗位60个，向60名监测对象提供公益性岗位，提高监测对象收入水平。 | S83: 是 | T83: 不需要 | U83: 不涉及 | V83: 否 | W83: 否 | X83: 否 | Y83: 陈银 | Z83: 13320588336 | AA83: 澄江市农业农村局 | AB83: 不形成资产 | AC83: 是 | AD83: 否
A84: 79 | B84: 澄江市 | E84: 巩固三保障成果—享受“雨露计划”职业教育补助 | F84: 澄江市2025年中高等职业学校脱贫家庭经济困难学生生活补助项目 | G84: 2025年 | H84: 新建 | I84: 澄江市2025年中高等职业学校建档立卡脱贫家庭经济困难学生生活补助项目对象568人次。接受全日制普通大专、高职院校、技师学院、职业本科院校等高等职业教育的补助标准为2500元/学期·生，接受全日制普通中专、技工院校中等职业教育的补助标准为2000元/学期·生，接受全日制职业高中中等职业教育的补助标准为1500元/学期·生。全年补助资金一次性预算，分春秋学期2次发放。 | J84: 120.00 | K84: 120.00 | L84: 120.00 | M84: 0.00 | N84: 568 | O84: 568 | P84: 568 | Q84: 568 | R84: 通过实施项目，向脱贫人口及监测对象在读子女提供经济资助，帮助这部分学生顺利完成学业，进而改善他们的生活条件和家庭经济状况。 | S84: 是 | T84: 不需要 | U84: 不涉及 | V84: 否 | W84: 否 | X84: 否 | Y84: 陈银 | Z84: 13320588336 | AA84: 澄江市农业农村局 | AB84: 不形成资产 | AC84: 是 | AD84: 否
A85: 80 | B85: 澄江市 | E85: 项目管理费—项目管理费 | F85: 澄江市2025年衔接资金项目管理费 | G85: 2025年 | H85: 新建 | I85: 1.用于组织开展澄江市2025年衔接资金全过程绩效管理工作；2.用于2025年衔接资金项目日常管理 | J85: =K85 -> 40.00 | K85: 40.00 | L85: 40.00 | M85: 0.00 | N85: —— | O85: —— | P85: —— | Q85: —— | R85: 通过项目实施，提升衔接资金项目管理规范性、准确性。 | S85: 否 | T85: 不需要 | U85: 不涉及 | V85: 否 | W85: 否 | X85: 否 | Y85: 陈银 | Z85: 13320588336 | AA85: 澄江市农业农村局 | AB85: 不形成资产 | AC85: 是 | AD85: 否
A86: 81 | B86: 澄江市 | E86: 就业项目—交通费补助 | F86: 澄江市2025年跨州市务工一次性交通补助项目 | G86: 2025年 | H86: 新建 | I86: 为澄江市720余名跨州市务工3个月以上的脱贫户及监测对象发放500元/人的补助。 | J86: 36.00 | K86: 36.00 | L86: 36.00 | M86: 0.00 | N86: 720 | O86: 720 | P86: 720 | Q86: 720 | R86: 通过项目实施，为750名跨州市务工的建档立卡及监测对象发放500元的跨州市务工补贴，减轻务工成本，提高群众收入。 | S86: 是 | T86: 不需要 | U86: 不涉及 | V86: 否 | W86: 否 | X86: 否 | Y86: 陈银 | Z86: 13320588336 | AA86: 澄江市农业农村局 | AB86: 不形成资产 | AC86: 是 | AD86: 否
A87: 82 | B87: 澄江市 | E87: 就业项目—交通费补助 | F87: 脱贫劳动力跨省外出务工一次性交通补助 | G87: 2025年 | H87: 新建 | I87: 对跨省务工就业3个月以上脱贫人口，按照每人1000元标准给予一次性外出务工交通补助（每年享受1次） | J87: 35.00 | K87: 35.00 | L87: 35.00 | M87: 0.00 | N87: 300 | O87: 300 | P87: 300 | Q87: 300 | R87: 享受跨省务工一次性补助脱贫劳动力（含监测对象）≥300人 | S87: 是 | T87: 不需要 | U87: 不涉及 | V87: 否 | W87: 否 | X87: 否 | Y87: 师维 | Z87: 15188769595 | AA87: 澄江市人力资源和社会保障局 | AB87: 不形成资产 | AC87: 是 | AD87: 否
A88: 83 | B88: 澄江市 | E88: 就业项目—技能培训 | F88: 脱贫劳动力职业技能培训 | G88: 2025年 | H88: 新建 | I88: 深入贯彻落实“技能云南”行动要求。以提技能、促就业、增收入”为核心，以“规范、提质”为目标，组织脱贫人口开展生产经营和就业技能等职业培训，提升职业技能水平，提高持证率和就业率。 | J88: 155.96 | K88: 155.96 | L88: 155.96 | M88: 0.00 | N88: 120 | O88: 120 | P88: 120 | Q88: 120 | R88: 持证脱贫劳动力较上年增加，提升职业技能水平。 | S88: 是 | T88: 不需要 | U88: 不涉及 | V88: 否 | W88: 否 | X88: 否 | Y88: 师维 | Z88: 15188769595 | AA88: 澄江市人力资源和社会保障局 | AB88: 不形成资产 | AC88: 是 | AD88: 否
A89: 84 | B89: 澄江市 | C89: 抚仙湖国有林场 | E89: 产业发展—林草基地建设 | F89: 澄江市抚仙湖国有林场2025年中央财政衔接推进乡村振兴巩固提升项目 | G89: 2025年 | H89: 新建 | I89: （1）培育苗木21.3万株。（2）苗床整地25亩.（3）安装喷灌系统25亩。（4）安装苗圃保障性引水管道8公里。（5）安装消防取水栓6套。 | J89: 139.83 | K89: 139.83 | L89: 133.00 | M89: 6.83 | N89: 34 | O89: 34 | P89: 0 | Q89: 0 | R89: 一是进一步改善林区管护人员的生产生活条件；二是用于产业发展实施特色树种苗木培育示范建设，增加保障性苗圃苗木储备量，充分发挥国有林场在后备森林资源培育的示范作用和生态建设的骨干作用，为省、市生态修复提供更多优质的保障性特色树种苗木，推动省、市生态修复进程发挥积极作用。 | S89: 否 | T89: 带动农户发展生产增产增收—其他 | U89: 不涉及 | V89: 否 | W89: 否 | X89: 否 | Y89: 鲍绍辉 | Z89: 0877-6225557 | AA89: 澄江市林业和草原局 | AB89: 澄江市抚仙湖国有林场 | AC89: 是 | AD89: 否
A90: 85 | B90: 澄江市 | C90: 龙街街道 | D90: 万海社区 | E90: 产业发展—种植业基地 | F90: 澄江市龙街街道万海社区2024年财政衔接推进乡村振兴-村集体种植业基地建设项目 | G90: 2025年 | H90: 新建 | I90: 1.新建简易水池3个；2.新建给水管800m；3.给水泵1套；4.场地平整土方开挖22600m³；5.砖砌排水沟650m；6.铺设园区生产道路650m；7.钢制大门1道；8.搭建保温大棚31123.97㎡；9.蓝莓种植专用盆21620个；10.防草布36123.97㎡；11.新建水肥房60㎡；12.新建管理用房200㎡；13.新建捡果车间300㎡；14.新建卫生间30㎡；15.新建农具用房240㎡；16.新建灌溉主管2750m(其中DN63PE管1450m，DN110PE管620m，DN160PE管680m)；17.输电线路2200m（其中10KV输电线路600m，380V输电线路1600m)；18.250KV变压器1套；19.其他1项。 | J90: 136.42 | K90: =SUM(L90:M90) -> 136.42 | L90: 136.42 | M90: 0.00 | N90: 3512 | O90: 9082 | P90: 53 | Q90: 164 | R90: 项目建成后，能够巩固拓展万海社区脱贫攻坚成果，壮大村集体经济收入，解决周边群众就业问题，全面推进万海社区物质文明、精神文明、生态文明建设，实现乡村振兴发展。 | S90: 否 | T90: 吸纳农村劳动力稳定就业增收—其他 | U90: 是 | V90: 否 | W90: 否 | X90: 是 | Y90: 刘晟宇 | Z90: 18187722126 | AA90: 澄江市农业农村局 | AB90: 万海社区 | AC90: 否 | AD90: 否
A91: 86 | B91: 澄江市 | C91: 龙街街道 | D91: 左所社区 | E91: 产业发展—加工业 | F91: 澄江市龙街街道左所社区2024年衔接资金-高原特色农业种植秸秆资源化利用示范项目 | G91: 2025年 | H91: 新建 | I91: 1.新建3200平方米轻钢结构大棚1座，新建50.40平方米值班室1座；2.场地土方开挖15096.10立方米，土方回填5998.62立方米；3.3.5米高混凝土挡土墙浇筑960.00立方米；4.室外1.2米直径6.00mm厚排水管安装170.00米。 | J91: 385.73 | K91: =SUM(L91:M91) -> 385.73 | L91: 385.73 | M91: 0.00 | N91: 2622 | O91: 6659 | P91: 60 | Q91: 197 | R91: 项目建成后可以促进农业绿色发展，提升农业固体废弃物管理和综合利用的需要，改善龙街片区基础设施现状，提升村民生活质量，改善群众生产生活条件、增加群众收入，壮大农村集体经济。 | S91: 否 | T91: 吸纳农村劳动力稳定就业增收—其他 | U91: 是 | V91: 否 | W91: 否 | X91: 是 | Y91: 刘晟宇 | Z91: 18187722126 | AA91: 澄江市农业农村局 | AB91: 左所社区 | AC91: 是 | AD91: 否
A92: 87 | B92: 澄江市 | C92: 龙街街道 | D92: 华光社区 | E92: 产业发展—休闲农业与乡村旅游 | F92: 澄江市2025年中央财政衔接资金-龙街街道办事处华光社区民族村寨旅游提升建设项目 | G92: 2025年 | H92: 改（扩）建 | I92: 该项目占地面积215平方米，主要建设：1.原屋面拆除322.50平方米；2.破损主体木结构拆除215.00平方米；3.内部满堂脚手架搭建420.00平方米；4.主体木结构安装215.00平方米；5.房屋山墙修缮268.50平方米。 | J92: 30.37 | K92: =L92+M92 -> 30.37 | L92: 30.00 | M92: 0.37 | N92: 585 | O92: 1724 | P92: 29 | Q92: 97 | R92: 通过实施澄江市2025年中央财政衔接资金-龙街街道办事处华光社区民族村寨旅游提升建设项目，一是解决了村容村貌脏、乱、差的问题，又为华光村村民提供了休闲、娱乐及旅游接待场所，不断打牢铸牢中华民族共同体意识的物质基础。二是将民族工作植入日常监督，推动铸牢中华民族共同体意识入脑入心。三是增加了村民茶余饭后休闲的娱乐场所，提升村民生活幸福指数，促进旅游业发展，进一步消化农村剩余劳动力、培育农村市场、搞活商品流通、缩小城乡差距，实现乡村全面振兴。 | S92: 否 | T92: 促进农户共享资产收益增收—其他 | U92: 是 | V92: 否 | W92: 否 | X92: 是 | Y92: 刘晟宇 | Z92: 18187722126 | AA92: 澄江市农业农村局 | AB92: 华光社区 | AC92: 是 | AD92: 是
A93: 88 | B93: 澄江市 | C93: 龙街街道 | D93: 华光社区 | E93: 产业发展—休闲农业与乡村旅游 | F93: 澄江市2025年中央财政衔接资金-龙街街道办事处华光社区一组民族村寨旅游提升建设项目 | G93: 2025年 | H93: 改（扩）建 | I93: 该项目占地面积286平方米，主要建设：1.瓦屋面铺设322.5平方米；2.内墙装修改造635平方米；3.地面地砖铺设286平方米；4.木质门窗安装58平方米；5.室内水电改造286平方米。 | J93: 33.50 | K93: =L93+M93 -> 33.50 | L93: 30.00 | M93: 3.50 | N93: 585 | O93: 1724 | P93: 29 | Q93: 97 | R93: 通过实施澄江市2025年中央财政衔接资金-龙街街道办事处华光社区一组民族村寨旅游提升建设项目，对深入开展铸牢中华民族共同体意识宣传教育、构筑中华民族共有精神家园、补齐基础设施短板、加强旅游公共设施建设、推动公共文化和旅游服务融合、打造特色乡村旅游新业态新产品、提升传统优势产业、加强文化遗产传承和利用、打造民族团结进步创建工作升级版等方面具有十分重要的意义。同时，项目的建设对打造一批有特色、有品位、带动强的农文旅融合示范点具有重要意义。项目建成后将丰富华光人民群众文化生活，提高群众生活质量水平，带动社会经济的发展，从而促进项目影响区域的经济繁荣，使群众素质得到不断提高，促进社会和谐发展有着积极的作用。 | S93: 否 | T93: 促进农户共享资产收益增收—其他 | U93: 是 | V93: 否 | W93: 否 | X93: 是 | Y93: 刘晟宇 | Z93: 18187722126 | AA93: 澄江市农业农村局 | AB93: 华光社区 | AC93: 是 | AD93: 是
A94: 89 | B94: 澄江市 | C94: 龙街街道 | D94: 立昌社区 | E94: 产业发展—市场建设和农村物流 | F94: 澄江市龙街街道立昌社区2025年财政衔接资金农特产品分拣包装车间及交易中心建设项目 | G94: 2025年 | H94: 改（扩）建 | I94: 本项目建设内容为利用现有社区闲置资产改造农特产品分拣包装车间及交易中心。改造交易中心建筑面积341.36平方米，改造部位为32栋负一层，改造内容包括室内装修改造、给排水改造、电气改造等；改造农特产品分拣包装车间建筑面积341.36平方米，改造部位为8栋负一层，改造内容包括室内装修改造、给排水改造、电气改造等。 | J94: 132.42 | K94: =L94+M94 -> 132.42 | L94: 100.00 | M94: 32.42 | N94: 1260 | O94: 3338 | P94: 23 | Q94: 80 | R94: 实施澄江市龙街街道立昌社区2025年财政衔接资金农特产品分拣包装车间及交易中心建设项目，不仅能为居民和外来旅居游客提供便捷的食材采购场所，能够巩固拓展立昌社区脱贫攻坚成果，方便社区内老人的生活需求，还能为当地农产品的销售搭建平台，促进农业产业发展，促进群众增加收入，完善产业配套设施，提升人居环境整治，壮大村集体经济收入，助力乡村振兴。 | S94: 否 | T94: 吸纳农村劳动力稳定就业增收—吸纳就业 | U94: 是 | V94: 否 | W94: 否 | X94: 是 | Y94: 刘晟宇 | Z94: 18187722126 | AA94: 澄江市农业农村局 | AB94: 立昌社区 | AC94: 是 | AD94: 是
A95: 90 | B95: 澄江市 | C95: 龙街街道 | D95: 提古社区 | E95: 产业发展—种植业基地 | F95: 澄江市龙街街道养提古社区民族团结进步示范村项目 | G95: 2025年 | H95: 新建 | I95: 该项目占地面积220亩，土地现状为种植包谷等农作物，土地性质为一般耕地。一是投资20万元进行水管管道等基础设施配套建设；二是投资90万元完成种植基地的土层改良。 | J95: 110.0000 | K95: 110.00 | L95: 100.00 | M95: 10.00 | N95: 496 | O95: 1642 | P95: 9 | Q95: 40 | R95: 该项目采取“党总支+村办公司+企业”的模式，由村党总支带领村办公司争取衔接资金投入并自筹部分资金建设，引入有技术的企业与村办公司合作开展种植，建设完成后由村办公司运营。社会效益：项目建成后解决本村剩余劳动力1000余人次的用工问题。经济效益：增加10余户脱贫户及监测户的收入，使本村村办公司年收入达20万元以上。联农带农：进一步扶持提古社区农业特色产业，形成示范带动效应，同时带动本村群众及周边地区种植300余亩。 | S95: 否 | T95: 吸纳农村劳动力稳定就业增收—吸纳就业 | U95: 是 | V95: 否 | W95: 否 | X95: 是 | Y95: 刘晟宇 | Z95: 18187722126 | AA95: 澄江市民族宗教事务局 | AB95: 提古社区 | AC95: 否 | AD95: 否
A96: 91 | B96: 澄江市 | C96: 龙街街道 | D96: 养白牛白石坝 | E96: 产业发展—加工业 | F96: 2025年度中央和省级财政扶持新型农村集体经济发展—养白牛社区白石坝老腊肉加工用房扩建项目 | G96: 2025年 | H96: 改（扩）建 | I96: 项目总投资75万元，其中中央财政衔接推进乡村振兴补助资金70万元，社区自筹资金5万元，主要用于： (1)70万元中央财政衔接推进乡村振兴补助资金：老腊肉加工用房建设，投资概算70万元。①加工间42㎡，概算投资10万元；②晾晒间159㎡，概算投资38万元；③储存间 63㎡，概算投资12万元；④消毒间36㎡，概算投资10万元。 (2)5万元社区自筹资金：老腊肉用房相关附属建设，投资概算5万元。①水电设施改造，概算投资3万元；②老腊肉加工用房周边绿化200㎡，概算投资2万元。 | J96: 75.00 | K96: 75.00 | L96: 70.00 | M96: 5.00 | N96: 46 | O96: 116 | P96: 11 | Q96: 35 | R96: 通过实施2025年度中央和省级财政扶持新型农村集体经济发展—养白牛社区白石坝老腊肉加工用房扩建项目，扩大养白牛老腊肉生产产能，扩大客源，留住“乡愁”，盘活闲置土地资源，完善设施设备，升级制作工艺，提高制作产量及效率，增加就业渠道，壮大农村集体经济。 | S96: 否 | T96: 吸纳农村劳动力稳定就业增收—其他 | U96: 是 | V96: 否 | W96: 否 | X96: 是 | Y96: 刘晟宇 | Z96: 18187722126.00 | AA96: 中共澄江市委组织部 | AB96: 养白牛白石坝 | AC96: 是 | AD96: 是
A97: 92 | B97: 澄江市 | C97: 右所镇 | D97: 右所社区 | E97: 产业发展—农产品仓储保鲜冷链基础设施建设 | F97: 澄江市右所镇民族团结进步示范镇项目（果蔬保鲜冷链项目） | G97: 2025年 | H97: 新建 | I97: 该项目总占地面积2600平方米，土地现状为废弃烤房800平方米及连片空闲地1800平方米，土地性质为集体建设用地。一是建设占地2000平方米，储量为1600吨的恒温冷库车间一个，内含4个冷库库房，主要包括设施用房建设、制冷设备购置及配套设施等，其中：4个冷库库房建筑面积约1600平方米，加工车间400平方米，投资约480万。二是配套建设装卸场地约600平方米，投资约50万元。 | J97: 530.00 | K97: 530.00 | L97: 530.00 | M97: 0.00 | N97: 440 | O97: 1099 | P97: 5 | Q97: 15 | R97: 该项目采取“村办公司+村集体”模式，用集体土地入股，争取上级部门资金及集体自筹资金模式进行建设，建成后由村办公司运营。项目选址区位优势：周围有澄呈高速、绕城高速、昆石高速，交通便利，利于运输。社会效益：右所辖区内共种植有蓝莓3500余亩、菌类600余亩，项目建成后冷库年均贮藏能力可达7000吨，该项目的实施可以延长农业产业链，提高农业产品附加值，壮大村办龙头企业和村集体经济，推动农业产业化经营。对农业结构调整、农业增效、农民增收具有促进作用。经济效益：项目可直接带动农户100余户，户均增收5000元。同时可拉动包装、运输、维修等相关产业发展，间接安置农村富余劳动力800余人，集体经济每年净利润75万元。生态效益：带动蓝莓、羊肚菌等农业种植基地发展。通过推广水肥一体化管理，减少农业面源污染，对抚仙湖保护具有积极的作用。 | S97: 否 | T97: 吸纳农村劳动力稳定就业增收—吸纳就业 | U97: 是 | V97: 否 | W97: 否 | X97: 是 | Y97: 崔翔宇 | Z97: 18887721415 | AA97: 澄江市民族宗教事务局 | AB97: 右所社区 | AC97: 是 | AD97: 否
A98: 93 | B98: 澄江市 | C98: 右所镇 | D98: 旧城村委会 | E98: 产业发展—种植业基地 | F98: 右所镇旧城村委会新型农业设施大棚建设项目 | G98: 2025年 | H98: 新建 | I98: 新建新型农业大棚3栋，单栋大棚东长度30m,宽度开间10m;大棚肩高 3.0m脊高4.8m,总占地面积1000㎡，安装温度、湿度、C02浓度等可调控设备，配备湿度传感器和加湿设备，设置合适的遮阳和补光系统，温湿度控制设备:30000元，灯光设备:20000元，种植装置:10000元，其他辅助设备:10000元，设施搭建费用:50000元。 | J98: 70.00 | K98: 70.00 | L98: 70.00 | M98: 0.00 | N98: 152 | O98: 380 | P98: 3 | Q98: 8 | R98: 项目通过建设高效农业大棚，促进旧城村农业生产结构的调整，加速旧城村由传统农业种植模式向现代农业设施栽培模式转变，提高村集体经济效益，以点带面，同时也为广大群众增收致富提供了可靠的保障。 | S98: 否 | T98: 带动农户发展生产增产增收—其他 | U98: 是 | V98: 否 | W98: 是 | X98: 是 | Y98: 崔翔宇 | Z98: 18887721415 | AA98: 澄江市农业农村局 | AB98: 旧城村委会 | AC98: 否 | AD98: 否
A99: 94 | B99: 澄江市 | C99: 右所镇 | D99: 补益村委会 | E99: 产业发展—加工业 | F99: 澄江市—右所镇_产业发展_加工流通项目_澄江市右所镇右所社区兜底寺小组 2023 年财政衔接推进 乡村振兴烤房建设项目 | G99: 2023年 | H99: 新建 | I99: 新建轻钢结构管理房1座，建筑面积68.40㎡，新建编烟棚一座，建筑面积301.16㎡，烤房片区混凝土场地硬化1050.00㎡。烤房场地铺设砂砾石4600.00㎡。新建A1型护栏200.00m。排水沟加设盖板240m。修筑入口大门1座。建设安装电启动额定功率300kW三相柴油发电机2台。安装动力柜2台，动力柜安装315KVA变压器2台。 | J99: 60.00 | K99: 60.00 | L99: 60.00 | M99: 0.00 | N99: 436 | O99: 1195 | P99: 3 | Q99: 12 | R99: 增强村、组的社会服务功能，推动农村经济结构战略性调整、确保农业农村经济稳定增长。 | S99: 否 | T99: 带动农户发展生产增产增收—其他 | U99: 是 | V99: 否 | W99: 否 | X99: 是 | Y99: 崔翔宇 | Z99: 18887721415 | AA99: 澄江市农业农村局 | AB99: 补益村委会 | AC99: 是 | AD99: 否
A100: 95 | B100: 澄江市 | C100: 右所镇 | D100: 右所社区 | E100: 产业发展—加工业 | F100: 澄江市—右所镇_产业发展_加工流通项目_澄江市右所镇补益村委会土老村小组 2023 年财政衔接推 进乡村振兴烤房建设项目 | G100: 2023年 | H100: 新建 | I100: 新建轻钢结构管理房1座，建筑面积58.80㎡，新建编烟棚一座，建筑面积169.36㎡，烤房片区混凝土场地硬化500.00㎡，新建A1型护栏65.00m，房屋拆除300㎡，修筑大门1座。安装14HP闭式空气源热泵烤房10座，监控系统1套，安装电启动额定功率300kW三相柴油发电机1台，安装动力柜1台动力柜，安装315KVA变压器1台。 | J100: 30.00 | K100: 30.00 | L100: 30.00 | M100: 0.00 | N100: 91 | O100: 279 | P100: 5 | Q100: 18 | R100: 增强村、组的社会服务功能，推动农村经济结构战略性调整、确保农业农村经济稳定增长。 | S100: 否 | T100: 带动农户发展生产增产增收—其他 | U100: 是 | V100: 否 | W100: 否 | X100: 是 | Y100: 崔翔宇 | Z100: 18887721415 | AA100: 澄江市农业农村局 | AB100: 右所社区 | AC100: 是 | AD100: 否
A101: 96 | B101: 澄江市 | C101: 右所镇 | D101: 矣旧社区 | E101: 产业发展—休闲农业与乡村旅游 | F101: 澄江市右所镇矣旧社区 2025 年衔接资金乡村旅游创意园建设项目（二期） | G101: 2025年 | H101: 新建 | I101: 1.一号提升点：规划总用地 1279 平方米，其中地面硬化1129 平方米，临时建筑总面积 270 平方米，设置有 19 个车位，绿化面积 159 平方 米，挡土墙 40 米，乔木种植 9 棵；本提升点为 2025 年实施； 2.二号提升点（分两阶段实施）： 第一阶段：1.一号提升点：2025 年实施地面硬化 913 平方米，树池坐凳面积 35.4 平方米，设置有 59 个车位，绿化面积 181 平方米，路口改造 118 平方米，挡墙 420 立方米，场地填方 760 立方米，村名标牌 1 座。第二阶段：地面硬化 2976 平方米，停车位 59 个，拆除建筑 41 平方米，挡土墙 431.5 立方米，乔木种植 1 棵，场地填方 3042 立方米。 | J101: 156.88 | K101: 156.88 | L101: 120 | M101: 36.88 | N101: 1024 | O101: 2787 | P101: 3 | Q101: 10 | R101: 1.经济效益：通过联农带农提高群众收入水平和生活质量，带动社会经济的发展； 2.社会效益：改善基础设施，提供就业岗位，促进农旅融合,促进项目影响区域的经济繁荣使群众素质得到不断提高，促进社会和谐发展提供重要作用； 3.生态效益：通过美化工程和规范建设，提升村庄人居环境品质 | S101: 否 | T101: 带动农户发展生产增产增收—其他 | U101: 是 | V101: 否 | W101: 否 | X101: 是 | Y101: 崔翔宇 | Z101: 18887721415 | AA101: 澄江市农业农村局 | AB101: 矣旧社区 | AC101: 是 | AD101: 是
A102: 97 | B102: 澄江市 | C102: 右所镇 | D102: 吉花社区 | E102: 产业发展—休闲农业与乡村旅游 | F102: 澄江市2025年中央财政衔接资金-右所镇民族手工业融合创新发展项目 | G102: 2025年 | H102: 新建 | I102: 项目建设内容主要如下； （一）民族手工艺研学体验区改造工程：1、民族手工艺研学体验区改造200平方米； （二）民族手工艺研学体验区采购安装工程：澄江手工藕粉制作器材购买 安装，华宁陶、建水陶、江川铜锅、澄江竹编、彝绣、等工艺品采购摆放，展架购置安装购买安装 | J102: 20 | K102: 20 | L102: 20 | M102: 0.00 | N102: 430 | O102: 1325 | P102: 28 | Q102: 86 | R102: 项目依托洋潦营产业配套用房区位优势及旅游资源优势，立足优秀民族传统文化传承与发展，致力以文旅融合创新发展项目开发为抓手，进一步补充丰富党群服务中心服务模块，增加洋潦营产业配套用房空间利用价值，实效带动实现洋潦营新村及周边居民创新创业技能培育、就近就业渠道拓展及村集体经济增收，项目建成并正式运营后将引入更多人流量、客单消费量，其带来的良好经济效益和积极社会效益，对洋潦营新村综合业态长足高质量发展具有实际推动作用及重要长远意义。 | S102: 否 | T102: 吸纳农村劳动力稳定就业增收—吸纳就业 | U102: 是 | V102: 否 | W102: 否 | X102: 是 | Y102: 崔翔宇 | Z102: 18887721415 | AA102: 澄江市农业农村局 | AB102: 吉花社区 | AC102: 是 | AD102: 是
A103: 98 | B103: 澄江市 | C103: 右所镇 | D103: 吉花社区 | E103: 产业发展—休闲农业与乡村旅游 | F103: 澄江市右所镇吉花社区2025年衔接资金-洋潦营小组旅游产业配套设施建设项目 | G103: 2025年 | H103: 新建 | I103: 本次项目拟计划在该地块新建旅游产业配套设施用房1栋，新建建筑退让道路及周边民房后一层占地面积280.00平方米，总建筑面积584.70平方米。建筑层数三层，建筑一层高度4.20米，二层高度3.90米，三层高度3.60米，建筑总高度14.40米。 | J103: 228.00 | K103: 228.00 | L103: 136.80 | M103: 91.20 | N103: 430 | O103: 1325 | P103: 28 | Q103: 86 | R103: 以建设改善右所镇吉花片区群众生活水平为主题，改善该片区旅游配套设施现状，实现人居环境、自然生态、产业发展、农民增收、社会保障、社区服务以及农民素质的全面提升，提高整体生活水平。带动区域经济增长：项目实施在盘活闲置资源的同时区域产业服务设施得到进一步完善，带动周边餐饮、住宿等相关产业发展，形成产业集群，创造更多就业岗位和经济效益，为村集体建立了长期稳定的增收产业，缓解就业压力。同时，通过吸引游客消费，带动相关产业的发展，促进区域经济的增长，推动乡村振兴和城市化进程。 | S103: 否 | T103: 带动农户发展生产增产增收—其他 | U103: 是 | V103: 否 | W103: 否 | X103: 是 | Y103: 崔翔宇 | Z103: 18887721415 | AA103: 澄江市农业农村局 | AB103: 吉花社区 | AC103: 是 | AD103: 是
A104: 99 | B104: 澄江市 | C104: 右所镇 | D104: 小湾社区 | E104: 产业发展—其他 | F104: 右所镇小湾社区旅居建设项目 | G104: 2025年 | H104: 新建 | I104: （1）建筑外观改造，修缮外立面720㎡，投资概算10万元。 （2）内部空间改造，投资概算60万元。①室内改造装修，约420㎡，投资概算40万元。②设施设备配置，配置15个客房设施（包含空调、电视、家具等），投资概算20万元。 | J104: =SUM(K104:L104) -> 140.00 | K104: =SUM(L104:M104) -> 70.00 | L104: 70.00 | M104: 0.00 | N104: 296 | O104: 786 | P104: 0 | Q104: 0 | R104: 项目建成计产生收益20万余元，为当地提供10余个就业岗位，提高区域就业率，形成互相促进的产业体系。 | S104: 否 | T104: 促进农户共享资产收益增收—房屋租赁获得租金 | U104: 是 | V104: 否 | W104: 否 | X104: 是 | Y104: 崔翔宇 | Z104: 18887721415 | AA104: 中共澄江市委组织部 | AB104: 小湾社区 | AC104: 是 | AD104: 否
A105: 100 | B105: 澄江市 | C105: 右所镇 | D105: 吉花社区 | E105: 产业发展—其他 | F105: 右所镇吉花社区洋潦营乡村大食堂建设项目 | G105: 2025年 | H105: 新建 | I105: 拆除原洋潦营小组简易用房，新建洋潦营农耕文化体验馆用房1栋。项目建设主要内容为乡村大食堂： （1）建筑主体，概算投资40万元。①结构建设，建筑面积约300平方米，投资概算25万元；②就餐区，建设可容纳150-200人就餐区，投资概算15万元. （2）厨房操作区，面积约80㎡，投资概算20万元。 （3）水电系统，投资概算10万元。 | J105: =SUM(K105:L105) -> 140.00 | K105: =SUM(L105:M105) -> 70.00 | L105: 70.00 | M105: 0.00 | N105: 430 | O105: 1325 | P105: 28 | Q105: 86 | R105: 项目建成后通过经营乡村大食堂预计产生收益5万余元，配套农耕文化体验馆场地、旅游项目的开发和经营，带动周边村民创业，群众增收致富。 | S105: 否 | T105: 吸纳农村劳动力稳定就业增收—吸纳就业 | U105: 是 | V105: 否 | W105: 否 | X105: 是 | Y105: 崔翔宇 | Z105: 18887721415 | AA105: 中共澄江市委组织部 | AB105: 吉花社区 | AC105: 否 | AD105: 否
A106: 101 | B106: 澄江市 | C106: 九村镇 | D106: 九村社区 | E106: 产业发展—加工业 | F106: 澄江市九村镇九村社区花园小组2023年衔接推进乡村振兴烤房建设项目 | G106: 2025年 | H106: 先建后补 | I106: 建设安装14HP闭式空气源热泵烤房10座（包含烤房主体及内部设备安装） | J106: 30.00 | K106: 30.00 | L106: 30.00 | M106: 0.00 | N106: 38 | O106: 80 | P106: 5 | Q106: 13 | R106: 壮大村集体经济，为烤烟生产提质增效。 | S106: 否 | T106: 订单合同 | U106: 是 | V106: 否 | W106: 否 | X106: 是 | Y106: 李辉 | Z106: 0877—6717117 | AA106: 澄江市农业农村局 | AB106: 九村社区 | AC106: 是 | AD106: 否
A107: 102 | B107: 澄江市 | C107: 九村镇 | D107: 东山村委会 | E107: 产业发展—加工业 | F107: 澄江市九村镇东山村委会牛场小组2023年衔接推进乡村振兴烤房建设项目 | G107: 2025年 | H107: 先建后补 | I107: 建设安装14HP闭式空气源热泵烤房20座（包含烤房主体及内部设备安装） | J107: 70.00 | K107: 70.00 | L107: 70.00 | M107: 0.00 | N107: 122 | O107: 393 | P107: 32 | Q107: 84 | R107: 壮大村集体经济，为烤烟生产提质增效。 | S107: 否 | T107: 订单合同 | U107: 是 | V107: 否 | W107: 否 | X107: 是 | Y107: 李辉 | Z107: 0877—6717117 | AA107: 澄江市农业农村局 | AB107: 东山村委会 | AC107: 是 | AD107: 否
A108: 103 | B108: 澄江市 | C108: 九村镇 | D108: 七江村委会 | E108: 产业发展—加工业 | F108: 澄江市九村镇七江村2023年财政衔接推进乡村振兴烤房建设项目 | G108: 2025年 | H108: 先建后补 | I108: （一）白家村小组烤房建设内容 1.建设安装14HP闭式空气源热泵烤房5座（包含烤房主体及内部设备安装）。2.新建编烟棚一座，编烟棚长14.10米，宽6.14米，建筑面积86.57平方米，编烟棚主体采用钢架结构。 （二）大山小组烤房建设内容： 1. 建设安装14HP闭式空气源热泵烤房15座（包含烤房主体及内部设备安装）。2. 新建编烟棚一座，编烟棚长44.30米，宽6.30米，建筑面积279.09平方米，编烟棚主体采用钢架结构。 | J108: 70.00 | K108: 70.00 | L108: 70.00 | M108: 0.00 | N108: 142 | O108: 389 | P108: 32 | Q108: 101 | R108: 壮大村集体经济，为烤烟生产提质增效，吸纳脱贫劳动力就业，促进群众增收。 | S108: 否 | T108: 订单合同 | U108: 是 | V108: 否 | W108: 否 | X108: 是 | Y108: 李辉 | Z108: 0877—6717117 | AA108: 澄江市农业农村局 | AB108: 七江村委会 | AC108: 是 | AD108: 否
A109: 104 | B109: 澄江市 | C109: 九村镇 | D109: 龙潭村委会 | E109: 产业发展—加工业 | F109: 澄江市九村镇龙潭村委会鱼塘小组2023年财政衔接推进乡村振兴烤房建设项目 | G109: 2025年 | H109: 先建后补 | I109: 建设安装14HP闭式空气源热泵烤房20座（包含烤房主体及内部设备安装）。 | J109: 70.00 | K109: 70.00 | L109: 70.00 | M109: 0.00 | N109: 148 | O109: 410 | P109: 3 | Q109: 10 | R109: 壮大村集体经济，为烤烟生产提质增效，吸纳脱贫劳动力就业，促进群众增收。 | S109: 否 | T109: 订单合同 | U109: 是 | V109: 否 | W109: 否 | X109: 是 | Y109: 李辉 | Z109: 0877—6717117 | AA109: 澄江市农业农村局 | AB109: 龙潭村委会 | AC109: 是 | AD109: 否
A110: 105 | B110: 澄江市 | C110: 九村镇 | D110: 龙潭村 | E110: 产业发展—种植业基地 | F110: 澄江市九村镇2025年衔接资金-龙潭村委会蔬菜种植基地建设项目 | G110: 2025年 | H110: 新建 | I110: 1.场地土方开挖6035.71立方米，场地土方回填5116.29立方米；2.场地修建砖砌排水管690.00米，预埋DN400水泥承插管16米，新建86.40平方米轻钢结构管理用房1座；3.种植大棚搭建7.73亩。 | J110: 51.23 | K110: 51.23 | L110: 50.00 | M110: 1.23 | N110: 129 | O110: 298 | P110: 51 | Q110: 172 | R110: 通过项目的实施，可调整龙潭村委会产业结构，带动务工，壮大村集体经济的同时带动群众增收。 | S110: 否 | T110: 带动农户发展生产增产增收—其他 | U110: 是 | V110: 否 | W110: 否 | X110: 是 | Y110: 李辉 | Z110: 0877—6717117 | AA110: 澄江是民族宗教事务管理局 | AB110: 龙潭村 | AC110: 是 | AD110: 是
A111: 106 | B111: 澄江市 | C111: 九村镇 | D111: 东山村 | E111: 乡村建设行动—农村道路建设（通村路、通户路、小型桥梁等） | F111: 澄江市九村镇东山村委会2025年衔接资金-黄家庄小组、狮子山小组以工代赈村内道路建设项目 | G111: 2025年 | H111: 新建 | I111: 1.安置点道路土方开挖7639.90立方米，土方回填4696.20立方米，场地余方弃置2943.70立方米；2.200mm厚C25混凝土路面硬化9256.40平方米； 3.砖砌挡土墙砌筑118.60立方米，挡土墙墙面抹灰566.43平方米，100mm厚C20混凝土散水浇筑61.24立方米；C20混凝土挡土墙浇筑1246.20立方米。4.交通标识牌安装10块。 | J111: 312.44 | K111: 312.44 | L111: 312.44 | M111: 0.00 | N111: 875 | O111: 2301 | P111: 181 | Q111: 515 | R111: 通过项目的实施，将有效改善本村的基础设施条件，可解决该片区出行难等一系列保障问题，交通的便利促进本村与外界互通有无，更好的丰富和满足群众生活需求和精神文明的需求。 | S111: 否 | T111: 不需要 | U111: 是 | V111: 否 | W111: 否 | X111: 否 | Y111: 李辉 | Z111: 0877—6717117 | AA111: 澄江市农业农村局 | AB111: 东山村 | AC111: 是 | AD111: 是
A112: 107 | B112: 澄江市 | C112: 海口镇 | D112: 松元村委会 | E112: 产业发展—其他 | F112: 澄江市海口镇松元村委会关地小组2023年财政衔接推进乡村振兴烤房建设项目 | G112: 2025年 | H112: 先建后补 | I112: 为加强农业产业配套基础设施建设，计划在关地小组新建一群电力热泵烤房，改善烤烟生产条件，提升烟叶烘烤质量，少数民族地区群众增收困难的问题。 1. 新建轻钢结构管理房 1座，建筑面积 58.80 ㎡(内含值班室、配电室及储油间)。2.新建编烟棚一座，编烟棚长 29.20 米，宽5.30 米，建筑面积154.76 ㎡，编烟棚主体采用钢架结构，具体做法详见施工图。3.烤房片区混凝土场地硬化 506.00 ㎡。4.烤房场地铺设砂砾石380.00㎡。5.新建护栏:A1型护栏 120.00m。6.修筑入口大门1 座。7.建设安装14HP闭式空气源热泵烤房 10 座(包含烤房主体及内部设备安装)。8.为考虑安全场地内安装监控系统1套(具体参数由专业厂家二次深化设计)。9.购买电启动额定功率300kW三相柴油发电机1台。10.安装动力柜1台动力柜(内含柜体、双头刀闸、电流表、电压表、空开)。11.安装 315KVA 变压器1 台(专业公司设计安装) | J112: 30.00 | K112: 30.00 | L112: 30.00 | M112: 0.00 | N112: 33 | O112: 109 | P112: 4 | Q112: 15 | R112: 为加强农业产业配套基础设施建设，计划在关地小组新建一群电力热泵烤房，改善烤烟生产条件，提升烟叶烘烤质量，少数民族地区群众增收困难的问题。 | S112: 否 | T112: 带动农户发展生产增产增收—其他 | U112: 是 | V112: 否 | W112: 否 | X112: 是 | Y112: 张晨 | Z112: 18287704004 | AA112: 澄江市农业农村局 | AB112: 松元村委会 | AC112: 是 | AD112: 否
A113: 108 | B113: 澄江市 | C113: 海口镇 | D113: 松元村委会 | E113: 产业发展—其他 | F113: 澄江市海口镇松元村委会石龙小组2023年财政衔接推进乡村振兴烤房建设项目 | G113: 2025年 | H113: 先建后补 | I113: 为加强农业产业配套基础设施建设，计划在石龙小组新建一群电力热泵烤房，改善烤烟生产条件，提升烟叶烘烤质量，少数民族地区群众增收困难的问题。 1.新建轻钢结构管理房 1座，建筑面积 58.80 ㎡(内含值班室、配电室及储油间)。2.新建编烟棚一座，编烟棚长 29.20 米，宽5.30 米，建筑面积154.76 ㎡，编烟棚主体采用钢架结构，具体做法详见施工图。3.烤房片区混凝土场地硬化 506.00 ㎡。4.烤房场地铺设砂砾石470.00㎡。5.新建护栏:A1型护栏 85m；A2型护栏46 m。6.新建石挡土墙115m³；7.修筑入口大门1 座。8.建设安装14HP闭式空气源热泵烤房 10 座(包含烤房主体及内部设备安装)。9.为考虑安全场地内安装监控系统1套(具体参数由专业厂家二次深化设计)。10.购买电启动额定功率300kW三相柴油发电机1台。11.安装动力柜1台动力柜(内含柜体、双头刀闸、电流表、电压表、空开)。12.安装 315KVA 变压器1 台(专业公司设计安装)。 | J113: 30.00 | K113: 30.00 | L113: 30.00 | M113: 0.00 | N113: 231 | O113: 609 | P113: 14 | Q113: 40 | R113: 为加强农业产业配套基础设施建设，计划在石龙小组新建一群电力热泵烤房，改善烤烟生产条件，提升烟叶烘烤质量，少数民族地区群众增收困难的问题。 | S113: 否 | T113: 带动农户发展生产增产增收—其他 | U113: 是 | V113: 否 | W113: 否 | X113: 是 | Y113: 张晨 | Z113: 18287704004 | AA113: 澄江市农业农村局 | AB113: 松元村委会 | AC113: 是 | AD113: 否
A114: 109 | B114: 澄江市 | C114: 海口镇 | D114: 松元村委会 | E114: 产业发展—其他 | F114: 澄江市海口镇松元村委会松子园小组2023年财政衔接推进乡村振兴烤房建设项目 | G114: 2025年 | H114: 先建后补 | I114: 为加强农业产业配套基础设施建设，计划在松子元小组新建一群电力热泵烤房，改善烤烟生产条件，提升烟叶烘烤质量，少数民族地区群众增收困难的问题。 1. 新建轻钢结构管理房 1座，建筑面积 58.80 ㎡(内含值班室、配电室及储油间)。2.新建编烟棚一座，编烟棚长 29.20 米，宽5.08米，建筑面积148.34 ㎡，编烟棚主体采用钢架结构，具体做法详见施工图。3.拆除现有空心砖石棉瓦简易房750.00㎡。4.拆除1.60m宽高0.45m砖砌体56m。5.拆除200mm厚混凝土场地115㎡。6.烤房片区混凝土场地硬化1080㎡。7.乔木移栽18株。8.建设安装14HP闭式空气源热泵烤房 10 座(包含烤房主体及内部设备安装)。9.为考虑安全场地内安装监控系统1套(具体参数由专业厂家二次深化设计)。10.购买电启动额定功率300kW三相柴油发电机1台。11.安装动力柜1台动力柜(内含柜体、双头刀闸、电流表、电压表、空开)。12.安装 315KVA 变压器1 台(专业公司设计安装)。 | J114: 30.00 | K114: 30.00 | L114: 30.00 | M114: 0.00 | N114: 235 | O114: 720 | P114: 0 | Q114: 0 | R114: 为加强农业产业配套基础设施建设，计划在松子元小组新建一群电力热泵烤房，改善烤烟生产条件，提升烟叶烘烤质量，少数民族地区群众增收困难的问题。 | S114: 否 | T114: 带动农户发展生产增产增收—其他 | U114: 是 | V114: 否 | W114: 否 | X114: 是 | Y114: 张晨 | Z114: 18287704004 | AA114: 澄江市农业农村局 | AB114: 松元村委会 | AC114: 是 | AD114: 否
A115: 110 | B115: 澄江市 | C115: 海口镇 | D115: 永和村委会 | E115: 产业发展—市场建设和农村物流 | F115: 澄江市海口镇2025年乡村振兴衔接资金项目——永和村韭菜交易市场配套基础设施建设工程 | G115: 2025年 | H115: 新建 | I115: 永和村是澄江市的七个建档立卡脱贫村之一，主要致贫原因是基础设施建设落后和产业发展不充分。自2015年实施精准扶贫后，为了加大产业扶持力度，永和村充分利用南盘江河谷地带的温热气候，大力发展韭菜种植业，通过多年的扶持发展壮大，目前永和村成为了澄江韭菜种植的主产地，种植面积约2000多亩。为了方便群众售卖韭菜，永和村利用村内空地搭建简易的交易市场，引进农业企业进驻收购韭菜，从而降低群众的运输成本，提高经济收入。但由于场地过于简陋，缺少必要的遮雨棚和管理用房等，雨水季节及冬季严重影响交易活动。 为此永和村计划在简易市场上搭建1346平方米的遮雨棚，配套建设一间管理用房、一间农资交易中心。从而提升韭菜交易市场的硬件条件，方便群众和壮大村集体经济。 | J115: 72.00 | K115: 72.00 | L115: 72.00 | M115: 0.00 | N115: 510 | O115: 1614 | P115: 82 | Q115: 268 | R115: 完善蔬菜交易市场必要的配套设施，改善交易市场硬件条件，降低蔬菜运输成本，促进产业发展和农民增收。 | S115: 否 | T115: 带动农户发展生产增产增收—产品代销 | U115: 是 | V115: 否 | W115: 否 | X115: 是 | Y115: 张晨 | Z115: 18287704004 | AA115: 澄江市农业农村局 | AB115: 永和村委会 | AC115: 是 | AD115: 否
A116: 111 | B116: 澄江市 | C116: 海口镇 | D116: 松元村委会 | E116: 产业发展—小型农田水利设施建设 | F116: 澄江市海口镇2025年乡村振兴衔接资金项目——松元村松子元小组水缸坝农业产业区农业生产供水工程 | G116: 2025年 | H116: 新建 | I116: 水缸坝农业产业区位于松子元与浑水塘交界处，总面积约600余亩，地势平坦，是松子元小组的农业主产区，但由于常年缺水导致产业发展有限，每年的小春产业发展不充分。 现计划对水缸坝设施供水工程，从湖外用水循环项目的主水池引水至水缸坝农业产业区，按照智能水表方便群众用水，从而解决水缸坝的缺水问题，促进农业产业发展，完善联农带农机制促进农民增收。 | J116: 200.00 | K116: 200.00 | L116: 200.00 | M116: 0.00 | N116: 235 | O116: 720 | P116: 0 | Q116: 0 | R116: 完成主水池到田间地头分水管的安装，改善农业生产用水条件，充分发展大小春产业，促进农民增收；安装智能水表，刷卡取水、节约用水，方便群众生产和规范用水秩序。 | S116: 否 | T116: 带动农户发展生产增产增收—托养托管 | U116: 是 | V116: 否 | W116: 否 | X116: 是 | Y116: 张晨 | Z116: 18287704004 | AA116: 澄江市农业农村局 | AB116: 松元村委会 | AC116: 是 | AD116: 否
A117: 112 | B117: 澄江市 | C117: 海口镇 | D117: 海口社区 | E117: 乡村建设行动—农村道路建设（通村路、通户路、小型桥梁等） | F117: 澄江市海口镇2025年乡村振兴衔接资金项目——海口社区上下红坡地质灾害搬迁点基础设施以工代赈建设工程 | G117: 2025年 | H117: 新建 | I117: 为了消除海口下红坡地质灾害点安全隐患和改善上红坡村民的居住条件，2023年海口镇对下红坡地灾区内的35户116人进行易地搬迁，对上红坡基础设施落后、居住环境差的54户195人进行迁村并点，规划用地面积34379.26㎡（约51亩），建筑占地面积12410.95 ㎡，总建筑面积34105㎡，规划安置居住户数97 户。目前群众自建房已经全部完成，但由于资金短缺问题，基础配套设施极其落后，导致村内部分区域高差较大、无挡土墙，严重危险村民生命财产安全；村内道路没有硬化，严重影响村民出行及居住；雨污设施未落实，影响村内环境卫生和抚仙湖保护。项目计划实施搬迁点村内的挡土墙、道路、雨污等急需实施的配套建设。 | J117: 500.00 | K117: =L117+M117 -> 500.00 | L117: 400.00 | M117: 100.00 | N117: 104 | O117: 305 | P117: 7 | Q117: 20 | R117: 完成上下红坡搬迁村村内挡土墙建设，消除村内道路垮塌风险，消除安全隐患；完成村内生活污水排污工程，解决村民生活污水排放问题；完成村内道路硬化工程，改善村民居住条件和人居环境。 | S117: 否 | T117: 不需要 | U117: 是 | V117: 否 | W117: 否 | X117: 否 | Y117: 张晨 | Z117: 18287704004 | AA117: 澄江市农业农村局 | AB117: 海口社区 | AC117: 是 | AD117: 否
A118: 113 | B118: 澄江市 | C118: 海口镇 | D118: 海关社区 | E118: 产业发展—休闲农业与乡村旅游 | F118: 澄江市海口镇海关社区民族团结进步示范村项目 | G118: 2025年 | H118: 新建 | I118: 该项目占地面积5000平方米，土地现状为沙石地面，土地性质为村集体建设用地。一是投资78万元对4800平方米的沙石路面进行硬化。二是投资32万元建设农村特色市集，新建木质房屋200平方米及部分临时农产品交易点，带动周边群众自产的蓝莓、葡萄等农产品交易。 | J118: 100.00 | K118: 100.00 | L118: 100.00 | M118: 0.00 | N118: 289 | O118: 822 | P118: 10 | Q118: 26 | R118: 该项目采取“政府+村集体+群众”的模式，用集体土地入股，争取上级部门资金及集体自筹资金模式进行建设，建成后由村办公司运营。。社会效益：本项目能够有力地促进海关社区农业、旅游业发展的集约化、规模化、产业化，可以形成良好的产业配套条件和投资环境，有利于形成以“文旅+产业”为核心的产业结构，进一步改善投资环境，对区域发展有极大的促进作用。经济效益：本项目的建设和实施将有效带动多行业的发展，同时提升村庄知名度和产业品牌，促进村10户餐饮业、15户民宿业的发展，农业方面可带动10亩葡萄、100亩蓝莓、20亩桃子及500余亩各类蔬菜种植交易，带动约200人就业增收。村集体经济每年增收15万元，促进矣渡片区服务能力的提升。 | S118: 否 | T118: 吸纳农村劳动力稳定就业增收—吸纳就业 | U118: 是 | V118: 否 | W118: 否 | X118: 是 | Y118: 张晨 | Z118: 18287704004 | AA118: 澄江市民族宗教事务局 | AB118: 海关社区 | AC118: 是 | AD118: 否
A119: 114 | B119: 澄江市 | C119: 海口镇 | D119: 海关社区 | E119: 产业发展—其他 | F119: 澄江市海口镇海关社区矣渡村2025年衔接资金乡村旅游创意集市建设项目 | G119: 2025年 | H119: 新建 | I119: 块新建产业配套用房 2 栋，新建建筑退让道路后单栋一层占地面积 129.60 平方米，两栋总建筑面积 259.20 平方米。建筑层数一层，建筑高度 4.50 米 | J119: 70.00 | K119: 70.00 | L119: 70.00 | M119: 0.00 | N119: 287 | O119: 824 | P119: 9 | Q119: 26 | R119: 以建设改善海口镇海关片区群众生活水平为主题，改善该片区旅游配套设施现状，实现人 居环境、自然生态、产业发展、农民增收、社会保障、社区服务以及农民素质的全面提升， 提高整体生活水平。 | S119: 否 | T119: 吸纳农村劳动力稳定就业增收—吸纳就业 | U119: 是 | V119: 否 | W119: 否 | X119: 是 | Y119: 张晨 | Z119: 18287704004 | AA119: 澄江市农业农村局 | AB119: 海关社区 | AC119: 是 | AD119: 是
A120: 115 | B120: 澄江市 | C120: 海口镇 | D120: 新村村委会 | E120: 产业发展—小型农田水利设施建设 | F120: 澄江市海口镇新村委会浑水塘2025年衔接资金-农业产业区供水工程建设项目（发展蔬菜种植产业） | G120: 2025年 | H120: 新建 | I120: 安装 DN20～DN200 镀锌钢管共 10420.3m,DW273.1 螺旋钢管 176.4m，DW323.9 螺旋钢管 184.8m；DN300 暗杆螺旋闸阀(Z41H-16C)1 套，DN200 暗杆螺旋闸阀(Z41H-16C)1 套，DN100 暗杆螺旋闸阀 (Z41H-16C)1 套，安装 DN80 暗杆螺旋闸阀(Z41H-16C)2 套；安装放空 阀(Z41H-16C，DN50）6 套；安装 DN40 排气阀 16 套；智能水表 65 套，混凝土浇筑田间配水阀井 65 座，DN25 田间配水闸阀 16 套，DN40 田间配水闸阀 49 套 | J120: 234.00 | K120: 234.00 | L120: 140.40 | M120: 93.60 | N120: 157 | O120: 516 | P120: 1 | Q120: 4 | R120: 以建设改善村小组群众生活水平为主题，在浑水塘小组实施产业 发展、农民增收、社会保障、村委会服务以及农民素质的全面提升， 提高整体居住水平 | S120: 否 | T120: 带动农户发展生产增产增收—其他 | U120: 是 | V120: 否 | W120: 否 | X120: 是 | Y120: 张晨 | Z120: 18287704004 | AA120: 澄江市农业农村局 | AB120: 新村村委会 | AC120: 是 | AD120: 是
A121: 116 | B121: 澄江市 | C121: 路居镇 | D121: 三百亩村委会 | E121: 乡村建设行动—产业路、资源路、旅游路建设 | F121: 澄江市路居镇2025年财政衔接推进乡村振兴—路居镇三百亩莫洛山柏油路建设项目 | G121: 2025年 | H121: 改建 | I121: 三莫公路长1.6千米，现为弹石路。因年久失修，路面坑洼不平，为改善人居环境，促进旅游业发展，拟建设成柏油路。 | J121: 260.00 | K121: 260.00 | L121: 260.00 | M121: 0.00 | N121: 301 | O121: 860 | P121: 82 | Q121: 324 | R121: 通过建设莫洛山柏油路，提升人居环境，促进旅游业发展。 | S121: 否 | T121: 不需要 | U121: 是 | V121: 否 | W121: 否 | X121: 否 | Y121: 郭彪 | Z121: 13988492573 | AA121: 澄江市农业农村局 | AB121: 三百亩村委会 | AC121: 否 | AD121: 否
A122: 117 | B122: 澄江市 | C122: 路居镇 | D122: 三百亩村委会 | E122: 产业发展—农产品仓储保鲜冷链基础设施建设 | F122: 澄江市路居镇2025年财政衔接推进乡村振兴-冷库建设项目 | G122: 2025年 | H122: 新建 | I122: 三百亩村委会家家户户种植香椿，为使村民的香椿卖上好价钱，村集体公司统购统销，拟建设冷库，促进香椿产业发展。 | J122: 8.70 | K122: 8.70 | L122: 8.70 | M122: 0.00 | N122: 301 | O122: 860 | P122: 82 | Q122: 324 | R122: 通过建设冷库，促进香椿产业发展。 | S122: 否 | T122: 带动农户发展生产增产增收—其他 | U122: 是 | V122: 否 | W122: 是 | X122: 是 | Y122: 郭彪 | Z122: 13988492573 | AA122: 澄江市农业农村局 | AB122: 三百亩村委会 | AC122: 是 | AD122: 否
A123: 118 | B123: 澄江市 | C123: 路居镇 | D123: 三百亩村委会 | E123: 产业发展—品牌打造和展销平台 | F123: 澄江市路居镇2025年财政衔接推进乡村振兴-香椿有机认证项目 | G123: 2025年 | H123: 新建 | I123: 三百亩的香椿已连续认证2年，为使香椿价格稳定，需每年做有机产品认证。 | J123: 1.50 | K123: 1.50 | L123: 1.50 | M123: 0.00 | N123: 301 | O123: 860 | P123: 82 | Q123: 324 | R123: 通过香椿有机产品认证，促进香椿产业发展。 | S123: 否 | T123: 带动农户发展生产增产增收—其他 | U123: 是 | V123: 否 | W123: 否 | X123: 否 | Y123: 郭彪 | Z123: 13988492573 | AA123: 澄江市农业农村局 | AB123: 三百亩村委会 | AC123: 否 | AD123: 否
A124: 119 | B124: 澄江市 | C124: 路居镇 | D124: 中坝社区 | E124: 产业发展—农产品仓储保鲜冷链基础设施建设 | F124: 路居镇中坝社区食用菌工厂化种植车间改造项目 | G124: 2025年 | H124: 新建 | I124: 将社区50个电烤棚改造为食用菌工厂化种植车间，改造面积约3600平方米，发展食用菌工厂化种植。 | J124: =SUM(K124:L124) -> 140.00 | K124: =SUM(L124:M124) -> 70.00 | L124: 70.00 | M124: 0.00 | N124: 2176 | O124: 5536 | P124: 38 | Q124: 112 | R124: 有效盘活资源，带动产业发展，预计增收10万元。 | S124: 否 | T124: 吸纳农村劳动力稳定就业增收—吸纳就业 | U124: 是 | V124: 否 | W124: 是 | X124: 是 | Y124: 郭彪 | Z124: 13988492573 | AA124: 中共澄江市委组织部 | AB124: 中坝社区 | AC124: 是 | AD124: 否
A125: 120 | B125: 澄江市 | C125: 路居镇 | D125: 下坝社区 | E125: 产业发展—其他 | F125: 路居镇下坝社区田园综合体项目 | G125: 2025年 | H125: 新建 | I125: （1）农场夏令营：投入资金70万，以农耕研学为主题，修建农耕研学栈道，配备研学桌椅、器材等10套，同时还配备咖啡机、奶茶机设备、软装、集装箱改造，为游客提供农事体验、农事教育、农事科普、休闲娱乐等经营活动的场所；（2）嬉水游娱：投入资金8万元，依托调蓄带打造水上游乐项目，配置无动力小游船3类20组，救生设备20套。 | J125: =SUM(K125:L125) -> 140.00 | K125: 70.00 | L125: 70.00 | M125: 0.00 | N125: 50 | O125: 198 | R125: 打造多个空间节点串联的休闲、度假、研学、文娱、商服等多业态融合的综合田园体项目，激活整个农文旅产业链条，助力东西海边村旅游业发展，壮大村集体经济。 | S125: 否 | T125: 吸纳农村劳动力稳定就业增收—吸纳就业 | U125: 是 | V125: 否 | W125: 否 | X125: 是 | Y125: 郭彪 | Z125: 13988492573 | AA125: 中共澄江市委组织部 | AB125: 下坝社区 | AC125: 否 | AD125: 否
A126: 121 | B126: 澄江市 | C126: 路居镇 | D126: 三百亩 | E126: 产业发展—其他 | F126: 路居镇三百亩村山野卡丁项目 | G126: 2025年 | H126: 新建 | I126: 购置无动力卡丁车20个、购置防碰撞设施若干，设置警示标牌若干，配套其余设施。 | J126: =SUM(K126:L126) -> 140.00 | K126: 70.00 | L126: 70.00 | M126: 0.00 | N126: 301 | O126: 860 | P126: 82 | Q126: 324 | R126: 项目建成后每年收入5万元，有效吸引游客，推动三百亩经济发展，带动乡村旅游业发展。 | S126: 否 | T126: 吸纳农村劳动力稳定就业增收—吸纳就业 | U126: 是 | V126: 否 | W126: 否 | X126: 是 | Y126: 郭彪 | Z126: 13988492573 | AA126: 中共澄江市委组织部 | AB126: 三百亩 | AC126: 否 | AD126: 否
A127: 122 | B127: 澄江市 | C127: 路居镇 | D127: 三百亩村 | E127: 产业发展—种植业基地 | F127: 澄江市人民政府关于澄江市路居镇2025年财政衔接推进乡村振兴—三百亩提水泵站建设项目 | G127: 2025年 | H127: 新建 | I127: 1.高位水池工程；（端新建200m3高位水池）2.管道建设工程；（共建设输水管道18.737km，其中新建提水管道总长4.884km。新建输水管道总长9.263km，新建人饮配水管道长4.590km） | J127: 204.3000 | K127: 204.30 | L127: 204.30 | M127: 0.00 | N127: 303 | O127: 857 | P127: 82 | Q127: 327 | R127: 通过澄江市路居镇2025年财政衔接推进乡村振兴-三百亩提水泵站建设项目建设：1.有利于解决农业灌溉用水问题，同时适当解决部分农村人饮用水问题。工程建成后，可解决三百亩村全村耕地（旱地）面积2221.65亩农田灌溉问题，以及三百亩村、菜鲁、小白岩村组现状1072人的人饮供水问题；2.为贫困群众建立长期稳定的增收岗位，后期种植经营主体在生产过程中，也将带动当地农民就业，预计提供灵活就业岗位30个；3.改善三百亩提水现状，通过提水泵站工程等配套设施的健全，使群众交易现状得到改善、社会综合治理等方面得到有效地提高，大幅度提高了农村公共服务水平。 | S127: 否 | T127: 促进农户共享资产收益增收—其他 | U127: 是 | V127: 否 | W127: 不涉及 | X127: 是 | Y127: 郭彪 | Z127: 13988492573 | AA127: 澄江市农业农村局 | AB127: 三百亩村 | AC127: 是 | AD127: 是
A128: 123 | B128: 澄江市 | C128: 海口镇 | D128: 海关社区 | E128: 产业发展—休闲农业与乡村旅游 | F128: 澄江市海口镇2025年乡村振兴衔接资金项目——海关社区矣渡村乡村振兴文旅融合产业示范建设工程 | G128: 2025 | H128: 新建 | I128: 1.村内道路等基础设施提升改造；2.村内污水管网提升改造；3.旅居民宿房屋改造；4.村内挡墙建设，村内道路坍塌区域需挡墙支护修复；5.防护栏杆安装， 村内坡度较陡、临空高度较高的道路旁增设护栏。 | J128: 1121.76 | K128: 1121.76 | L128: 1121.76 | M128: 0.00 | N128: 289 | O128: 846 | P128: 9 | Q128: 20 | R128: 以建设改善海口镇海关社区矣渡小组群众生活水平为主题，改善该片区旅游配套设施现状，实现人居环境、自然生态、产业发展、农民增收、社会保障、社区服务以及农民素质的全面提升，提高整体生活水平。带动区域经济增长：项目实施在盘活闲置资源的同时区域产业服务设施得到进一步完善，带动周边餐饮、住宿等相关产业发展，形成产业集群，创造更多就业岗位和经济效益，为村集体建立了长期稳定的增收产业，缓解就业压力。同时，通过吸引游客消费，带动相关产业的发展，促进区域经济的增长，推动乡村振兴进程。 | S128: 是 | T128: 带动农户发展生产增产增收—其他 | U128: 是 | V128: 否 | W128: 否 | X128: 否 | Y128: 张晨 | Z128: 18287704004 | AA128: 澄江市农业农村局 | AB128: 海关社区 | AC128: 是 | AD128: 否
A129: 124 | B129: 通海县 | C129: 全县 | D129: 全县范围 | E129: 就业项目—技能培训 | F129: 2025年通海县脱贫人口劳动力转移培训 | G129: 2025年 | H129: 新建 | I129: 结合“雨露计划＋就业”针对全县790户脱贫户组织实施通海县脱贫人口劳动技能提升培训班，结合脱贫户实际需要，通过手把手、面对面的教学方式，把理论培训转向课堂培训和现场指导，提升了参训人员实践能力。帮助脱贫群众树立发展产业的信心，以技术帮扶和送教到村到户，促进农民增产增收。 | J129: 10.00 | K129: 10.00 | L129: 10.00 | M129: 0.00 | N129: 790 | O129: 2574 | P129: 790 | Q129: 2574 | R129: 通过项目实施，有效增加了群众劳动技能，增加市场竞争力，提高家庭收入受益脱贫户790户。 | S129: 是 | T129: 公司+贫困户” | U129: 不涉及 | V129: 否 | W129: 否 | X129: 否 | Y129: 杨金木 | Z129: 15187700051 | AA129: 通海县农业农村局 | AB129: 不形成资产 | AC129: 是 | AD129: 否
A130: 125 | B130: 通海县 | C130: 全县 | D130: 全县范围 | E130: 就业项目—公益性岗位 | F130: 2025年通海县乡村公益性岗位开发 | G130: 2025年 | H130: 新建 | I130: 为持续做好我县脱贫人口（含监测对象）的就业帮扶工作，巩固拓展脱贫攻坚成果，助力全面推进乡村振兴，按照“按需设岗、以岗聘任、在岗领补、退岗有序”的乡村公益性岗位开发机制，开发一批乡村乡村公益性岗位，重点安置“无法离乡、无业可扶、无力脱贫”且有能力胜任岗位工作的脱贫劳动力（含监测对象），确保有愿意的脱贫劳动力家庭至少有1人实现稳定就业。按照不低于800元/月的标准给予乡村公益性岗位补贴，实现脱贫劳动力（含监测户）持续稳定增收。 | J130: 192.00 | K130: 153.00 | L130: 153.00 | M130: 0.00 | N130: 796 | O130: 2564 | P130: 796 | Q130: 2564 | R130: 带动脱贫劳动力和监测对象增收年均增收1万元以上。 | S130: 是 | T130: 吸纳农村劳动力稳定就业增收—吸纳就业 | U130: 不涉及 | V130: 否 | W130: 否 | X130: 否 | Y130: 叶晓娇 | Z130: 13708678998 | AA130: 通海县人力资源和社会保障局 | AB130: 不形成资产 | AC130: 是 | AD130: 否
A131: 126 | B131: 通海县 | C131: 全县 | D131: 全县范围 | E131: 就业项目—交通费补助 | F131: 2025年通海县脱贫劳动力（含监测户）跨省务工一次性交通补助 | G131: 2025年 | H131: 新建 | I131: 为进一步巩固脱贫攻坚成果，确保我县脱贫劳动力（含监测帮扶对象）稳岗就业、持续增收，对跨省外出务工且稳定就业 3 个月以上的脱贫人口（含监测对象），按照跨省务工人员给予一次性外出务工交通补助（每年享受 1 次）。 | J131: 7.00 | K131: 7.00 | L131: 7.00 | M131: 0.00 | N131: 796 | O131: 2564 | P131: 796 | Q131: 2564 | R131: 带动跨省外出务工且稳定就业3个月以上脱贫人口（含监测对象）增收1000元/年/人 | S131: 是 | T131: 吸纳农村劳动力稳定就业增收—吸纳就业 | U131: 不涉及 | V131: 否 | W131: 否 | X131: 否 | Y131: 叶晓娇 | Z131: 13708678998 | AA131: 通海县人力资源和社会保障局 | AB131: 不形成资产 | AC131: 是 | AD131: 否
A132: 127 | B132: 通海县 | C132: 全县 | D132: 全县范围 | E132: 就业项目—交通费补助 | F132: 2025年通海县脱贫劳动力（含监测户）省内跨州市务工一次性交通补助 | G132: 2025年 | H132: 新建 | I132: 为进一步巩固脱贫攻坚成果，确保我县脱贫劳动力（含监测帮扶对象）稳岗就业、持续增收，对省内跨州市外出务工且稳定就业 3 个月以上的脱贫人口（含监测对象），按照省内跨州市务工人员给予一次性外出务工交通补助（每年享受 1 次）。 | J132: 7.00 | K132: 7.00 | L132: 7.00 | M132: 0.00 | N132: 796 | O132: 2564 | P132: 796 | Q132: 2564 | R132: 带动省内跨州市务工且稳定就业3个月以上脱贫人口（含监测对象）增收500元/年/人 | S132: 是 | T132: 吸纳农村劳动力稳定就业增收—吸纳就业 | U132: 不涉及 | V132: 否 | W132: 否 | X132: 否 | Y132: 杨金木 | Z132: 15187700051 | AA132: 通海县农业农村局 | AB132: 不形成资产 | AC132: 是 | AD132: 否
A133: 128 | B133: 通海县 | C133: 全县 | D133: 全县范围 | E133: 巩固三保障成果—享受“雨露计划”职业教育补助 | F133: 2025年通海县雨露计划职业教育学生补助 | G133: 2025年 | H133: 新建 | I133: 全县脱贫户家庭子女接受职业教育进行补助每人每年约3000-5000元。 | J133: 50.00 | K133: 50.00 | L133: 50.00 | M133: 0.00 | N133: 790 | O133: 2574 | P133: 790 | Q133: 2574 | R133: 全县脱贫户家庭子女接受职业教育进行补助每人每年3000-5000元。切实增加脱贫户家庭年收入。 | S133: 是 | T133: 吸纳农村劳动力稳定就业增收—其他 | U133: 不涉及 | V133: 否 | W133: 否 | X133: 否 | Y133: 杨金木 | Z133: 15187700051 | AA133: 通海县农业农村局 | AB133: 不形成资产 | AC133: 是 | AD133: 否
A134: 129 | B134: 通海县 | C134: 全县 | D134: 全县范围 | E134: 产业发展—小额贷款贴息 | F134: 通海县_金融扶贫_2025年扶贫小额信贷贴息项目 | G134: 2025年 | H134: 新建 | I134: 为2023-2025年发放的小额信用贷款发放贴息资金。 | J134: 70.00 | K134: 70.00 | L134: 70.00 | M134: 0.00 | N134: 790 | O134: 2574 | P134: 790 | Q134: 2574 | R134: 户均增收5000元 | S134: 是 | T134: 带动农户发展生产增产增收—订单生产 | U134: 不涉及 | V134: 否 | W134: 否 | X134: 否 | Y134: 杨金木 | Z134: 15187700051 | AA134: 通海县农业农村局 | AB134: 不形成资产 | AC134: 是 | AD134: 否
A135: 130 | B135: 通海县 | C135: 河西镇 | D135: 改水沟村 | E135: 产业发展—市场建设和农村物流 | F135: 2025年通海县河西镇改水沟村农资仓储中心建设项目 | G135: 2025年 | H135: 新建 | I135: 新建化肥农药等农资仓储中心200平米，污水处理排放建设，为改水沟村村民种植提供服务，缩减运输成本，方便群众生产经营。铺设改水沟二组新农村雨污管网，提升群众人居环境。 | J135: 91.63 | K135: 91.63 | L135: 70.00 | M135: 21.63 | N135: 184 | O135: 556 | P135: 71 | Q135: 218 | R135: 方便当地群众生产经营，带动改水沟村农业、经济的发展，提升农村人居环境，从而促进项目影响区域的经济繁荣。 | S135: 否 | T135: 吸纳农村劳动力稳定就业增收—吸纳就业 | U135: 是 | V135: 否 | W135: 是 | X135: 是 | Y135: 陈兆宝 | Z135: 15894287081 | AA135: 通海县农业农村局 | AB135: 河西镇改水沟村民委员 | AC135: 是 | AD135: 否
A136: 131 | B136: 通海县 | C136: 河西镇 | D136: 河西社区 | E136: 产业发展—休闲农业与乡村旅游 | F136: 2025年河西镇河西社区蓝莓采摘园基地建设（通海县河西镇河西社区水果种植采摘园建设项目） | G136: 2025年 | H136: 新建 | I136: （1）土地平整7亩； （2）钢构大棚主体建设； （3）安装灌溉管道1200米及相关配套设施。 | J136: 73.18 | K136: 73.18 | L136: 70.00 | M136: 3.18 | N136: 100 | O136: 450 | P136: 4 | Q136: 8 | R136: 有效提高集体经济收入；辐射带动群众增收；能吸引脱贫户和边缘户就业，增加收入 | S136: 否 | T136: 带动农户发展生产增产增收—其他 | U136: 是 | V136: 否 | W136: 否 | X136: 是 | Y136: 程宝康 | Z136: 13619475607 | AA136: 通海县委组织部 | AB136: 河西镇河西社区 | AC136: 是 | AD136: 是
A137: 132 | B137: 通海县 | C137: 河西镇 | D137: 石山嘴村 | E137: 乡村建设行动—农村供水保障设施建设 | F137: 2025年河西镇石山嘴村人畜饮水管网改造项目 | G137: 2025年 | H137: 新建 | I137: 为整合石山嘴村山地资源，石山嘴村计划于2024年在我村凤山顶新建一个1000㎥的高位蓄水池，进行石山嘴村山地进行灌溉蓄水。将八组龙潭地表水用新建管道将水抽入新建高位蓄水池内，作为高位水池的取水点供应山地灌溉，水管规格：DN100，总长8700m,道路修建：3KM. | J137: 15.27 | K137: 15.27 | L137: 15.00 | M137: 0.27 | N137: 2142 | O137: 5656 | P137: 5 | Q137: 23 | R137: 完善基础设施，带动村民增收 | S137: 否 | T137: 带动农户发展生产增产增收—其他 | U137: 是 | V137: 否 | W137: 是 | X137: 是 | Y137: 李秀娟 | Z137: 13577791560 | AA137: 通海县农业农村局 | AB137: 河西镇石山嘴村民委员会 | AC137: 是 | AD137: 是
A138: 133 | B138: 通海县 | C138: 秀山街道 | D138: 黄龙社区 | E138: 产业发展—市场建设和农村物流 | F138: 2025年通海县秀山街道黄龙社区农贸市场建设项目 | G138: 2025年 | H138: 新建 | I138: 建设钢架结构交易大棚两个，一个建设面积为200㎡，一个建设面积为300㎡，总建设面积500㎡。 | J138: 63.10 | K138: 63.10 | L138: 60.00 | M138: 3.10 | N138: 1620 | O138: 5352 | P138: 0 | Q138: 0 | R138: 通过2025年通海县秀山街道黄龙社区土特产交易中心建设项目的实施，提升人民群众生活质量，发展壮大集体经济。 | S138: 否 | T138: 吸纳农村劳动力稳定就业增收—吸纳就业；盘活闲置土地资源，壮大社区组织集体经济。 | U138: 是 | V138: 否 | W138: 否 | X138: 是 | Y138: 张兴龙 | Z138: 13887700365 | AA138: 通海县农业农村局 | AB138: 秀山街道黄龙社区 | AC138: 是 | AD138: 是
A139: 134 | B139: 通海县 | C139: 秀山街道 | D139: 长河社区 | E139: 产业发展—种植业基地 | F139: 2025年通海县秀山街道长河社区溥家山有机蔬菜种植基地大棚建设项目 | G139: 2025年 | H139: 新建 | I139: 建设农业有机蔬菜基地大棚及配套设施，占地面积20亩。 | J139: 42.38 | K139: 42.38 | L139: 40.00 | M139: 2.38 | N139: 1255 | O139: 4228 | P139: 0 | Q139: 0 | R139: 通过2025年通海县秀山街道长河社区溥家山有机蔬菜种植基地大棚建设项目的实施，提升人民群众生活质量，发展壮大集体经济。 | S139: 否 | T139: 吸纳农村劳动力稳定就业增收—吸纳就业；盘活闲置土地资源，壮大社区组织集体经济。 | U139: 是 | V139: 否 | W139: 否 | X139: 是 | Y139: 张兴龙 | Z139: 13887700365 | AA139: 通海县农业农村局 | AB139: 秀山街道长河社区 | AC139: 是 | AD139: 否
A140: 135 | B140: 通海县 | C140: 秀山街道 | D140: 万家社区 | E140: 乡村建设行动—农村道路建设（通村路、通户路、小型桥梁等） | F140: 2025年通海县秀山街道万家社区“千万工程”示范村建设项目（万家社区五组至二组村内道路） | G140: 2025年 | H140: 改（扩）建 | I140: 万家社区总户数1654户，总人口5144人。该道路是从西自东贯通万家社区五六组和5个沿湖小组的主要村内道路，同时也是秀二小片区部分学生上下学必经之路，涉及人口户数996户，人口3006人。计划投入资金125万元，对该主要村庄道路，长1000米，道路宽8米，厚度0.2米，进行平整夯实及硬化。 | J140: 87.33 | K140: 87.33 | L140: 50.00 | M140: 37.33 | N140: 2650 | O140: 8150 | P140: 0 | Q140: 0 | R140: 通过2025年通海县秀山街道万家社区“千万工程”示范村建设项目（万家社区主要村内道路硬化）的实施，方便农产品运输，夯实农业基础设施，强化整治人居环境，巩固提升人民群众生活质量，；进一步改善秀山二小学生上下学交通条件，缓解交通压力。 | S140: 否 | T140: 带动农户发展生产增产增收—其他 | U140: 是 | V140: 否 | W140: 否 | X140: 否 | Y140: 张兴龙 | Z140: 13887700365 | AA140: 通海县农业农村局 | AB140: 秀山街道万家社区 | AC140: 是 | AD140: 否
A141: 136 | B141: 通海县 | C141: 秀山街道 | D141: 东村社区 | E141: 乡村建设行动—农村道路建设（通村路、通户路、小型桥梁等） | F141: 2025年通海县秀山街道东村社区（二组）村庄道路硬化建设项目 | G141: 2025年 | H141: 新建 | I141: 村庄道路硬化长287.5米，宽10米，2875平方米；场地硬化长39米，宽28米，1092平方米。 | J141: 65.84 | K141: 65.84 | L141: 50.00 | M141: 15.84 | N141: 156 | O141: 375 | P141: 1 | Q141: 3 | R141: 通过项目的实施，提升人民群众生活质量，完善村内基础设施，强化整治人居环境。 | S141: 否 | T141: 不涉及 | U141: 是 | V141: 否 | W141: 否 | X141: 否 | Y141: 张兴龙 | Z141: 13887700365 | AA141: 通海县农业农村局 | AB141: 秀山街道东村社区 | AC141: 是 | AD141: 是
A142: 137 | B142: 通海县 | C142: 九龙街道 | D142: 碧溪社区 | E142: 产业发展—新型农村集体经济发展项目 | F142: 2025年通海县九龙街道碧溪社区充电桩建设项目 | G142: 2025年 | H142: 新建 | I142: 近年来新能源车普及，对充电桩的需求日益增长，农村建设充电桩相对滞后，为方便周边群众出行，改善农村环境，提高农村新能源利用效率，选择在碧溪社区七组空地处建设充电桩。该地距离通海火车站1公里，便于火车站接送旅客车辆出行充电，获得收益能壮大村集体经济。项目建设内容如下：1、投资35万元安装1250KVA欧变变压器一台，配套高压电力施工长度约100米；2、投资27.5万元安装12个120KW快充直流桩1000V风冷双/单枪新能源充电接口，满足充电桩的正常运营。选用符合国家标准的新能源充电设备，通过NB/T33008.1(2)-2018最新国标认证，防水防尘、准确计量、快捷支付，确保充电安全可靠；3、场地建设面积1亩，投资6万元对场地硬化；4、投资7万元搭建遮雨棚、自动门闸等配套设施；5、投资25万元安装光伏发电板，做到场地多效合一，能源共享。 | J142: 76.87 | K142: 76.87 | L142: 40.00 | M142: 36.87 | N142: 1786 | O142: 5780 | P142: 0 | Q142: 0 | R142: 促进农村新能源结构调整，提高能源利用效率，降低农村居民的能源消费成本，解决居民在家充电的用电安全问题。完善基层便民服务设施，提升居民满意度。充电桩收益有利于壮大经济经济收入。 | S142: 否 | T142: 吸纳农村劳动力稳定就业增收—吸纳就业 | U142: 是 | V142: 否 | W142: 否 | X142: 是 | Y142: 钟为庆 | Z142: 13987792595 | AA142: 通海县农业农村局 | AB142: 九龙街道碧溪社区 | AC142: 是 | AD142: 否
A143: 138 | B143: 通海县 | C143: 九龙街道 | D143: 大梨社区 | E143: 产业发展—市场建设和农村物流 | F143: 2025年通海县九龙街道大梨社区梨苑农贸市场提档升级改造项目 | G143: 2025年 | H143: 新建 | I143: 大梨社区梨苑早市、夜市提档升级改造项目共投资32.6万元，对以下四项进行提档升级改造：1、早市/夜市统一固定摊位架，铁制（3米×1.2米×1.8米）120个，2300元/个，共27.6万元；2、集市电力设施改造800米，其中早市区500米，夜市区300米，50元每米（含材料及工时等费用）共4万元；3、增加市集垃圾桶20个，180元/个合计3600元；4、市集指示牌、摊位固定宣传指标语标牌共计80块，每块80元共6400元。 | J143: 29.20 | K143: 29.20 | L143: 28.00 | M143: 1.20 | N143: 1568 | O143: 4886 | P143: 0 | Q143: 0 | R143: 项目实施完成后，可增加社区集体经济收益10万元以上，实现社区民族团结示范创建与经济发展同步推进。 | S143: 否 | T143: 吸纳农村劳动力稳定就业增收—吸纳就业 | U143: 是 | V143: 否 | W143: 否 | X143: 是 | Y143: 钟为庆 | Z143: 13987792595 | AA143: 通海县农业农村局 | AB143: 九龙街道大梨社区 | AC143: 是 | AD143: 是
A144: 139 | B144: 通海县 | C144: 杨广镇 | D144: 五垴山 | E144: 乡村建设行动—农村供水保障设施建设 | F144: 2025年通海县杨广镇五垴山村人畜饮水安全提升改造工程 | G144: 2025年 | H144: 新建 | I144: 打深井1口，大约300——400米，架设管网600米（DN50管），安装线路300米。 | J144: 80.00 | K144: 80.00 | L144: 70.00 | M144: 10.00 | N144: 454 | O144: 1511 | P144: 17 | Q144: 54 | R144: 解决多年来四、五、六三个组人畜饮水困难。增加村集体经济收入。（每年可增加收入10万）。 | S144: 否 | T144: 促进农户共享资产收益增收—其他 | U144: 是 | V144: 否 | W144: 否 | X144: 否 | Y144: 管家许 | Z144: 15808665129 | AA144: 通海县农业农村局 | AB144: 杨广镇五垴山村民委员会 | AC144: 是 | AD144: 否
A145: 140 | B145: 通海县 | C145: 杨广镇 | D145: 落凤村 | E145: 产业发展—新型农村集体经济发展项目 | F145: 2025年通海县杨广镇落凤村水果种植及初加工基地建设项目 | G145: 2025年 | H145: 新建 | I145: （1）新建西梅种植基地30亩，含土地平整、道路修建等； （2）种植基地滴灌、喷灌系统安装； （3）建设温室大棚与冷藏室占地面积5亩； （4）设建水管网5000米； （5）建设水果分拣厂； | J145: 76.00 | K145: 76.00 | L145: 70.00 | M145: 6.00 | N145: 787 | O145: 2289 | P145: 148 | Q145: 503 | R145: 有效提高集体经济收入；辐射带动群众增收；能吸引脱贫户和边缘户就业，增加收入 | S145: 否 | T145: 吸纳农村劳动力稳定就业增收—吸纳就业 | U145: 是 | V145: 否 | W145: 否 | X145: 是 | Y145: 程宝康 | Z145: 13619475607 | AA145: 通海县委组织部 | AB145: 杨广镇落凤村民委员会 | AC145: 是 | AD145: 否
A146: 141 | B146: 通海县 | C146: 杨广镇 | D146: 云龙 | E146: 产业发展—其他 | F146: 2025年通海县杨广镇云龙村蔬菜交易市场配套基础设施项目 | G146: 2025年 | H146: 新建 | I146: ①洗菜池208.25㎡，②路面硬化276.3㎡ | J146: 51.75 | K146: 51.75 | L146: 50.00 | M146: 1.75 | N146: 1552 | O146: 4235 | P146: 1 | Q146: 4 | R146: 每包菜收取0.5-1元的费用，每年可增加约8万元集体经济收入。雨季用于蓄水，平时可为群众提供洗菜用地，减少社会矛盾。结合东村农田尾水引入二次利用，减少杞麓湖入户河道水污染，有利于生态平衡。 | S146: 否 | T146: 吸纳农村劳动力稳定就业增收—吸纳就业 | U146: 是 | V146: 否 | W146: 否 | X146: 是 | Y146: 董艳梅 | Z146: 13987765499 | AA146: 通海县农业农村局 | AB146: 杨广镇云龙村民委员会 | AC146: 是 | AD146: 否
A147: 142 | B147: 通海县 | C147: 杨广镇 | D147: 兴义村 | E147: 产业发展—市场建设和农村物流 | F147: 2025年通海县杨广镇兴义村农贸市场建设项目 | G147: 2025年 | H147: 新建 | I147: 场地硬化1500平方米，搭建钢架大棚，规划摊位50个，配套市场照明、水电、管网排水、道闸建设 | J147: 68.22 | K147: 68.22 | L147: 50.00 | M147: 18.22 | N147: 1268 | O147: 3686 | P147: 1 | Q147: 5 | R147: 该项目的实施采取“村集体股份经济合作联合社+村小组股份经济合作社”的模式，利用小组的闲置用地，采取村委会和村小组合作建设农贸市场一个，吸引县内商户到市场进行经营，方便兴义村9个村民小组，3700余人购买蔬菜及生活物资采购，解决以路为市进行交易的现状，消除安全隐患。项目由村股份经济合作联合社争取衔接资金投入，项目建设完成后由村组集体经营管理，该项目建设后每年能够为村集体创收10万元，为村低收入村民提供就业岗位。 | S147: 否 | T147: 带动农户发展生产增产增收—产品代销 | U147: 是 | V147: 否 | W147: 否 | X147: 是 | Y147: 尹存俊 | Z147: 13577730203 | AA147: 通海县农业农村局 | AB147: 杨广镇兴义村民委员会 | AC147: 是 | AD147: 否
A148: 143 | B148: 通海县 | C148: 杨广镇 | D148: 古城村 | E148: 乡村建设行动—农村道路建设（通村路、通户路、小型桥梁等） | F148: 2025年通海县杨广镇古城村村庄道路硬化建设项目 | G148: 2025年 | H148: 新建 | I148: 古城村村庄道路硬化建设项目位于古城小新村村口至新村委会门口。该道路是小新村片区6个村民小组的主要村内道路，同时也是村委会、三圣宫、朱氏宗祠的必经之路，涉及人口户数697户，人口2358人。计划投入资金41万元，对该主要村庄道路约0.8公里进行沟盖板及扩宽：位于古城十组新农村道路进行沟道疏通后沟盖板将道路浇筑至8米宽，位于牛头山脚部分进行土方开挖将道路扩宽至约10米，位于村委会门口路段进行沟盖板后浇筑至约8米宽。 | J148: 41.00 | K148: 41.00 | L148: 40.00 | M148: 1.00 | N148: 697 | O148: 2358 | P148: 1 | Q148: 4 | R148: 项目的实施能改善村内人居环境，提升岳家营精忠文化的影响力，为下一步发展农文旅产业奠定基础。 | S148: 否 | T148: 不涉及 | U148: 是 | V148: 否 | W148: 否 | X148: 否 | Y148: 杨开雄 | Z148: 13527996688 | AA148: 通海县农业农村局 | AB148: 杨广镇古城村 | AC148: 是 | AD148: 是
A149: 144 | B149: 通海县 | C149: 杨广镇 | D149: 马家湾 | E149: 乡村建设行动—村容村貌提升 | F149: 2025年通海县杨广镇马家湾村千万工程示范村农村村貌提升项目 | G149: 2025年 | H149: 新建 | I149: 杨广镇马家湾村一组至四组（2个自然村）村庄道路硬化建设项目，计划建设内容：1.新农村道路硬化11828㎡，200mm厚C25砼2365.6m³，15cm天然碎砾石垫层，平整路面。2.C25砼挡土墙：长106m,高4m，顶宽0.4m，底宽1.6m，挡墙424m³，开挖土石方519 m³。 | J149: 120.00 | K149: 120.00 | L149: 40.00 | M149: 80.00 | N149: 701 | O149: 2026 | P149: 1 | Q149: 3 | R149: 改善村内人居环境，实现整村道路环境提升 | S149: 否 | T149: 不涉及 | U149: 是 | V149: 否 | W149: 否 | X149: 否 | Y149: 王洪喜 | Z149: 13988403687 | AA149: 通海县农业农村局 | AB149: 杨广镇马家湾村民委员会 | AC149: 是 | AD149: 否
A150: 145 | B150: 通海县 | C150: 杨广镇 | D150: 镇海村 | E150: 乡村建设行动—农村道路建设（通村路、通户路、小型桥梁等） | F150: 2025年通海县杨广镇镇海村村庄基础设施建设项目 | G150: 2025年 | H150: 新建 | I150: ①张家营给水管铺设（DN50 PE给水管:352.7m；DN50闸阀4个；DN50×50三通4个）； ②村庄内排水沟及盖板建施（详图纸）； ③村内道路及场地硬化：635.10m2。 | J150: 49.49 | K150: 49.49 | L150: 40.00 | M150: 9.49 | N150: 1861 | O150: 4890 | P150: 1 | Q150: 6 | R150: 项目的实施能改善村内人居环境，提升岳家营精忠文化的影响力，为下一步发展农文旅产业奠定基础。 | S150: 否 | T150: 不涉及 | U150: 是 | V150: 否 | W150: 否 | X150: 否 | Y150: 杨开雄 | Z150: 13527996688 | AA150: 通海县农业农村局 | AB150: 杨广镇镇海村 | AC150: 是 | AD150: 是
A151: 146 | B151: 通海县 | C151: 四街镇 | D151: 十街村九组 | E151: 产业发展—其他 | F151: 通海古酱菜技艺文化研习基地项目 | G151: 2025年 | H151: 新建 | I151: 1.改造龙泉小学原校址（占地面积：2589.2㎡，建筑面积：1880㎡）；2.改造部分教学楼及操场。 | J151: 40.00 | K151: 40.00 | L151: 30.00 | M151: 10.00 | N151: 8720 | O151: 38650 | P151: 11 | Q151: 36 | R151: 通过项目的实施，挖掘和保护通海传统酱咸菜技艺，带动酱菜产业上下游产业链发展，培养行业传承人和传统产品的商品化转型，提供部分就业岗位，壮大集体经济。 | S151: 否 | T151: 提供就业岗位，增加农民收入，收益分红。 | U151: 是 | V151: 否 | W151: 是 | X151: 是 | Y151: 季树崇 | Z151: 15187734300 | AA151: 通海县农业农村局 | AB151: 四街镇十街村九组 | AC151: 是 | AD151: 是
A152: 147 | B152: 通海县 | C152: 四街镇 | D152: 大营村 | E152: 产业发展—市场建设和农村物流 | F152: 四街镇大营村农产品交易市场建设项目 | G152: 2025年 | H152: 新建 | I152: 项目分两期建设，本次项目建设第一期，建设钢框架结构交易市场一层（至标高7.800m），占地面积901.47平方米，建筑面积901.47平方米，单层建筑高度7.8米，包含主体结构工程，水电安装工程以及装饰装修工程（不含外墙涂料）等，其余为二期建设。 | J152: 217.96 | K152: 217.96 | L152: 70.00 | M152: 147.96 | N152: 350 | O152: 1446 | P152: 3 | Q152: 12 | R152: 有效提高集体经济收入；辐射带动群众增收；能吸引脱贫户和边缘户就业，增加收入 | S152: 否 | T152: 提供就业岗位、收益分红 | U152: 是 | V152: 否 | W152: 否 | X152: 是 | Y152: 程宝康 | Z152: 13619475607 | AA152: 通海县委组织部 | AB152: 四街镇大营村民委员会 | AC152: 是 | AD152: 是
A153: 148 | B153: 通海县 | C153: 四街镇 | D153: 二街村 | E153: 产业发展—其他 | F153: 2025年四街镇二街村水资源综合利用建设项目 | G153: 2025年 | H153: 新建 | I153: ①给水管（自来水管）326米，②灌溉沟213米。 | J153: 31.14 | K153: 31.14 | L153: 30.00 | M153: 1.14 | N153: 1042 | O153: 5164 | P153: 5 | Q153: 10 | R153: 通过项目的实施，改善村民用水安全，社会和环境效益显著提高，保证了农村资源利用的最大化，提高农村经济水平。 | S153: 否 | T153: 提供就业岗位、增加农民收入 | U153: 是 | V153: 否 | W153: 否 | X153: 是 | Y153: 季树崇 | Z153: 15187734300 | AA153: 通海县农业农村局 | AB153: 四街镇二街村民委员会 | AC153: 是 | AD153: 是
A154: 149 | B154: 通海县 | C154: 四街镇 | D154: 海东村 | E154: 乡村建设行动—其他 | F154: 2025年通海县四街镇海东村村庄基础设施建设项目 | G154: 2025年 | H154: 新建 | I154: 1、村内道路建设2940.41平方米；2、雨水管网：塑料管DN300：330.86m，塑料管 DN400：79.14m，HDPE检查井：16座，单篦雨水口（0.8m深）：44座。 | J154: 57.33 | K154: 57.33 | L154: 40.00 | M154: 17.33 | N154: 125 | O154: 619 | P154: 5 | Q154: 14 | R154: 通过基础设施完善，持续改善当地生产生活条件，依托老熊箐小组的种养殖资源优势，逐步探索新发展模式，减少招商引资难度，增加土地流转面积，通过建立合作社、引进公司等方式，种植人工菌、玉米等，提升安置区经济自循环能力，实现从“输血式”帮扶向“造血式”发展的转变。 | S154: 否 | T154: 不涉及 | U154: 是 | V154: 否 | W154: 否 | X154: 否 | Y154: 季树崇 | Z154: 15187734300 | AA154: 通海县农业农村局 | AB154: 四街镇海东村 | AC154: 是 | AD154: 是
A155: 150 | B155: 通海县 | C155: 四街镇 | D155: 六街村 | E155: 乡村建设行动—其他 | F155: 2025年通海县四街镇六街村村庄基础设施建设项目 | G155: 2025年 | H155: 新建 | I155: 1、村内道路硬化3842.46平方米含路面回填；2、DN200聚乙烯双壁波纹管235米，DN300聚乙烯双壁波纹管470.48米，DN500聚乙烯双壁波纹管100.30米，单篦雨水口48座，（1000*1000）方检查井18座，2000*1200交汇井3座以及管道土方开挖、 | J155: 72.26 | K155: 72.26 | L155: 60.00 | M155: 12.26 | N155: 1123 | O155: 6540 | P155: 25 | Q155: 81 | R155: 通过基础设施完善，持续改善当地生产生活条件，依托老熊箐小组的种养殖资源优势，逐步探索新发展模式，减少招商引资难度，增加土地流转面积，通过建立合作社、引进公司等方式，种植人工菌、玉米等，提升安置区经济自循环能力，实现从“输血式”帮扶向“造血式”发展的转变。 | S155: 否 | T155: 不涉及 | U155: 是 | V155: 否 | W155: 否 | X155: 否 | Y155: 季树崇 | Z155: 15187734300 | AA155: 通海县农业农村局 | AB155: 四街镇六街村 | AC155: 是 | AD155: 是
A156: 151 | B156: 通海县 | C156: 四街镇 | D156: 龚杨村 | E156: 乡村建设行动—农村道路建设（通村路、通户路、小型桥梁等） | F156: 2025年通海县四街镇龚杨村“千万工程”示范村建设项目 | G156: 2025年 | H156: 新建 | I156: 路面硬化10287.16平方米。 | J156: 141.15 | K156: 141.15 | L156: 100.00 | M156: 41.15 | N156: 287 | O156: 1300 | P156: 3 | Q156: 13 | R156: 改善村内人居环境，实现整村道路环境提升 | S156: 否 | T156: 不涉及 | U156: 是 | V156: 否 | W156: 否 | X156: 否 | Y156: 季树崇 | Z156: 15187734300 | AA156: 通海县农业农村局 | AB156: 四街镇龚杨村 | AC156: 是 | AD156: 是
A157: 152 | B157: 通海县 | C157: 四街镇 | D157: 十街村 | E157: 产业发展—种植业基地 | F157: 2025年通海县四街镇十街村现代农业种植示范基地建设项目 | G157: 2025年 | H157: 新建 | I157: 1、大棚建设30亩；2、水肥一体化智能设施设备一套；3、建设相关附属设施（喷灌、滴灌、沟渠及田间道路）；4、位置老公路以下，临湖核心区。 | J157: 300.00 | K157: 300.00 | L157: 250.00 | M157: 50.00 | N157: 2139 | O157: 6526 | P157: 12 | Q157: 38 | R157: 通过项目的实施，推动农业现代化、促进绿色发展的有力举措，够提升农业生产效率与质量，促进农业转型升级与绿色发展，还能提高农民收入与就业水平，引领农业科技创新与示范推广 | S157: 否 | T157: 提供就业岗位、收益分红 | U157: 是 | V157: 否 | W157: 否 | X157: 是 | Y157: 季树崇 | Z157: 15187734300 | AA157: 通海县农业农村局 | AB157: 四街镇十街村 | AC157: 是 | AD157: 是
A158: 153 | B158: 通海县 | C158: 纳古镇 | D158: 纳家营村 | E158: 产业发展—种植业基地 | F158: 2025年通海县纳古镇纳家营烤烟种植基地建设项目 | G158: 2025年 | H158: 新建 | I158: 在纳家营村后山完善500亩烤烟种植基础设施。其中：道路硬化1980立方米；完善排水沟201米；修建蓄水池、灌溉设施；设置变压器1台，电路10KM。 | J158: 50.06 | K158: 50.06 | L158: 50.00 | M158: 0.06 | N158: 2495 | O158: 7034 | P158: 4 | Q158: 12 | R158: 该项目的实施采取“村集体股份经济合作联合社+村小组股份经济合作社+农户”的模式，采取村委会和村小组集中对现有的500亩山地进行流转，由村股份经济合作联合社争取衔接资金投入完善基础设施，提高山地烤烟种植收益，带动群众增收。 | S158: 否 | T158: 通过新增就业岗位，带动群众就业；盘活闲置土地资源，促进群众增收致富。 | U158: 是 | V158: 否 | W158: 否 | X158: 是 | Y158: 宋应贵 | Z158: 15825155762 | AA158: 通海县民族宗教事务局 | AB158: 纳古镇纳家营村 | AC158: 是 | AD158: 否
A159: 154 | B159: 通海县 | C159: 纳古镇 | D159: 纳家营村 古城村 | E159: 产业发展—种植业基地 | F159: 2025年通海县纳古镇环境友好型作物种植项目 | G159: 2025年 | H159: 新建 | I159: （一）乡村振兴生态水田纳家营基地63万。在纳家营村海泥田片区种植环境友好型作物100亩。其中：种植荷花100亩，购买荷种12万株；修缮沟渠、找平沟底1500米；土地整理、生态水田管理费用；架设电路2500米，安装100KVA变压器1台；设置安全护栏2千米。 | J159: 100.78 | K159: 100.78 | L159: 100.00 | M159: 0.78 | N159: 3383 | O159: 9575 | P159: 6 | Q159: 20 | R159: 该项目的实施以推动群众增收致富为着力点，采取“村集体股份经济合作联合社+公司+农户”的模式，采取村委会和村小组集中对现有闲置低效利用土地进行流转，由村股份经济合作联合社争取衔接资金投入完善基础设施，提高山地种植收益，带动群众增收。 | S159: 否 | T159: 部分菌包低价卖给低收入群众，带动脱贫户、监测对象、低收入者增收。 通过新增就业岗位，带动群众就业；盘活闲置土地资源，促进群众增收致富。 | U159: 是 | V159: 否 | W159: 否 | X159: 是 | Y159: 宋应贵 | Z159: 15825155762 | AA159: 通海县农业农村局 | AB159: 纳古镇古城村 | AC159: 是 | AD159: 是
A160: 155 | B160: 通海县 | C160: 纳古镇 | D160: 纳家营一组 | E160: 产业发展—加工流通项目 | F160: 2025年通海县纳古镇纳家营一组民族团结进步示范村 | G160: 2025年 | H160: 新建 | I160: 投资102万元，在通海县纳古镇振兴路建设夜市经济市场项目。项目建设：1.建设1000平方米场地硬化，200米排水沟渠，投资30万元；2.创意售卖亭20个，投资50万元；3.市场配套水电设施，投资22万元。 | J160: 102.00 | K160: 102.00 | L160: 100.00 | M160: 2.00 | N160: 2507 | O160: 7070 | P160: 5 | Q160: 16 | R160: 该项目的实施采取“村集体+公司”的模式，采取场地免租、减租、有偿出租等多种方式合理利用现有的场地，争取衔接资金投入，村集体完善基础设施，公司负责后续运营；鼓励20户纳古镇食品从业者入驻经营，优先考虑低收入群众；增加集体经济收入，每年增收6万元；解决夜市不规范问题，吸引更多人进行消费，推进纳古镇经济多元化发展。 | S160: 否 | T160: 该项目的实施采取“村集体+公司”的模式，采取场地免租、减租、有偿出租等多种方式合理利用现有的场地，鼓励20户纳古镇食品从业者入驻经营，优先考虑低收入群众；增加集体经济收入，每年增收6万元。 | U160: 是 | V160: 否 | W160: 否 | X160: 是 | Y160: 宋应贵 | Z160: 15825155762 | AA160: 通海县民族宗教事务局 | AB160: 纳古镇纳家营村 | AC160: 是 | AD160: 是
A161: 156 | B161: 通海县 | C161: 纳古镇 | D161: 纳家营四组 | E161: 产业发展—加工流通项目 | F161: 2025年通海县纳古镇纳家营四组民族团结进步示范村 | G161: 2025年 | H161: 新建 | I161: 投资203万元，在通海县纳古镇忠爱大街建设农特产品交易市场项目。建设内容：1.硬化场地2100平方米，200米排水沟渠，投资60万元；2.建设移动摊位25个，固定摊位15个，投资78万元；3.变压器等相关设备，投资35万元。4.餐饮休憩等其他配套设施，投资30万元。 | J161: 203.00 | K161: 203.00 | L161: 200.00 | M161: 3.00 | N161: 2507 | O161: 7070 | P161: 5 | Q161: 16 | R161: 通过实施农特产品交易市场项目建设，改善农贸市场基础设施，规范交易市场行为，打造纳古镇集美食、工艺、农特产品、购物为一体的交易平台；增加交易平台出租数量，带动不少于40户群众增收致富，不断满足各族群众农产品交易需求，增加集体经济收入，每年增收9万元，切实为各族群众办好事、实事，助力农户增收致富，促进村集体经济的发展，加快乡镇建设步伐，拓宽市场信息的传播渠道，使广大群众及时地掌握各类经济信息，使产品购销更加快捷，为乡村振兴注入新动能。 | S161: 否 | T161: 通过实施农特产品交易市场项目建设，增加交易平台出租数量，带动不少于40户群众增收致富，不断满足各族群众农产品交易需求，增加集体经济收入，每年增收9万元，助力农户增收致富，促进村集体经济的发展，拓宽市场信息的传播渠道，使广大群众及时地掌握各类经济信息，使产品购销更加快捷，为乡村振兴注入新动能。 | U161: 是 | V161: 否 | W161: 否 | X161: 是 | Y161: 宋应贵 | Z161: 15825155762 | AA161: 通海县民族宗教事务局 | AB161: 纳古镇纳家营村 | AC161: 是 | AD161: 是
A162: 157 | B162: 通海县 | C162: 兴蒙乡 | D162: 下村 | E162: 产业发展—新型农村集体经济发展项目 | F162: 2025年通海县兴蒙蒙古乡下村羊肚菌产业示范基地建设项目 | G162: 2025年 | H162: 新建 | I162: （1）羊肚菌示范基地建设，占地5亩。其中：搭建大棚主体；平整土地；建工具房2个，建水池1个。 （2）附属设施建设，其中：水电安装；喷灌系统。周边场地及道路硬化；购买水肥一体机；购买大棚塑料膜、双层黑色遮阳网。 | J162: 72.89 | K162: 72.89 | L162: 70.00 | M162: 2.89 | N162: 667 | O162: 1835 | P162: 5 | Q162: 19 | R162: 有效提高集体经济收入；辐射带动群众增收；能吸引脱贫户和边缘户就业，增加收入 | S162: 否 | T162: 吸纳农村劳动力稳定就业增收—吸纳就业 | U162: 是 | V162: 否 | W162: 否 | X162: 是 | Y162: 程宝康 | Z162: 13619475607 | AA162: 通海县委组织部 | AB162: 兴蒙乡下村村民委员会 | AC162: 是 | AD162: 否
A163: 158 | B163: 通海县 | C163: 兴蒙乡 | D163: 下村 | E163: 产业发展—其他 | F163: 2025年通海县兴蒙乡民族手工业发展建设项目 | G163: 2025年 | H163: 新建 | I163: 建设民族手工业工作室，设有民族服饰、民族手工具以及各类草编产品等展厅展示各种民族手工艺品，同时设置服饰和草墩制作区带动村民群众发展致富，让游客参与体验民族文化。主要建设内容为：一是外部改造及氛围营造：1.门口地面挡墙、花台及楼梯墙砌筑；2.门口地面青石板铺贴；3.入口大门及相应设施；4.锦绣中华小品1套；3.民族团结宣传墙及宣传标语；4.文化展架2架；二是室内改造：1.仿古门窗；2.民族服饰陈列柜；3.水电路改造；4.配套相应灯具；5.和相应的室内装饰。5.购买一台做民族服饰的缝纫机。 | J163: 22.48 | K163: 22.48 | L163: 20.00 | M163: 2.48 | N163: 528 | O163: 1856 | P163: 6 | Q163: 24 | R163: 有效提高集体经济收入；辐射带动群众增收；能吸引脱贫户和边缘户就业，增加收入 | S163: 否 | T163: 吸纳农村劳动力稳定就业增收—吸纳就业 | U163: 是 | V163: 否 | W163: 否 | X163: 否 | Y163: 期应杰 | Z163: 19108771997 | AA163: 通海县民族宗教事务局 | AB163: 兴蒙乡下村村民委员会 | AC163: 是 | AD163: 是
A164: 159 | B164: 通海县 | C164: 里山乡 | D164: 五山村 | E164: 产业发展—新型农村集体经济发展项目 | F164: 2025年通海县盆景产业园-百样殊盆景文化小镇建设项目（一期） | G164: 2025年 | H164: 新建 | I164: 混凝土道路硬化面积1520平方米、新建76.5米钢筋砼挡土墙。 | J164: 30.56 | K164: 30.56 | L164: 30.00 | M164: 0.56 | N164: 552 | O164: 1515 | P164: 3 | Q164: 11 | R164: 有效提高村集体经济、增加群众收益，促进农村经济发展。 | S164: 否 | T164: 吸纳农村劳动力稳定就业增收—吸纳就业；带动群众发展盆景经济。 | U164: 是 | V164: 否 | W164: 否 | X164: 是 | Y164: 施宇彪 | Z164: 18987728466 | AA164: 通海县民族宗教事务局 | AB164: 里山乡五山村民委员会 | AC164: 是 | AD164: 否
A165: 160 | B165: 通海县 | C165: 里山乡 | D165: 象平村 | E165: 产业发展—养殖业基地 | F165: 2025年通海县里山乡象平村梅花鹿养殖 | G165: 2025年 | H165: 新建 | I165: 1.新建饲养房一幢，建筑层数为一层，结构类型为钢架结构，建筑占地面积：317.16平方米，总建筑面积207.93平方米。建筑层高：3.00米，建筑功能包括母鹿饲养圈，公鹿饲养圈，饲料房，生活用房。2.新建1.5米高钢筋混凝土挡墙，总长约24米。3.新建基地围栏，总长约25米。4.基地配套给，排水管网，食槽，水盆，基地地面硬化等内容。 | J165: 40.84 | K165: 40.84 | L165: 40.00 | M165: 0.84 | N165: 150 | O165: 560 | P165: 3 | Q165: 5 | R165: 象平村梅花鹿养殖项目按照投入资金的10%进行收益测算，可增加村集体经济10万元。 | S165: 否 | T165: 吸纳就业、带动脱贫户发展养殖业增收。 | U165: 是 | V165: 否 | W165: 否 | X165: 是 | Y165: 施宇彪 | Z165: 18987728466 | AA165: 通海县农业农村局 | AB165: 里山乡象平村民委员会 | AC165: 是 | AD165: 否
A166: 161 | B166: 通海县 | C166: 高大乡 | D166: 高大社区 | E166: 产业发展—市场建设和农村物流 | F166: 2025年通海县高大乡高大社区集贸市场建设项目 | G166: 2025年 | H166: 改（扩）建 | I166: 盘活资产，建设集贸交易市场，占地面积840㎡，建筑面积1680㎡（钢结构）、计划投资168万元。建盖1600平方米钢架大棚、计划投资160万元。为群众提供交易便利，壮大村集体经济。 | J166: 101.83 | K166: 101.83 | L166: 100.00 | M166: 1.83 | N166: 446 | O166: 1007 | P166: 33 | Q166: 96 | R166: 通过项目实施，带动社区经济发展，提高群众就业率，进一步壮大村集体经济，每年收入达60万元。 | S166: 否 | T166: 吸纳农村劳动力稳定就业增收—吸纳就业、促进农户共享资产收益增收—土地流转获得租金 | U166: 是 | V166: 否 | W166: 否 | X166: 是 | Y166: 王永明 | Z166: 13170652668 | AA166: 通海县农业农村局 | AB166: 高大乡高大社区 | AC166: 是 | AD166: 否
A167: 162 | B167: 通海县 | C167: 高大乡 | D167: 普丛村 | E167: 产业发展—新型农村集体经济发展项目 | F167: 2025年通海县高大乡普丛村农产品分拣及初加工项目 | G167: 2025年 | H167: 新建 | I167: （1）项目主体建设：①仓储房6间共216㎡；②网套设备一台；③洗蒜机2台。④分拣间占地面积240㎡；⑤分拣间占地面积240㎡，采用钢框架结构。 （2）附属配套设施工程：①网套设备水电线路安装。②洗蒜机水电线路安装、抽水设备购买。 | J167: 75.99 | K167: 75.99 | L167: 70.00 | M167: 5.99 | N167: 930 | O167: 2696 | P167: 20 | Q167: 63 | R167: 有效提高集体经济收入；辐射带动群众增收；能吸引脱贫户和边缘户就业，增加收入 | S167: 否 | T167: 带动农户发展生产增产增收—其他、吸纳农村劳动力稳定就业增收—吸纳就业 | U167: 是 | V167: 否 | W167: 否 | X167: 是 | Y167: 程宝康 | Z167: 13619475607 | AA167: 通海县委组织部 | AB167: 高大乡普丛村民委员会 | AC167: 是 | AD167: 否
A168: 163 | B168: 通海县 | C168: 高大乡 | D168: 高大社区 | E168: 乡村建设行动—其他 | F168: 2025年通海县高大乡高大社区四组、五组新农村基础设施建设项目 | G168: 2025年 | H168: 改（扩）建 | I168: 道路硬化120米长、6米宽，基础照明设施安装，硬化700平方米，铺设雨污分流管道，新建公厕1座。 | J168: 30.11 | K168: 30.11 | L168: 30.00 | M168: 0.11 | N168: 105 | O168: 275 | P168: 4 | Q168: 13 | R168: 通过项目实施，完善新农村基础设施，群众生活生产条件得到改善，进一步提升了群众获得感、幸福感。 | S168: 否 | T168: 不涉及 | U168: 是 | V168: 否 | W168: 否 | X168: 否 | Y168: 王永明 | Z168: 13170652668 | AA168: 通海县民族宗教事务局 | AB168: 高大社区 | AC168: 是 | AD168: 否
A169: 164 | B169: 通海县 | C169: 高大乡 | D169: 代办村 | E169: 产业发展—道路硬化 | F169: 通海县高大乡老熊箐集中安置区2025年产业发展示范项目 | G169: 2025年 | H169: 新建 | I169: 硬化道路693米，平均5米宽，厚度0.25米。（新村子到老村子路段） | J169: 50.60 | K169: 50.60 | L169: 50.00 | M169: 0.60 | N169: 60 | O169: 183 | P169: 38 | Q169: 90 | R169: 通过基础设施完善，持续改善当地生产生活条件，依托老熊箐小组的种养殖资源优势，逐步探索新发展模式，减少招商引资难度，增加土地流转面积，通过建立合作社、引进公司等方式，种植人工菌、玉米等，提升安置区经济自循环能力，实现从“输血式”帮扶向“造血式”发展的转变。 | S169: 否 | T169: 吸纳农村劳动力参与项目建设—吸纳就业 | U169: 是 | V169: 是 | W169: 否 | X169: 否 | Y169: 曹红军 | Z169: 13608892849 | AA169: 通海县发展和改革局 | AB169: 高大乡代办村 | AC169: 是 | AD169: 是
A170: 165 | B170: 通海县 | C170: 秀山街道 | D170: 黄龙社区 | E170: 产业发展—种植业基地 | F170: 2025年通海县秀山街道黄龙社区现代农业绿色高效种植示范基地 | G170: 2025年 | H170: 新建 | I170: 项目覆盖社区农户1620户5344人。建设标准化钢架农业种植大棚、水肥一体化及无土栽培配套设施24亩，定制安装设备车间（临时建筑）100平方米。 | J170: 150 | K170: 150 | L170: 105 | M170: 45.00 | N170: 1620 | O170: 5352 | P170: 0 | Q170: 0 | R170: 现代农业绿色高效种植示范基地建设，有助于推动农业现代化、促进绿色发展，够提升农业生产效率与质量，促进农业转型升级与绿色发展，还能提高农民收入与就业水平，引领农业科技创新与示范推广。 | S170: 否 | T170: 带动农户发展生产增产增收—其他、吸纳农村劳动力稳定就业增收—吸纳就业 | U170: 是 | V170: 否 | W170: 否 | X170: 是 | Y170: 张兴龙 | Z170: 13887700365 | AA170: 通海县农业农村局 | AB170: 秀山街道黄龙社区 | AC170: 是 | AD170: 否
A171: 166 | B171: 华宁县 | C171: 宁州街道 | D171: 舍木多村委会 | E171: 产业发展—其他 | F171: 2025年华宁县宁州街道舍木多火特村委会产业配套设施建设项目 | G171: 2025年 | H171: 新建 | I171: 以现代农业服务公司为主体，采购2台东方红1504农耕机，采用有偿耕地的方式，辐射土地3000亩，每年耕地2次，增加集体收入18万元。每台采购价25万元。 | J171: 50.00 | K171: 50.00 | L171: 50.00 | M171: 0.00 | N171: 1362 | O171: 4838 | P171: 140 | Q171: 480 | R171: 1.增加村集体经济收入；2.服务群众。 | S171: 否 | T171: 带动农户发展生产增产增收—其他 | U171: 是 | V171: 否 | W171: 否 | X171: 是 | Y171: 刘株含 | Z171: 18787629369.00 | AA171: 华宁县农业农村局 | AB171: 舍木多村委会 | AC171: 是 | AD171: 否
A172: 167 | B172: 华宁县 | C172: 宁州街道 | D172: 咱乐村委会 | E172: 乡村建设行动—村容村貌提升 | F172: 2025年华宁县宁州街道咱乐村委会邑格小组基础设施建设项目 | G172: 2025年 | H172: 新建 | I172: （1）人居环境提升：污水管网建设536米，包含DN300HDPE双壁波纹管，检查井32座，化粪池1座，PVC入户管154米；排水沟建设350米，免烧砖砌排水沟建设350米；太阳能路灯安装7盏，包含安装、调试。（2）产业设施建设：交易场地建设850平方米，包含土地平整，C25砼硬化。 | J172: 50 | K172: 50.00 | L172: 50.00 | M172: 0.00 | N172: 22 | O172: 98 | P172: 4 | Q172: 11 | R172: 1.完善村庄基础设施；2.提升村庄人居环境。 | S172: 否 | T172: 不需要 | U172: 是 | V172: 否 | W172: 否 | X172: 否 | Y172: 刘株含 | Z172: 18787629369.00 | AA172: 华宁县农业农村局 | AB172: 咱乐村委会 | AC172: 是 | AD172: 否
A173: 168 | B173: 华宁县 | C173: 宁州街道 | D173: 西冲村委会 | E173: 产业发展—其他 | F173: 2025年华宁县宁州街道西冲村、法果村、吗哒村产业道路建设项目 | G173: 2025年 | H173: 新建 | I173: 法果村委会：拖卓小组新建交易市场860平米，C25砼。 西冲村委会：西冲大山脚路（西冲至岔纳）产业道路建设520米：平均宽度5米，C25砼。 吗哒村委会：美叠小组下麦塘山脚至肥扩产业发展道路，共涉及美叠、大吗达、小寨、普土寨四个小组，全长1.3公里宽3米，用土夹石铺设方便农产品运输。 | J173: 72.00 | K173: 72.00 | L173: 72.00 | M173: 0.00 | N173: 503 | O173: 1487 | P173: 25 | Q173: 71 | R173: 1.解决农户到烤房前烤烟路难行走的问题；2.解决岔河村委会的小学生到西冲小学上学路难行的问题；3.解决村民到地间做活路难行赵的问题；4.完善蔬菜交易产业设施；5.完善机耕路建设。 | S173: 否 | T173: 带动农户发展生产增产增收—其他 | U173: 是 | V173: 否 | W173: 否 | X173: 是 | Y173: 刘株含 | Z173: 18787629369.00 | AA173: 华宁县农业农村局 | AB173: 西冲村委会 | AC173: 是 | AD173: 否
A174: 169 | B174: 华宁县 | C174: 宁州街道 | D174: 平地社区 | E174: 乡村建设行动—农村道路建设（通村路、通户路、小型桥梁等） | F174: 2025年华宁县宁州街道冲麦村、平地社区“以工代赈”建设项目 | G174: 2025年 | H174: 新建 | I174: 冲麦村委会：休闲活动场所建设1200平方米，包含配套设施。老寨子进村道路建设557米：平均宽8米，支护工程。 平地社区：高寨小组场地建设2563平方米：上场长71米，宽27米；下场长38米，宽17米，C25砼。马家冲小组进村道路建设527米：平均宽5米，C25砼，配套排水沟。 | J174: 94.00 | K174: 94.00 | L174: 94.00 | M174: 0.00 | N174: 314 | O174: 1132 | P174: 12 | Q174: 44 | R174: 1.解决马家冲学生到学校上学问题；2.辐射道路两旁田地；3.提升高寨人居环境。4.增加休闲活动场所，丰富群众精神生活。 | S174: 否 | T174: 不需要 | U174: 是 | V174: 否 | W174: 否 | X174: 否 | Y174: 刘株含 | Z174: 18787629369.00 | AA174: 华宁县农业农村局 | AB174: 平地社区 | AC174: 是 | AD174: 否
A175: 170 | B175: 华宁县 | C175: 宁州街道 | D175: 红坡村委会 | E175: 产业发展—小型农田水利设施建设 | F175: 2025年华宁县宁州街道石门坎小组、红坡小组、落水洞小组产业设施建设 | G175: 2025年 | H175: 新建 | I175: 毛石支砌截水沟30米（带盖板）3.5米宽，1.7米深。 | J175: 40.00 | K175: 40.00 | L175: 40.00 | M175: 0.00 | N175: 90 | O175: 300 | P175: 32 | Q175: 116 | R175: 1.保障村民生产用水；2.提升群众的幸福感。 | S175: 否 | T175: 带动农户发展生产增产增收—其他 | U175: 是 | V175: 否 | W175: 否 | X175: 否 | Y175: 刘株含 | Z175: 18787629369.00 | AA175: 华宁县农业农村局 | AB175: 红坡村委会 | AC175: 是 | AD175: 否
A176: 171 | B176: 华宁县 | C176: 宁州街道 | D176: 暮车村委会 | E176: 产业发展—休闲农业与乡村旅游 | F176: 2025年华宁县宁州街道暮车村委会上下暮车产村融合建设项目 | G176: 2025年 | H176: 新建 | I176: （1）产业设施建设：一是大黄梨采摘体验园3925平方米，包含土方回填、平整，产业步道及配套设施建设；二是养殖小区5000平方米，包含土方开挖、回填及配套设施建设。（2）人居环境提升：一是污水管网建设1458米，采用DN300HDPE双壁波纹管及中、粗砂填槽夯实，包含检查井；二是活动场地建设912平方米：包含土地平整、夯实，C25砼硬化、场地铺砖及安全护栏。 | J176: 150.00 | K176: 150.00 | L176: 150.00 | M176: 0.00 | N176: 187 | O176: 576 | P176: 28 | Q176: 71 | R176: 1.发展大黄梨产业；2.壮大村集体经济；3.实现产村融合。 | S176: 否 | T176: 带动农户发展生产增产增收—其他 | U176: 是 | V176: 否 | W176: 否 | X176: 是 | Y176: 刘株含 | Z176: 18787629369.00 | AA176: 华宁县农业农村局 | AB176: 暮车村委会 | AC176: 是 | AD176: 否
A177: 172 | B177: 华宁县 | C177: 宁州街道 | D177: 马鞍山社区 | E177: 产业发展—市场建设和农村物流 | F177: 2025年华宁县宁州街道马鞍山社区果蔬交易市场建设项目 | G177: 2025年 | H177: 新建 | I177: 老待客处：建设果蔬交易市场2200平方米：含场地建设2200平方米，交易场所建设700平方米（钢架彩钢瓦，免烧砖砌外墙） | J177: 68.00 | K177: 68.00 | L177: 68.00 | M177: 0.00 | N177: 661 | O177: 2017 | P177: 23 | Q177: 85 | R177: 1.提升村集体经济收入；2.解决果农公路旁交易的问题。 | S177: 否 | T177: 带动农户发展生产增产增收—其他 | U177: 是 | V177: 否 | W177: 是 | X177: 是 | Y177: 刘株含 | Z177: 18787629369.00 | AA177: 华宁县农业农村局 | AB177: 马鞍山社区 | AC177: 是 | AD177: 否
A178: 173 | B178: 华宁县 | C178: 宁州街道 | D178: 吗哒村委会 | E178: 乡村建设行动—农村道路建设（通村路、通户路、小型桥梁等） | F178: 2025年华宁县宁州街道吗哒村委会小寨基础设施提升项目 | G178: 2025年 | H178: 新建 | I178: 道路建设300米：平均宽度4.5米，含土方开挖、回填、平整、C25砼及支护工程；活动场所建设620平方米：含原破损建筑拆除、平整及C25砼；产业设施建设500平方米：采用钢结构树脂瓦顶；水源点围护设施1项：青砖支砌。 | J178: 68.00 | K178: 68.00 | L178: 68.00 | M178: 0.00 | N178: 62 | O178: 225 | P178: 4 | Q178: 13 | R178: 1.提升村庄人居环境；2.促进村庄新规划宅基地新建。 | S178: 否 | T178: 不需要 | U178: 是 | V178: 否 | W178: 否 | X178: 否 | Y178: 刘株含 | Z178: 18787629369.00 | AA178: 华宁县农业农村局 | AB178: 吗哒村委会 | AC178: 是 | AD178: 否
A179: 174 | B179: 华宁县 | C179: 宁州街道 | D179: 咱乐村委会 | E179: 产业发展—其他 | F179: 2025年华宁县宁州街道咱乐村委会产业配套设施建设项目 | G179: 2025年 | H179: 新建 | I179: 咱乐村委会白坡小组：1.DN80镀锌管3400米；2.新建200立方米蓄水池1座。 | J179: 45.00 | K179: 45.00 | L179: 45.00 | M179: 0.00 | N179: 45 | O179: 161 | P179: 2 | Q179: 4 | R179: 1.解决白坡小组产业灌溉用水问题。 | S179: 否 | T179: 带动农户发展生产增产增收—其他 | U179: 是 | V179: 否 | W179: 否 | X179: 否 | Y179: 刘株含 | Z179: 18787629369.00 | AA179: 华宁县农业农村局 | AB179: 咱乐村委会 | AC179: 是 | AD179: 否
A180: 175 | B180: 华宁县 | C180: 宁州街道 | D180: 城关社区 | E180: 产业发展—种植业基地 | F180: 2025年华宁县宁州街道城关社区林下种养殖示范基地建设项目 | G180: 2025年 | H180: 新建 | I180: 位于华盖山，推广联农带农林下种养殖示范基地210亩。 1、人行步道建设2200米：平均宽2米，红砖铺地； 2、产业道路建设1400米：平均宽度3米，C25砼； 3、提水工程1项：DN50镀锌主管7000米，抽水设施1台，50m³蓄水池1座； 4、工具房1座：占地60平方米，钢架树脂瓦房屋； 5、中药材苗种采购1项。 | J180: 74.00 | K180: 74.00 | L180: 74.00 | M180: 0.00 | N180: 780 | O180: 3650 | P180: 8 | Q180: 31 | R180: 1.建设林下中药材、食用菌种植基地；2.壮大村集体经济；3.辐射带动街道产业发展。 | S180: 否 | T180: 带动农户发展生产增产增收—其他 | U180: 是 | V180: 否 | W180: 是 | X180: 是 | Y180: 刘株含 | Z180: 18787629369.00 | AA180: 华宁县农业农村局 | AB180: 城关社区 | AC180: 是 | AD180: 否
A181: 176 | B181: 华宁县 | C181: 宁州街道 | D181: 新城村委会 | E181: 产业发展—其他 | F181: 2025年华宁县宁州街道新城村委会基础设施建设项目 | G181: 2025年 | H181: 新建 | I181: 产业设施：1.农资设施2间，每间30平方米，共60平方米，钢架树脂瓦；2.灌溉沟渠建设127米；3.采购1台东方红1504农耕机，采用有偿耕地的方式，辐射土地3500亩。 | J181: 30.00 | K181: 30.00 | L181: 30.00 | M181: 0.00 | N181: 904 | O181: 3122 | P181: 50 | Q181: 153 | R181: 1.提升村集体经济；2.解决生产用水问题。 | S181: 否 | T181: 带动农户发展生产增产增收—其他 | U181: 是 | V181: 否 | W181: 是 | X181: 是 | Y181: 刘株含 | Z181: 18787629369.00 | AA181: 华宁县农业农村局 | AB181: 新城村委会 | AC181: 是 | AD181: 否
A182: 177 | B182: 华宁县 | C182: 宁州街道 | D182: 甸尾社区 | E182: 产业发展—小型农田水利设施建设 | F182: 2025年华宁县宁州街道甸尾社区产业设施建设项目 | G182: 2025年 | H182: 新建 | I182: 1.灌溉管道建设390米：DN800混凝土管铺设370，检查井25个；DN300混凝土管铺设20米； 2.产业道路建设370米：平均宽度2米，C20砼； | J182: 65.00 | K182: 65.00 | L182: 65.00 | M182: 0.00 | N182: 140 | O182: 474 | P182: 8 | Q182: 25 | R182: 1.建设灌溉管网；2.完善村庄产业设施。 | S182: 否 | T182: 带动农户发展生产增产增收—其他 | U182: 是 | V182: 否 | W182: 否 | X182: 否 | Y182: 刘株含 | Z182: 18787629369.00 | AA182: 华宁县农业农村局 | AB182: 甸尾社区 | AC182: 是 | AD182: 否
A183: 178 | B183: 华宁县 | C183: 宁州街道 | D183: 郭家营社区 | E183: 乡村建设行动—村容村貌提升 | F183: 2025年华宁县宁州街道郭家营社区小山小组村容村貌提升工程 | G183: 2025年 | H183: 新建 | I183: 郭家营社区辖区内小山小组村内建设活动场所，面积3000平方米。 | J183: 45.00 | K183: 45.00 | L183: 45.00 | M183: 0.00 | N183: 195 | O183: 655 | P183: 7 | Q183: 27 | R183: 1.完善基础设施；2.增加村民的自娱自乐性，让村民们有更多的机会聚集在一起，进行各种文化娱乐活动，营造和谐、积极向上的乡村文化氛围。 | S183: 否 | T183: 不需要 | U183: 是 | V183: 否 | W183: 否 | X183: 否 | Y183: 刘株含 | Z183: 18787629369.00 | AA183: 华宁县农业农村局 | AB183: 郭家营社区 | AC183: 是 | AD183: 否
A184: 179 | B184: 华宁县 | C184: 宁州街道 | D184: 葫芦冲村委会 | E184: 乡村建设行动—农村道路建设（通村路、通户路、小型桥梁等） | F184: 2025年华宁县宁州街道葫芦冲村委会“以工代赈”建设项目 | G184: 2025年 | H184: 新建 | I184: 建设内容：下新寨搬迁点道路建设120米、污水处理池1座。葫芦冲场地建设700平方米。 | J184: 45.00 | K184: 45.00 | L184: 45.00 | M184: 0.00 | N184: 141 | O184: 468 | P184: 9 | Q184: 32 | R184: 1.完善下新寨搬迁点基础设施；2.提升葫芦冲小组村内人居环境。 | S184: 否 | T184: 不需要 | U184: 是 | V184: 否 | W184: 否 | X184: 否 | Y184: 刘株含 | Z184: 18787629369.00 | AA184: 华宁县农业农村局 | AB184: 葫芦冲村委会 | AC184: 是 | AD184: 否
A185: 180 | B185: 华宁县 | C185: 宁州街道 | D185: 新庄社区 | E185: 乡村建设行动—村容村貌提升 | F185: 2025年华宁县宁州街道新庄社区基础设施提质项目 | G185: 2025年 | H185: 新建 | I185: 排水管道600米，垃圾亭1座，免烧砖砌花台204米，活动设施75平方米，活动场所建设4914.56平方米，支护工程332立方米，太阳能灯30盏，道路建设690平方米。 | J185: 246.58 | K185: 246.58 | L185: 246.58 | M185: 0.00 | N185: 204 | O185: 728 | P185: 5 | Q185: 16 | R185: 1.完善村庄基础设施；2.提升村庄人居环境。 | S185: 否 | T185: 不需要 | U185: 是 | V185: 否 | W185: 否 | X185: 否 | Y185: 刘株含 | Z185: 18787629369.00 | AA185: 华宁县农业农村局 | AB185: 新庄社区 | AC185: 是 | AD185: 否
A186: 181 | B186: 华宁县 | C186: 宁州街道 | D186: 那果村委会、咱乐村委会，马鞍山社区 | E186: 产业发展—小型农田水利设施建设 | F186: 2025年华宁县宁州街道生产生活用水设施建设项目 | G186: 2025年 | H186: 新建 | I186: 那果农村饮水提水项目（泵房、125kva变压器一台、水泵一套、DN80抽水管道1800米、200立方蓄水池一座）上咱乐小组50立方水池、阿矣寨小组50立方水池 | J186: 63.00 | K186: 63.00 | L186: 63.00 | M186: 0.00 | N186: 182 | O186: 654 | P186: 61 | Q186: 192 | R186: 1.保障村民饮水供给；2.加强灌溉用水保障。 | S186: 否 | T186: 带动农户发展生产增产增收—其他 | U186: 是 | V186: 否 | W186: 否 | X186: 否 | Y186: 刘株含 | Z186: 18787629369.00 | AA186: 华宁县水利局 | AB186: 那果村委会、咱乐村委会，马鞍山社区 | AC186: 是 | AD186: 否
A187: 182 | B187: 华宁县 | C187: 宁州街道 | D187: 吗哒村委会、法果村委会、冲麦村委会、铁埂社区、红坡村委会 | E187: 产业发展—小型农田水利设施建设 | F187: 2025年华宁县宁州街道产业灌溉设施建设项目 | G187: 2025年 | H187: 新建 | I187: 对宁州辖区的吗哒秧田冲坝塘、法果新坟脚坝塘、冲麦绿林庄坝塘、铁埂煤炭窝坝塘、铁埂赵家坟坝塘、红坡坝塘外坡倒塌土方、溢洪道、排洪沟、放水涵洞等进行清理修复。 | J187: 35.00 | K187: 35.00 | L187: 35.00 | M187: 0.00 | N187: 535 | O187: 1908 | P187: 108 | Q187: 352 | R187: 1.修缮小坝塘，提高蓄水能力；2.强化灌溉设施。 | S187: 否 | T187: 带动农户发展生产增产增收—其他 | U187: 是 | V187: 否 | W187: 否 | X187: 否 | Y187: 刘株含 | Z187: 18787629369.00 | AA187: 华宁县水利局 | AB187: 吗哒村委会、法果村委会、冲麦村委会、铁埂社区、红坡村委会 | AC187: 是 | AD187: 否
A188: 183 | B188: 华宁县 | C188: 宁州街道 | D188: 普茶寨村委会 | E188: 产业发展—其他 | F188: 2025年华宁县宁州街道普茶寨村委会产业发展道路建设项目 | G188: 2025年 | H188: 新建 | I188: 红皮寨小组产业发展道路建设1200米：土地平整、C20砼、路边排水沟建设。 | J188: 80.00 | K188: 80.00 | L188: 80.00 | M188: 0.00 | N188: 39 | O188: 147 | P188: 3 | Q188: 5 | R188: 1.完善村庄产业设施；2.保障农户生产出行。 | S188: 否 | T188: 带动农户发展生产增产增收—其他 | U188: 是 | V188: 否 | W188: 否 | X188: 否 | Y188: 刘株含 | Z188: 18787629369.00 | AA188: 华宁县农业农村局 | AB188: 普茶寨村委会 | AC188: 是 | AD188: 否
A189: 184 | B189: 华宁县 | C189: 青龙镇 | D189: 紫马龙村委会 | E189: 乡村建设行动—村容村貌提升 | F189: 2025年华宁县青龙镇紫马龙村委会紫马龙小组“以工代赈”建设项目 | G189: 2025年 | H189: 新建 | I189: 1.雨、污治理一项。2.道路建设5550㎡。3.垃圾房建设1座。4.LED太阳能单臂路灯12套。5.养殖畜圈场地内场地平整965㎡。6.闲置土地利用：种植红土回填624m³，种植红叶石楠，女贞等绿植425株，种植875㎡，砖砌花台453m。 | J189: 100.00 | K189: 100 | L189: 100.00 | M189: 0.00 | N189: 134 | O189: 388 | P189: 9 | Q189: 17 | R189: 户均增收≥300元/户，直接受益人口数≥388人 | S189: 否 | T189: 不需要 | U189: 是 | V189: 否 | W189: 否 | X189: 否 | Y189: 普志辉 | Z189: 0877-8886323 | AA189: 华宁县农业农村局 | AB189: 紫马龙村委会 | AC189: 是 | AD189: 否
A190: 185 | B190: 华宁县 | C190: 青龙镇 | D190: 大母公竜村委会 | E190: 乡村建设行动—村容村貌提升 | F190: 2025年华宁县青龙镇大母公竜村委会长坡小组"以工代赈"建设项目 | G190: 2025年 | H190: 新建 | I190: 1、道路建设1483㎡；2、挡土墙528.84㎡；5、路灯10套；6、猫猫箐人饮管道6分热镀锌钢管950m；5、污水管网埋设220m；6、砖砌检查井11座；7、30立方米氧化池一座等。 | J190: 58.00 | K190: 58.00 | L190: 58.00 | M190: 0.00 | N190: 23 | O190: 69 | P190: 3 | Q190: 10 | R190: 户均增收≥200元/户， 直接受益人口数≥69人 | S190: 否 | T190: 不需要 | U190: 是 | V190: 否 | W190: 否 | X190: 否 | Y190: 普志辉 | Z190: 0877-8886323 | AA190: 华宁县农业农村局 | AB190: 大母公竜村委会 | AC190: 是 | AD190: 否
A191: 186 | B191: 华宁县 | C191: 青龙镇 | D191: 倒马坎村委会 | E191: 产业发展—产业园（区） | F191: 2025年华宁县青龙镇倒马坎村委会者红寨小组产村融合建设项目（二期） | G191: 2025年 | H191: 新建 | I191: 1.道路建设95m；2.场地建设800平米；3.毛石护坡100m³；4.太阳能灯安装12盏；5.GB DN80镀锌管4000m；6.DN40智能水表30只。 | J191: 70.94 | K191: 70.94 | L191: 69.34 | M191: 1.60 | N191: 78 | O191: 275 | P191: 26 | Q191: 81 | R191: 户均增收≥500元/户， 直接受益人口数≥275人 | S191: 否 | T191: 吸纳农村劳动力稳定就业增收—股权合作 | U191: 是 | V191: 否 | W191: 否 | X191: 是 | Y191: 普志辉 | Z191: 0877-8886323 | AA191: 华宁县农业农村局 | AB191: 倒马坎村委会 | AC191: 是 | AD191: 否
A192: 187 | B192: 华宁县 | C192: 青龙镇 | D192: 糯租村委会 | E192: 产业发展—市场建设和农村物流 | F192: 2025年华宁县青龙镇糯租村委会农产品综合交易市场建设项目 | G192: 2025年 | H192: 新建 | I192: 1.综合交易设施建设1160.00㎡，（含主体、装饰装修、水电安装等），2.附属工程：场地建设560㎡，场地平整560㎡ | J192: 81.07 | K192: 81.07 | L192: 80.00 | M192: 1.07 | N192: 689 | O192: 2543 | P192: 43 | Q192: 132 | R192: 户均增收≥1000元/户，直接受益人口数≥2000人 | S192: 否 | T192: 带动农户发展生产增产增收—其他 | U192: 是 | V192: 否 | W192: 否 | X192: 是 | Y192: 普志辉 | Z192: 0877-8886323 | AA192: 华宁县农业农村局 | AB192: 糯租村委会 | AC192: 是 | AD192: 否
A193: 188 | B193: 华宁县 | C193: 青龙镇 | D193: 大村村委会、禄丰村委会、糯租村委会、马鹿塘村委会 | E193: 产业发展—小型农田水利设施建设 | F193: 2025年华宁县青龙镇农业发展水利灌溉配套设施建设项目 | G193: 2025年 | H193: 新建 | I193: 对青龙辖区的大村上塘子坝塘、禄丰鲁伯比坝塘、糯租水龙箐坝塘外坡、坝埂倒塌土方、排洪沟等进行清理修复，竹山水库补水工程（水泵一台、机房一座、变压器160KVA一台、DN125管道460米） | J193: 55.00 | K193: 55.00 | L193: 55.00 | M193: 0.00 | N193: 1131 | O193: 4313 | P193: 187 | Q193: 555 | R193: 户均增收≥1000元/户，直接受益人口数≥4313人 | S193: 否 | T193: 带动农户发展生产增产增收—其他 | U193: 不涉及 | V193: 否 | W193: 否 | X193: 是 | Y193: 普志辉 | Z193: 0877-8886324 | AA193: 华宁县水利局 | AB193: 大村村委会、禄丰村委会、糯租村委会、马鹿塘村委会 | AC193: 是 | AD193: 否
A194: 189 | B194: 华宁县 | C194: 青龙镇 | D194: 禄丰村委会 | E194: 产业发展—小型农田水利设施建设 | F194: 2025年华宁县青龙镇禄丰村委会矣则小组产业发展配套设施建设项目 | G194: 2025年 | H194: 新建 | I194: 1.高压线路及125变压器安装；2.提水站建设（流量85m³/s，扬程300m）；3.GB DN100mm镀锌管1100m焊接,提抽水房配套实施安装；4.机耕路建设1000m。 | J194: 76.78 | K194: 76.78 | L194: 76.78 | M194: 0.00 | N194: 37 | O194: 126 | P194: 14 | Q194: 45 | R194: 户均增收≥1000元/户，直接受益人口数≥126人 | S194: 否 | T194: 带动农户发展生产增产增收—其他 | U194: 不涉及 | V194: 否 | W194: 否 | X194: 是 | Y194: 普志辉 | Z194: 0877-8886323 | AA194: 华宁县农业农村局 | AB194: 禄丰村委会 | AC194: 是 | AD194: 否
A195: 190 | B195: 华宁县 | C195: 青龙镇 | D195: 革勒村委会 | E195: 产业发展—小型农田水利设施建设 | F195: 2025年华宁县革勒村委会产业灌溉设施提升改造建设项目 | G195: 2025年 | H195: 新建 | I195: 1.新建水泵一台（扬程300m，46m3/h）；2.GB DN100镀锌管3300m；3.200KV变压器一台；4.墩子3座；5.二级站改造。 | J195: 83.90 | K195: 83.90 | L195: 83.90 | M195: 0.00 | N195: 353 | O195: 1100 | P195: 23 | Q195: 56 | R195: 户均增收≥500元/户，直接受益人口数≥1100人 | S195: 否 | T195: 带动农户发展生产增产增收—其他 | U195: 是 | V195: 否 | W195: 否 | X195: 否 | Y195: 普志辉 | Z195: 0877-8886323 | AA195: 华宁县农业农村局 | AB195: 革勒村委会 | AC195: 是 | AD195: 否
A196: 191 | B196: 华宁县 | C196: 青龙镇 | D196: 斗居村委会 | E196: 产业发展—产业园（区） | F196: 2025年华宁县青龙镇斗居村委会分水岭小组产业配套设施建设项目 | G196: 2025年 | H196: 新建 | I196: （1）产业发展道路建设：路长620米，路宽4米（包含：路床(槽）整形；水泥混凝土道路面层；路基护坡；排水沟350米；DN1000混凝土管埋设80米）；（2）产业配套设施建设一项（包含：场地基础护坡；场地土方回填场地碎石基层；水泥混凝土场地面层）。 | J196: 100 | K196: 100.00 | L196: 100.00 | M196: 0.00 | N196: 37 | O196: 147 | P196: 3 | Q196: 6 | R196: 户均增收≥1000元/户，直接受益人口数≥147人 | S196: 否 | T196: 带动农户发展生产增产增收—其他 | U196: 是 | V196: 否 | W196: 否 | X196: 否 | Y196: 普志辉 | Z196: 0877-8886323 | AA196: 华宁县农业农村局 | AB196: 斗居村委会 | AC196: 是 | AD196: 否
A197: 192 | B197: 华宁县 | C197: 青龙镇 | D197: 城门硐村委会 | E197: 产业发展—产业园（区） | F197: 2025年华宁县青龙镇城门硐村委会粮烟协同文旅融合配套设施建设项目 | G197: 2025年 | H197: 新建 | I197: 一、产业配套设施建设：1、产业道路建设3978米。2、新建机耕路900米。二、附属设施建设1、休息场所建设1项。2简易厕所安装6套。3、节点建设80平方。 | J197: 73.00 | K197: 73.00 | L197: 73.00 | M197: 0.00 | N197: 564 | O197: 1921 | P197: 51 | Q197: 149 | R197: 户均增收≥2000元/户，直接受益人口数≥1921人 | S197: 否 | T197: 带动农户发展生产增产增收—其他 | U197: 是 | V197: 否 | W197: 是 | X197: 否 | Y197: 普志辉 | Z197: 0877-8886323 | AA197: 华宁县农业农村局 | AB197: 城门硐村委会 | AC197: 是 | AD197: 否
A198: 193 | B198: 华宁县 | C198: 青龙镇 | D198: 马鹿塘村委会 | E198: 产业发展—加工业 | F198: 2025年华宁县青龙镇马鹿塘村委会产业发展基础设施建设项目 | G198: 2025年 | H198: 新建 | I198: 1.村内道路修缮114m；2.新建电能烤房2座；3.道路建设2064㎡；4.护坡挡墙560m³；5.太阳能路灯12盏。 | J198: 50.00 | K198: 50.00 | L198: 50.00 | M198: 0.00 | N198: 65 | O198: 253 | P198: 8 | Q198: 26 | R198: 户均增收≥1000元/户，直接受益人口数≥253人 | S198: 否 | T198: 带动农户发展生产增产增收—其他 | U198: 是 | V198: 否 | W198: 否 | X198: 是 | Y198: 普志辉 | Z198: 0877-8886323 | AA198: 华宁县农业农村局 | AB198: 马鹿塘村委会 | AC198: 是 | AD198: 否
A199: 194 | B199: 华宁县 | C199: 青龙镇 | D199: 落梅村委会 | E199: 乡村建设行动—村容村貌提升 | F199: 2025年华宁县青龙镇落梅村委会落梅小组"以工代赈"建设项目 | G199: 2025年 | H199: 新建 | I199: 1村内建设：道路硬化9524m2，挡土墙120m，检查井122座，混凝土承插管3008m（DN600:560m、DN500:1186m、DN300:1262m），双壁波纹管（DN200：2368m），路边排水沟，混凝土沟盖板。2.村容村貌整治：建设小花园，安装防护栏杆，粉刷墙面。 | J199: 482.14 | K199: 482.14 | L199: 482.14 | M199: 0.00 | N199: 1547 | O199: 5578 | P199: 49 | Q199: 168 | R199: 户均增收≥300元/户，直接受益人口数≥5578人 | S199: 否 | T199: 不需要 | U199: 是 | V199: 否 | W199: 否 | X199: 否 | Y199: 普志辉 | Z199: 0877-8886323 | AA199: 华宁县农业农村局 | AB199: 落梅村委会 | AC199: 是 | AD199: 否
A200: 195 | B200: 华宁县 | C200: 盘溪镇 | D200: 东升社区凤凰村、盘江社区八方树 | E200: 产业发展—产业园（区） | F200: 2025年华宁县盘溪镇东升社区凤凰村、盘江社区八方树村乡村振兴示范点建设项目 | G200: 2025年 | H200: 新建 | I200: 凤凰村：（一）产业发展设施建设：产业发展道路建设，路长730米，宽3.5米：含路肩混凝土挡墙783.35立方米、道路边沟沟帮加高22.5立方米、道路风化料面层2555平方米、DN800混凝土管过水管埋12米等；（二）旅游产业配套设施建设：1.旅游产业配套设施5项，占地面积210平方米，建筑面积210平方米。2.村内道路改造，路长：长525米，宽4米：含路面风化石层2170平方米、路边围挡9.24立方米、混凝土沟盖板7.2立方米、路肩挡土墙12立方米、路面现浇构件钢筋（跨沟处）0.362t等；3.村节点打造和拆除空位利用：含场地杂物清理1113.42平方米、混凝土地面建设343.47平方米、透水砖地面铺设141.07平方米、石桌、石凳3套、红土回填314.05立方米、小菜园围边226.2米、栽植树木35棵、公共照明设施（其中：有灯杆12套和无灯杆100套）等；4.村内污水管网：含埋设污水管636米、砖砌检查井（1000*1000）21座、污水收集池1座等。 八方树村：人居环境整治设施建设：（一）道路改造，长778米，宽4米、原检查井井盖提高；（二）村内节点打造和拆除空位利用：含场地杂物清理220平方米、透水砖地面铺设124.07平方米、石桌、石凳1套、红土回填286立方米、栽植树木38棵、公共照明设施10套、砖砌围挡55米、照明设施（无灯杆）100套。 | J200: 280.00 | K200: 280.00 | L200: 280.00 | M200: 0.00 | N200: 632 | O200: 2120 | P200: 19 | Q200: 52 | R200: 通过项目实施，东升社区凤凰村和盘江社区八方树村将得到进一步改善，产业配套设施得到提升，解决村内部分污水未纳入管理，基础设施薄弱、产业道路不通的问题，间接增加群众收入，方便群众生产出行，提升群众精神面貌。 | S200: 否 | T200: 带动农户发展生产增产增收—其他 | U200: 是 | V200: 否 | W200: 否 | X200: 否 | Y200: 代迪 | Z200: 0877-6187105 | AA200: 华宁县农业农村局 | AB200: 东升社区凤凰村、盘江社区八方树村 | AC200: 是 | AD200: 是
... 303 more rows
